Workbook

Sheet Model Use Instructions
B3: Using the 'single use' model:
C4: This Workbook contains a simple model of carbon flows associated with forest harvest and bioenergy production, compared to carbon flows associated with natural gas power - in both cases with and without CCS. | AA4: ='Sustained Program Calculations'!E4 -> 0
C5: The model is run from, and reports results to, the sheet "Calculation Single Use Results”.
C6: There are three changeable inputs on this sheet (B4:D4). These are the choices of scenarios for: biomass production and bioenergy generation; natural gas production and fossil energy generation; and prices.
C7: The available scenarios are listed, and can be changed, in "Scenario Input Data Tables". Each scenario listed on that sheet is available to be selected on the dropdown menus on "Calculation Single Use Results".
C8: The user can add new scenarios by populating data into one of the three tables on the "Scenario Input Data Tables" sheet. We suggest adding any new scenario to the first avaialble column on the right. Data should be added to one of the columns with the darker coloured header, and the scenario should be named in the header cell. Information on data sourcing and any other notes can be added immediately to the right in the next column with the header "Source".
C9: Based on the scenario inputs, the model calculates and show results about carbon flows, overall implied carbon intensities, and energy costs.
C10: The model shows the results for one set of bioenergy and one set of NG assumptions at a time. It provides three summary results tables: - Table 1, main results; - Table 2, carbon intensity results breakdown; - Table 3, cost results. The worksheet also provides four tables to transparently show the steps in generating these results. Table 4 shows the fate of carbon in the forest; Table 5 shows the change in atmospheric carbon due to BECCS and includes the harvest-enhanced growth percentage that would be necessary for achieve zero carbon after 30 years. Table 6 shows the overall flow of carbon at each stage from wood harvest to ultimate disposition. Table 7 shows these calculations for NG+CCS.
B12: Saved 'single use' results:
C13: Although the model shows the results for one set of scenario assumptions at a time, comparison is enabled, by saving sets of results to the "Saved data" sheet. Saved data on this sheet does not update when scenario inputs are changed; saved data must be updated programmatically with the "Refresh results" button.
C14: Results for all combinations of input scenarios are saved in this sheet from row 45 downwards, and therefore each saved result is defined by the combination of a biomass scenario, a natural gas scenario and a cost scenario.
C15: Instead of searching manually for results in the longform results tables, users are recommended to query the saved results by selecting scenario labels in the relevant cells in rows 2:4 to allow scenarios of interest to be compared (range V6:BB42).
C16: To the right from column BD onwards are copies of the results that were included in charts in the paper, with the associated charts.
C17: Columns A to O have been hidden - these contain a transposed version of the saved results, but no additional data.
B19: The sustained program model:
C20: The model also includes a characterization of carbon flows for multi-year uses of BECCS in the sheet 'Sustained Program Calculations'. This sheet uses the same set of scenario inputs as have been selected on the 'Calculation single use results' sheet.
C21: This sheet considers carbon losses in the year of harvest, decay of carbon left in the forest after harvest, and harvest-enhanced growth of the forest stand. The sustained program calculations are based on parameters for forest growth rates. The default treatment of biomass regrowth (parameter in C2) is a Monod growth function (further elaborated on the hidden sheet "CHARM results"). The model also allows a two phase linear regrowth assumption (with two 30 year regrowth periods, parameterised in A19:C20) by setting the value of C2 to "Linear", but this is not recommended.
C22: The sustained program version of the model reports net carbon change over time for annual harvests of the size specified in the model, and the cumulative average carbon intensity (i.e. cumulative net CO2 emission up to time T divided by cumulative energy generation up to time T for energy produced). Results are shown to the right, H2:FC159.
C23: The results include the following: - Row 3, the cumulative energy supply (sum of electricity and heat in the case of CHP) from the biomass energy facility, which is simply the annual energy supply multiplied by the number of years. - Row 4, the cumulative average carbon intensity of energy supply, which is the cumulative sum of emissions (including biogenic emissions) minus the cumulative sum of sinks (including biogenic sinks) all divided by the cumulative energy supply. - Row 5, the cumulative CO2 in geological storage, simply the annual CO2 being stored multiplied by the number of years. Leakage of CO2 from geological storage is not considered (i.e. leakage is treated as zero). - Row 6, if the system has achieved net negative emissions (i.e. cumulative sinks greater than cumulative emissions) the absolute value of those cumulative negative emissions divided by the cumulative CO2 in geological storage. - Row 7, the net annual emission (i.e. total carbon emission in that year minus total carbon sink in that year). - Row 8, the cumulative net carbon position, i.e. the cumulative sum of emissions (including biogenic emissions) minus the cumulative sum of sinks (including biogenic sinks). - Row 9, the 'first harvest' carbon position, i.e. the sum of emissions associated with the first harvest only minus the sum of sinks associated with the first harvest only.
C24: All parameters in the sustained program model are set automatically based on the single use scenario input data and on regrowth data in the hidden "CHARM results" sheet. A user may overrule the sustained program assumptions by changing values in the range B10:F22, but should be aware that unless such changes are made with caution this could lead to inconsistencies in the inputs (and therefore results of limited value) and that there is no internal mechanism to 'reset' this part of the model when the scenario is changed in the "Calculation single use results" sheet (the user would need to revert to an earlier version to restore the default behaviour).

Sheet Index of sheets
A3: Main sheets
B4: Sheet name | C4: Sheet description
B5: Model Use Instructions | C5: Explanation of the use of the model.
B6: Index of sheets | C6: Listing of the worksheets (tabs) of the model and their role.
B7: Calculation Single Use Results | C7: Sheet containing the main user interface and the model calculations for the 'single use' mode, i.e. modelling of the carbon implications of a single wood harvest used for energy with or without carbon capture, and a comparator natural-gas based system.
B8: Scenario Input Data Tables | C8: Data tables containing input data for each scenario for the biomass-energy system, the natural-gas energy system, and the associated prices. Any blanks in the scenario data are cross filled by the model from the 'suggested default' column.
B9: Saved data | C9: This sheet contains results saved programmatically for each permutation of biomass assumptions, natural gas assumptions and price assumptions in the scenario input data tables. This data is static, i.e. it will not be updated after input parameters are edited unless the "Refresh results" button (Results_UpdateAll macro) is used.
B10: Sustained Program Calculations | C10: Sheet containing the model calculations for the 'sustained program' mode, i.e. modelling carbon changes over time for a system in which an additional area is harvested every year to enable continuous energy generation by a biomass energy facility. Includes saved summary results for each biomass scenario, in a table starting B53:E53. This sheet includes a characterisation of the sources and sinks from the single use model (A9:F22), a comparison of growth results calculated on the sheet to the CHARM results for the equivalent system (B33:G48) and an estimation of the implied stand age at harvest based on the harvest-enhanced growth parameter used in the single use model (A25:F30).
B11: Background assumptions | C11: This sheet contains data for some underlying model assumptions, relating to wood pellet characterisation, woody-residue decay rates and the temperature assumed for output heat from the CHP (used in the equations for CI allocation between heat and electricity).
B12: Fajardy 2021 cost data | C12: Data on costs of power generation with and without CCS for a range of fuels from Fajardy et al. (2021), along with a consistent recalculation of capital costs and some intermediate calculations to put the Fajardy data in the appropriate format for the model.
B13: Free calculation sheet | C13: A sheet with no cell protection to allow users to easily add their own calculations/notes.
A17: Background (hidden sheets)
B18: Lists | C18: A sheet with lists of scenario names for the construction of dropdown menus.
B19: CHARM results | C19: This sheet contains data from the CHARM model as well as some derived values, used for characterising growth in the harvested forest areas. It also includes data tables used for manual calibration of the Monod growth parameters used in the sustained program calculations.
B20: Carbon lost post-forest | C20: A sheet detailing assumptions based on Röder et al. 2015 regarding biomass losses between harvest and use
B21: Table for paper | C21: Results tabulated in the form of Table 2 in the paper.
B22: Isoli 2025 | C22: Tabulation of data used as basis for default CCS energy penalty assumptions.
B23: Chart selection | C23: List of scenario combinations for which PNG copies of charts will be saved when updating results.

Sheet Calculation Single Use Results
B1: Carbon flow model to compare BECCS with NG-CCS. Choose input scenarios using the dropdown menus for each input category. Scenarios can be added or adjusted on the sheet "Input data tables". The model estimates the carbon intensity of electricity generation from natural gas, NG-CCS, bioenergy and BECCS. To show the flows of carbon consistently between different scenarios, quantities are normalised to a million kgs of carbon entering a power plant, but the total quantity does not alter any of the climate intensity measures, ratios, or costs per tonne of mitigation or per kWh. Carbon intensity, cost and carbon flow results are shown to the right. | BB1: Saved charts:
B2: Input scenarios (choose options from dropdown menus): | P2: Figure 1: Comparison of Bioenergy with NG, with and without CCS (single use result after 30 years)
B3: Biomass scenario: | C3: Input natural gas scenario: | D3: Input cost scenario: | H3: Table 1: | I3: Main results:
B4: Suggested default | C4: Suggested default | D4: Suggested default | I4: ="Results for "&B4 -> Results for Suggested default | L4: Value: | M4: Unit
I5: Net GHG Intensity of NG (No CCS) | L5: =K22 -> 507.806013 | M5: g CO2e / kWh
I6: Net GHG intensity of NG-CCS | L6: =$N$21 -> 205.7320859 | M6: g CO2e / kWh
I7: Net GHG Intensity of Bioenergy (no CCS) | L7: =N20 -> 1150.629131 | M7: g CO2e / kWh
I8: Net GHG intensity of BECCS | L8: =$N$19 -> 573.8499299 | M8: g CO2e / kWh
I9: Incremental cost of BECCS over NG power | L9: =$W$20 -> 0.2912741021 | M9: $ / kWh
I10: Mitigation cost for BECCS rel to NG (no CCS) | L10: =W22 -> No saving | M10: $/tCO2e
I11: Mitigation cost for BECCS rel to NG (with CCS) | L11: =IF(L8<L6,((W19-U19)/(L6-L8))*1000000,"No saving") -> No saving | M11: $/tCO2e
I12: BECCS cost compared to NG-CCS cost | L12: =$W$21 -> 2.603494562 | M12: Ratio
I13: Ratio of gross CO2/kWh, BECCS:NG-CCS (gross only includes emissions w/o harvest-enhanced growth) | L13: =AS36/AS46 -> 7.63570998 | M13: Ratio
I14: % of carbon captured by CCS that is negative emissions | L14: =W30 -> None | M14: kg CO2 / t CO2 stored
B17: Associated input data: | H17: Table 2: | I17: Carbon intensity results breakdown: | Q17: Table 3: | R17: Cost results:
B18: Input parameter | D18: Value (grey if based on default) | E18: Source: | I18: g CO2 / kWh | K18: Fossil emissions | L18: Biogenic emissions | M18: Harvest-enhanced growth | N18: Total | O18: Captured CO2 | T18: Gas power | U18: Gas power with CCS | V18: Bioenergy | W18: Bioenergy with CCS
A19: Biomass related inputs | B19: Root:shoot ratio (expressed as ratio with colon or as % of roots in total wood) | D19: =IFERROR(_xlfn.LET(_xlpm.val,_xlfn.XLOOKUP($B$4,'Scenario Input Data Tables'!$C$2:$AX$2,'Scenario Input Data Tables'!$C5:$AX5),IF(_xlpm.val="",'Scenario Input Data Tables'!C5,_xlpm.val)), "Check scenario name") -> 23:100 | E19: =IFERROR(_xlfn.LET(_xlpm.val,_xlfn.XLOOKUP($B$4,'Scenario Input Data Tables'!$C$2:$AX$2,'Scenario Input Data Tables'!$C5:$AX5),_xlpm.source,_xlfn.XLOOKUP($B$4,'Scenario Input Data Tables'!$C$2:$AX$2,'Scenario Input Data Tables'!$D5:$AY5),_xlpm.matchingsource,IF(_xlpm.val="",'Scenario Input Data Tables'!D5,_xlpm.source),IF(_xlpm.matchingsource="","No source given",_xlpm.matchingsource)), "Check scenario name") -> Huang et al., Earth Syst. Sci. Data, 13, 4263–4274, 2021 | I19: BECCS emissions | K19: =AR36/(AI36+AJ36)*1000 -> 209.1158154 | L19: =AQ36/(AI36+AJ36)*1000 -> 1361.794726 | M19: =-$Y$30*J36*CO2_to_C_ratio/(AI36+AJ36)*1000 -> -997.0606118 | N19: =SUM(K19:M19) -> 573.8499299 | O19: =AP36/AI36*1000 -> 1092.75556 | R19: Estimated energy price ($/kWh) | T19: =_xlfn.LET(_xlpm.comment, "Increase non-fuel costs by a CHP multiplier that increases for higher total energy efficiency", _xlpm.labels, INDEX(CHP_multiplier,,1),_xlpm.column, INDEX(CHP_multiplier,,2),_xlpm.x,_xlfn.XLOOKUP("X",_xlpm.labels,_xlpm.column),_xlpm.Z, _xlfn.XLOOKUP("Z", _xlpm.labels, _xlpm.column), _xlpm.baseline,_xlfn.XLOOKUP('Fajardy 2021 cost data'!$O$64, _xlpm.labels, _xlpm.column), _xlpm.benchmark, _xlfn.XLOOKUP('Fajardy 2021 cost data'!$O$65,_xlpm.labels,_xlpm.column), _xlpm.multiplier,IF(D44=0,0,_xlpm.x*MAX(0,(SUM($D$43,$D$44)-_xlpm.baseline)/(_xlpm.benchmark-_xlpm.baseline))^_xlpm.Z),_xlpm.result,(D34*(1+_xlpm.multiplier)+D32/1000)/D43+'Fajardy 2021 cost data'!P55,_xlpm.result*($D$43/SUM($D$43,$D$44))) -> 0.1190235771 | U19: =_xlfn.LET(_xlpm.Plant_cost,(T19*SUM($AF$46,$AJ$46)-'Fajardy 2021 cost data'!P55*$AF$46), _xlpm.CCS_cost, NG_CCS_increment/1000*$AM$46*CO2_to_C_ratio, _xlpm.denominator, SUM($AI$46:$AJ$46), (_xlpm.Plant_cost+_xlpm.CCS_cost+'Fajardy 2021 cost data'!P55*AI46)/_xlpm.denominator) -> 0.1575949822 | V19: =_xlfn.LET(_xlpm.comment, "Increase non-fuel costs by a CHP multiplier that increases for higher total energy efficiency", _xlpm.labels, INDEX(CHP_multiplier,,1),_xlpm.column, INDEX(CHP_multiplier,,3),_xlpm.x,_xlfn.XLOOKUP("X",_xlpm.labels,_xlpm.column),_xlpm.Z, _xlfn.XLOOKUP("Z", _xlpm.labels, _xlpm.column), _xlpm.baseline,_xlfn.XLOOKUP('Fajardy 2021 cost data'!$O$64, _xlpm.labels, _xlpm.column), _xlpm.benchmark, _xlfn.XLOOKUP('Fajardy 2021 cost data'!$O$65,_xlpm.labels,_xlpm.column), _xlpm.multiplier,IF(D26=0,0,_xlpm.x*MAX(0,(SUM($D$25,$D$26)-_xlpm.baseline)/(_xlpm.benchmark-_xlpm.baseline))^_xlpm.Z),_xlpm.result,(D35*(1+_xlpm.multiplier)+D33*'Fajardy 2021 cost data'!$R$53)/D25+'Fajardy 2021 cost data'!R55, _xlpm.CHP_result,_xlpm.result*($D$25/SUM($D$25,$D$26)),_xlpm.CHP_result) -> 0.2373686008 | W19: =_xlfn.LET(_xlpm.Plant_cost,(V19*SUM($AF$36,$AJ$36)-'Fajardy 2021 cost data'!P55*$AF$36), _xlpm.CCS_cost, NG_CCS_increment/1000*$AM$36*CO2_to_C_ratio, _xlpm.denominator, SUM($AI$36:$AJ$36), (_xlpm.Plant_cost+_xlpm.CCS_cost+'Fajardy 2021 cost data'!P55*$AI$36)/_xlpm.denominator) -> 0.4102976792
B20: % slash (slash rate of ABG carbon) | D20: =IFERROR(_xlfn.LET(_xlpm.val,_xlfn.XLOOKUP($B$4,'Scenario Input Data Tables'!$C$2:$AX$2,'Scenario Input Data Tables'!$C6:$AX6),IF(_xlpm.val="",'Scenario Input Data Tables'!C6,_xlpm.val)), "Check scenario name") -> 0.3 | E20: =IFERROR(_xlfn.LET(_xlpm.val,_xlfn.XLOOKUP($B$4,'Scenario Input Data Tables'!$C$2:$AX$2,'Scenario Input Data Tables'!$C6:$AX6),_xlpm.source,_xlfn.XLOOKUP($B$4,'Scenario Input Data Tables'!$C$2:$AX$2,'Scenario Input Data Tables'!$D6:$AY6),_xlpm.matchingsource,IF(_xlpm.val="",'Scenario Input Data Tables'!D6,_xlpm.source),IF(_xlpm.matchingsource="","No source given",_xlpm.matchingsource)), "Check scenario name") -> IPCC rates based on biomass expansion factors as calculated globally using CHARM model (Peng et. al 2023) | I20: Bioenergy w/o CCS emissions | K20: =AR36/(AF36+AJ36)*1000 -> 144.3741488 | L20: =SUM(AP36:AQ36)/(AF36+AJ36)*1000 -> 1694.628441 | M20: =-$Y$30*J36*CO2_to_C_ratio/(AF36+AJ36)*1000 -> -688.3734589 | N20: =SUM(K20:M20) -> 1150.629131 | O20: 0 | R20: Incremental cost over NG energy ($/kWh) | T20: - | U20: =-$T$19+U19 -> 0.0385714051 | V20: =-$T$19+V19 -> 0.1183450236 | W20: =-$T$19+W19 -> 0.2912741021
B21: % of slash harvested | D21: =IFERROR(_xlfn.LET(_xlpm.val,_xlfn.XLOOKUP($B$4,'Scenario Input Data Tables'!$C$2:$AX$2,'Scenario Input Data Tables'!$C7:$AX7),IF(_xlpm.val="",'Scenario Input Data Tables'!C7,_xlpm.val)), "Check scenario name") -> 0.5 | E21: =IFERROR(_xlfn.LET(_xlpm.val,_xlfn.XLOOKUP($B$4,'Scenario Input Data Tables'!$C$2:$AX$2,'Scenario Input Data Tables'!$C7:$AX7),_xlpm.source,_xlfn.XLOOKUP($B$4,'Scenario Input Data Tables'!$C$2:$AX$2,'Scenario Input Data Tables'!$D7:$AY7),_xlpm.matchingsource,IF(_xlpm.val="",'Scenario Input Data Tables'!D7,_xlpm.source),IF(_xlpm.matchingsource="","No source given",_xlpm.matchingsource)), "Check scenario name") -> assumed from residue retention recommendations | I21: NG-CCS emissions | K21: =AS46 -> 205.7320859 | L21: 0 | M21: 0 | N21: =SUM(K21:M21) -> 205.7320859 | O21: =AP46/AI46*1000 -> 368.3760191 | R21: Cost compared to NG-CCS cost | T21: =(T19)/$U19 -> 0.7552497894 | U21: =(U19)/$U19 -> 1 | V21: =(V19)/$U19 -> 1.506193899 | W21: =(W19)/$U19 -> 2.603494562
B22: Carbon loss from ancillary sapling mortality (as % of harvested wood) | D22: =IFERROR(_xlfn.LET(_xlpm.val,_xlfn.XLOOKUP($B$4,'Scenario Input Data Tables'!$C$2:$AX$2,'Scenario Input Data Tables'!$C8:$AX8),IF(_xlpm.val="",'Scenario Input Data Tables'!C8,_xlpm.val)), "Check scenario name") -> 0.085 | E22: =IFERROR(_xlfn.LET(_xlpm.val,_xlfn.XLOOKUP($B$4,'Scenario Input Data Tables'!$C$2:$AX$2,'Scenario Input Data Tables'!$C8:$AX8),_xlpm.source,_xlfn.XLOOKUP($B$4,'Scenario Input Data Tables'!$C$2:$AX$2,'Scenario Input Data Tables'!$D8:$AY8),_xlpm.matchingsource,IF(_xlpm.val="",'Scenario Input Data Tables'!D8,_xlpm.source),IF(_xlpm.matchingsource="","No source given",_xlpm.matchingsource)), "Check scenario name") -> SORTIE model analysis of northeastern U.S. | I22: NG w/o CCS emissions | K22: =(AR46+AA46*CO2_to_C_ratio)/(AF46+AJ46)*1000 -> 507.806013 | L22: 0 | M22: 0 | N22: =SUM(K22:M22) -> 507.806013 | O22: 0 | R22: Incremental cost $ per tCO2e saving | T22: - | U22: =IF(($N22-N21)>0,(U19-$T19)/($N22-N21)*1000000,"No saving") -> 127.6886273 | V22: =IF(($N22-N20)>0,(V19-$T19)/($N22-N20)*1000,"No saving") -> No saving | W22: =IF(($N22-N19)>0,(W19-$T19)/($N22-N19)*1000000,"No saving") -> No saving
B23: Carbon lost in bark and processing into pellets | D23: =IFERROR(_xlfn.LET(_xlpm.val,_xlfn.XLOOKUP($B$4,'Scenario Input Data Tables'!$C$2:$AX$2,'Scenario Input Data Tables'!$C9:$AX9),IF(_xlpm.val="",'Scenario Input Data Tables'!C9,_xlpm.val)), "Check scenario name") -> 0.22 | E23: =IFERROR(_xlfn.LET(_xlpm.val,_xlfn.XLOOKUP($B$4,'Scenario Input Data Tables'!$C$2:$AX$2,'Scenario Input Data Tables'!$C9:$AX9),_xlpm.source,_xlfn.XLOOKUP($B$4,'Scenario Input Data Tables'!$C$2:$AX$2,'Scenario Input Data Tables'!$D9:$AY9),_xlpm.matchingsource,IF(_xlpm.val="",'Scenario Input Data Tables'!D9,_xlpm.source),IF(_xlpm.matchingsource="","No source given",_xlpm.matchingsource)), "Check scenario name") -> Röder et al. (2015) | R23: Incremental cost $ per tCO2 of storage | T23: - | U23: =IF(($N22-N21)>0,(U19-$T19)/(AP46/AF46)*1000,"No saving") -> 118.3777139 | V23: - | W23: =(W19-$T19)/(AP36/AF36)*1000 -> 386.0790983
B24: GHG intensity of supply chain fossil fuel use (kgCO2e/tonne fuel) | D24: =IFERROR(_xlfn.LET(_xlpm.val,_xlfn.XLOOKUP($B$4,'Scenario Input Data Tables'!$C$2:$AX$2,'Scenario Input Data Tables'!$C10:$AX10),IF(_xlpm.val="",'Scenario Input Data Tables'!C10,_xlpm.val)), "Check scenario name") -> 268 | E24: =IFERROR(_xlfn.LET(_xlpm.val,_xlfn.XLOOKUP($B$4,'Scenario Input Data Tables'!$C$2:$AX$2,'Scenario Input Data Tables'!$C10:$AX10),_xlpm.source,_xlfn.XLOOKUP($B$4,'Scenario Input Data Tables'!$C$2:$AX$2,'Scenario Input Data Tables'!$D10:$AY10),_xlpm.matchingsource,IF(_xlpm.val="",'Scenario Input Data Tables'!D10,_xlpm.source),IF(_xlpm.matchingsource="","No source given",_xlpm.matchingsource)), "Check scenario name") -> Röder et al. (2015) | R24: Disaggregated cost: | S24: Fuel cost ($/kWh) | T24: =_xlfn.LET(_xlpm.comment, "Increase non-fuel costs by a CHP multiplier that increases for higher total energy efficiency", _xlpm.labels, INDEX(CHP_multiplier,,1),_xlpm.column, INDEX(CHP_multiplier,,2),_xlpm.x,_xlfn.XLOOKUP("X",_xlpm.labels,_xlpm.column),_xlpm.Z, _xlfn.XLOOKUP("Z", _xlpm.labels, _xlpm.column), _xlpm.baseline,_xlfn.XLOOKUP('Fajardy 2021 cost data'!$O$64, _xlpm.labels, _xlpm.column), _xlpm.benchmark, _xlfn.XLOOKUP('Fajardy 2021 cost data'!$O$65,_xlpm.labels,_xlpm.column), _xlpm.multiplier,IF(D44=0,0,_xlpm.x*MAX(0,(SUM($D$43,$D$44)-_xlpm.baseline)/(_xlpm.benchmark-_xlpm.baseline))^_xlpm.Z),_xlpm.result,(D32/1000)/D43,_xlpm.result*($D$43/SUM($D$43,$D$44))) -> 0.0652173913 | U24: =_xlfn.LET(_xlpm.Plant_cost,(T24*SUM($AF$46,$AJ$46)), _xlpm.CCS_cost, NG_CCS_increment/1000*$AM$46*CO2_to_C_ratio, _xlpm.denominator, SUM($AI$46:$AJ$46), (_xlpm.Plant_cost)/_xlpm.denominator) -> 0.07373255136 | V24: =_xlfn.LET(_xlpm.comment, "Increase non-fuel costs by a CHP multiplier that increases for higher total energy efficiency", _xlpm.labels, INDEX(CHP_multiplier,,1),_xlpm.column, INDEX(CHP_multiplier,,3),_xlpm.x,_xlfn.XLOOKUP("X",_xlpm.labels,_xlpm.column),_xlpm.Z, _xlfn.XLOOKUP("Z", _xlpm.labels, _xlpm.column), _xlpm.baseline,_xlfn.XLOOKUP('Fajardy 2021 cost data'!$O$64, _xlpm.labels, _xlpm.column), _xlpm.benchmark, _xlfn.XLOOKUP('Fajardy 2021 cost data'!$O$65,_xlpm.labels,_xlpm.column), _xlpm.multiplier,IF(D26=0,0,_xlpm.x*MAX(0,(SUM($D$25,$D$26)-_xlpm.baseline)/(_xlpm.benchmark-_xlpm.baseline))^_xlpm.Z),_xlpm.result,(D33*'Fajardy 2021 cost data'!$R$53)/D25, _xlpm.CHP_result,_xlpm.result*($D$25/SUM($D$25,$D$26)),_xlpm.CHP_result) -> 0.112320933 | W24: =_xlfn.LET(_xlpm.Plant_cost,(V24*SUM($AF$36,$AJ$36)), _xlpm.CCS_cost, NG_CCS_increment/1000*$AM$36*CO2_to_C_ratio, _xlpm.denominator, SUM($AI$36:$AJ$36), (_xlpm.Plant_cost)/_xlpm.denominator) -> 0.1626889833
B25: Biomass power efficiency (no CCS) | D25: =IFERROR(_xlfn.LET(_xlpm.val,_xlfn.XLOOKUP($B$4,'Scenario Input Data Tables'!$C$2:$AX$2,'Scenario Input Data Tables'!$C11:$AX11),IF(_xlpm.val="",'Scenario Input Data Tables'!C11,_xlpm.val)), "Check scenario name") -> 0.36 | E25: =IFERROR(_xlfn.LET(_xlpm.val,_xlfn.XLOOKUP($B$4,'Scenario Input Data Tables'!$C$2:$AX$2,'Scenario Input Data Tables'!$C11:$AX11),_xlpm.source,_xlfn.XLOOKUP($B$4,'Scenario Input Data Tables'!$C$2:$AX$2,'Scenario Input Data Tables'!$D11:$AY11),_xlpm.matchingsource,IF(_xlpm.val="",'Scenario Input Data Tables'!D11,_xlpm.source),IF(_xlpm.matchingsource="","No source given",_xlpm.matchingsource)), "Check scenario name") -> Quiggins estimate of Drax average | S25: CCS cost ($/kWh) | U25: =_xlfn.LET(_xlpm.Plant_cost,(T24*SUM($AF$46,$AJ$46)-'Fajardy 2021 cost data'!P55*$AF$46), _xlpm.CCS_cost, NG_CCS_increment/1000*$AM$46*CO2_to_C_ratio, _xlpm.denominator, SUM($AI$46:$AJ$46), (_xlpm.CCS_cost)/_xlpm.denominator) -> 0.02694797164 | W25: =_xlfn.LET(_xlpm.Plant_cost,(V19*SUM($AF$36,$AJ$36)-'Fajardy 2021 cost data'!P55*$AF$36), _xlpm.CCS_cost, NG_CCS_increment/1000*$AM$36*CO2_to_C_ratio, _xlpm.denominator, SUM($AI$36:$AJ$36), (_xlpm.CCS_cost)/_xlpm.denominator) -> 0.07993882421
B26: Biomass heat efficiency (no CCS) | D26: =IFERROR(_xlfn.LET(_xlpm.val,_xlfn.XLOOKUP($B$4,'Scenario Input Data Tables'!$C$2:$AX$2,'Scenario Input Data Tables'!$C12:$AX12),IF(_xlpm.val="",'Scenario Input Data Tables'!C12,_xlpm.val)), "Check scenario name") -> 0 | E26: =IFERROR(_xlfn.LET(_xlpm.val,_xlfn.XLOOKUP($B$4,'Scenario Input Data Tables'!$C$2:$AX$2,'Scenario Input Data Tables'!$C12:$AX12),_xlpm.source,_xlfn.XLOOKUP($B$4,'Scenario Input Data Tables'!$C$2:$AX$2,'Scenario Input Data Tables'!$D12:$AY12),_xlpm.matchingsource,IF(_xlpm.val="",'Scenario Input Data Tables'!D12,_xlpm.source),IF(_xlpm.matchingsource="","No source given",_xlpm.matchingsource)), "Check scenario name") -> No CHP | S26: Other cost ($/kWh) | T26: =_xlfn.LET(_xlpm.comment, "Increase non-fuel costs by a CHP multiplier that increases for higher total energy efficiency", _xlpm.labels, INDEX(CHP_multiplier,,1),_xlpm.column, INDEX(CHP_multiplier,,2),_xlpm.x,_xlfn.XLOOKUP("X",_xlpm.labels,_xlpm.column),_xlpm.Z, _xlfn.XLOOKUP("Z", _xlpm.labels, _xlpm.column), _xlpm.baseline,_xlfn.XLOOKUP('Fajardy 2021 cost data'!$O$64, _xlpm.labels, _xlpm.column), _xlpm.benchmark, _xlfn.XLOOKUP('Fajardy 2021 cost data'!$O$65,_xlpm.labels,_xlpm.column), _xlpm.multiplier,IF(D44=0,0,_xlpm.x*MAX(0,(SUM($D$43,$D$44)-_xlpm.baseline)/(_xlpm.benchmark-_xlpm.baseline))^_xlpm.Z),_xlpm.result,(D34*(1+_xlpm.multiplier))/D43+'Fajardy 2021 cost data'!P55,_xlpm.result*($D$43/SUM($D$43,$D$44))) -> 0.05380618583 | U26: =_xlfn.LET(_xlpm.Plant_cost,(T26*SUM($AF$46,$AJ$46)-'Fajardy 2021 cost data'!P55*$AF$46), _xlpm.CCS_cost, NG_CCS_increment/1000*$AM$46*CO2_to_C_ratio, _xlpm.denominator, SUM($AI$46:$AJ$46), (_xlpm.Plant_cost+'Fajardy 2021 cost data'!P55*AI46)/_xlpm.denominator) -> 0.05691445923 | V26: =_xlfn.LET(_xlpm.comment, "Increase non-fuel costs by a CHP multiplier that increases for higher total energy efficiency", _xlpm.labels, INDEX(CHP_multiplier,,1),_xlpm.column, INDEX(CHP_multiplier,,3),_xlpm.x,_xlfn.XLOOKUP("X",_xlpm.labels,_xlpm.column),_xlpm.Z, _xlfn.XLOOKUP("Z", _xlpm.labels, _xlpm.column), _xlpm.baseline,_xlfn.XLOOKUP('Fajardy 2021 cost data'!$O$64, _xlpm.labels, _xlpm.column), _xlpm.benchmark, _xlfn.XLOOKUP('Fajardy 2021 cost data'!$O$65,_xlpm.labels,_xlpm.column), _xlpm.multiplier,IF(D26=0,0,_xlpm.x*MAX(0,(SUM($D$25,$D$26)-_xlpm.baseline)/(_xlpm.benchmark-_xlpm.baseline))^_xlpm.Z),_xlpm.result,(D35*(1+_xlpm.multiplier))/D25+'Fajardy 2021 cost data'!R55, _xlpm.CHP_result,_xlpm.result*($D$25/SUM($D$25,$D$26)),_xlpm.CHP_result) -> 0.1250476678 | W26: =_xlfn.LET(_xlpm.Plant_cost,(V26*SUM($AF$36,$AJ$36)-'Fajardy 2021 cost data'!P55*$AF$36), _xlpm.CCS_cost, NG_CCS_increment/1000*$AM$36*CO2_to_C_ratio, _xlpm.denominator, SUM($AI$36:$AJ$36), (_xlpm.Plant_cost+'Fajardy 2021 cost data'!P55*$AI$36)/_xlpm.denominator) -> 0.1676698718
B27: Carbon capture % | D27: =IFERROR(_xlfn.LET(_xlpm.val,_xlfn.XLOOKUP($B$4,'Scenario Input Data Tables'!$C$2:$AX$2,'Scenario Input Data Tables'!$C13:$AX13),IF(_xlpm.val="",'Scenario Input Data Tables'!C13,_xlpm.val)), "Check scenario name") -> 0.85 | E27: =IFERROR(_xlfn.LET(_xlpm.val,_xlfn.XLOOKUP($B$4,'Scenario Input Data Tables'!$C$2:$AX$2,'Scenario Input Data Tables'!$C13:$AX13),_xlpm.source,_xlfn.XLOOKUP($B$4,'Scenario Input Data Tables'!$C$2:$AX$2,'Scenario Input Data Tables'!$D13:$AY13),_xlpm.matchingsource,IF(_xlpm.val="",'Scenario Input Data Tables'!D13,_xlpm.source),IF(_xlpm.matchingsource="","No source given",_xlpm.matchingsource)), "Check scenario name") -> Assumption
B28: Carbon capture electrical energy efficiency penalty | D28: =IFERROR(_xlfn.LET(_xlpm.val,_xlfn.XLOOKUP($B$4,'Scenario Input Data Tables'!$C$2:$AX$2,'Scenario Input Data Tables'!$C14:$AX14),IF(_xlpm.val="",'Scenario Input Data Tables'!C14,_xlpm.val)), "Check scenario name") -> 0.1114549845 | E28: =IFERROR(_xlfn.LET(_xlpm.val,_xlfn.XLOOKUP($B$4,'Scenario Input Data Tables'!$C$2:$AX$2,'Scenario Input Data Tables'!$C14:$AX14),_xlpm.source,_xlfn.XLOOKUP($B$4,'Scenario Input Data Tables'!$C$2:$AX$2,'Scenario Input Data Tables'!$D14:$AY14),_xlpm.matchingsource,IF(_xlpm.val="",'Scenario Input Data Tables'!D14,_xlpm.source),IF(_xlpm.matchingsource="","No source given",_xlpm.matchingsource)), "Check scenario name") -> Isoli et al. 2025 | H28: Table 4: | I28: Fate of the carbon in the forest | Q28: Table 5: | R28: Change in atmospheric carbon due to BECCS
B29: Harvest-enhanced growth as fraction of wood subject to harvest (undisturbed growth as baseline) | D29: =IFERROR(_xlfn.LET(_xlpm.val,_xlfn.XLOOKUP($B$4,'Scenario Input Data Tables'!$C$2:$AX$2,'Scenario Input Data Tables'!$C15:$AX15),IF(_xlpm.val="",'Scenario Input Data Tables'!C15,_xlpm.val)), "Check scenario name") -> 0.391025641 | E29: =IFERROR(_xlfn.LET(_xlpm.val,_xlfn.XLOOKUP($B$4,'Scenario Input Data Tables'!$C$2:$AX$2,'Scenario Input Data Tables'!$C15:$AX15),_xlpm.source,_xlfn.XLOOKUP($B$4,'Scenario Input Data Tables'!$C$2:$AX$2,'Scenario Input Data Tables'!$D15:$AY15),_xlpm.matchingsource,IF(_xlpm.val="",'Scenario Input Data Tables'!D15,_xlpm.source),IF(_xlpm.matchingsource="","No source given",_xlpm.matchingsource)), "Check scenario name") -> Highly variable. Initial global average calculation using CHARM (combines secondary forest + plantations) | K29: % carbon lost in forest | L29: % carbon lost in processing & transport | M29: % carbon emitted in plant | N29: % carbon captured | O29: supply chain fossil carbon as % of CO2 captured | P29: % of total carbon (biogenic + fossil) captured | T29: Claimed stored carbon from BECCS (kgs CO2) | U29: Claimed net carbon removal from BECCS (kgs CO2) | V29: Change in atmospheric carbon (kgs CO2) | W29: % of CCS carbon that is an actual negative emission | X29: Biomass % harvest-enhanced growth needed for C neutrality | Y29: Assumed % harvest-enhanced growth achieved
I30: Percentage | K30: =Q36 -> 0.3536121673 | L30: =W36*(1-K30) -> 0.1422053232 | M30: =AL36/J36 -> 0.07562737643 | N30: =AM36/J36 -> 0.4285551331 | O30: =AR36/AP36 -> 0.1913655928 | P30: =(AP36-AR36)/(J36*CO2_to_C_ratio) -> 0.346544426 | R30: Value | T30: =-AP36 -> -3114400 | U30: =-AM36*CO2_to_C_ratio+AR36 -> -2518410.998 | V30: =(1-Y30)*J36*CO2_to_C_ratio+AR36-AP36-R36*CO2_to_C_ratio -> 1635496.801 | W30: =IF(V30>0,"None",V30/T30) -> None | X30: =(AN36+AR36/CO2_to_C_ratio)/J36 -> 0.6160771916 | Y30: =D29 -> 0.391025641
B31: Prices | D31: Value (grey if based on default) | E31: Source:
A32: Price related inputs | B32: ='Scenario Input Data Tables'!B27 -> Gas price ($/MWh) | D32: =IFERROR(_xlfn.LET(_xlpm.val,_xlfn.XLOOKUP($D$4,'Scenario Input Data Tables'!$C$26:$AV$26,'Scenario Input Data Tables'!$C27:$AV27),_xlpm.result,IF(_xlpm.val="",'Scenario Input Data Tables'!C27,_xlpm.val),_xlpm.result), "Check scenario name") -> 39.13043478 | E32: =IFERROR(_xlfn.LET(_xlpm.val,_xlfn.XLOOKUP($B$4,'Scenario Input Data Tables'!$C$2:$AX$2,'Scenario Input Data Tables'!$D27:$AY27),IF(_xlpm.val="",'Scenario Input Data Tables'!D27,_xlpm.val)), "Check scenario name") -> EU Commission, wholesale price Q1 2025
B33: ='Scenario Input Data Tables'!B28 -> Wood pellet price ($/tonne) | D33: =IFERROR(_xlfn.LET(_xlpm.val,_xlfn.XLOOKUP($D$4,'Scenario Input Data Tables'!$C$26:$AV$26,'Scenario Input Data Tables'!$C28:$AV28),_xlpm.result,IF(_xlpm.val="",'Scenario Input Data Tables'!C28,_xlpm.val),_xlpm.result), "Check scenario name") -> 208.5 | E33: =IFERROR(_xlfn.LET(_xlpm.val,_xlfn.XLOOKUP($B$4,'Scenario Input Data Tables'!$C$2:$AX$2,'Scenario Input Data Tables'!$D28:$AY28),IF(_xlpm.val="",'Scenario Input Data Tables'!D28,_xlpm.val)), "Check scenario name") -> Argus forward price for 2027 as quoted by Quiggin 2024 | H33: Table 6: | I33: Carbon flow calculations, BECCS (for 1 million tonnes C in pellets)
B34: ='Scenario Input Data Tables'!B29 -> Non-fuel generation cost (gas power, no CCS) ($/kWh) | D34: =IFERROR(_xlfn.LET(_xlpm.val,_xlfn.XLOOKUP($D$4,'Scenario Input Data Tables'!$C$26:$AV$26,'Scenario Input Data Tables'!$C29:$AV29),_xlpm.result,IF(_xlpm.val="",'Scenario Input Data Tables'!C29,_xlpm.val),_xlpm.result), "Check scenario name") -> 0.0142837115 | E34: =IFERROR(_xlfn.LET(_xlpm.val,_xlfn.XLOOKUP($B$4,'Scenario Input Data Tables'!$C$2:$AX$2,'Scenario Input Data Tables'!$D29:$AY29),IF(_xlpm.val="",'Scenario Input Data Tables'!D29,_xlpm.val)), "Check scenario name") -> Fajardy et al. (2021) | J34: Carbon in standing biomass subject to harvest | K34: Quantity of wood subject to harvest | L34: Carbon left in root system | M34: Carbon lost from ancillary saplings | N34: Slash left in forest | O34: Slash harvested from forest | P34: Residues added from outside harvested area | Q34: Carbon in felled wood left in forest | R34: Carbon in felled wood remaining in forest after 30 years | T34: Change in carbon emission from other forest stands, 30 years | U34: Harvested carbon | V34: Slash as fraction of harvested carbon | W34: Carbon lost in processing into pellets | X34: Carbon loss from main harvest, pre-power plant | Z34: Net biogenic carbon emission pre-power plant | AA34: Remaining carbon in pellets used in plant | AB34: Fossil carbon emitted in supply chain | AC34: Carbon release per unit of fuel | AD34: Caloric value of fuel | AE34: Thermal efficiency (no CCS) | AF34: Electricity generated (no CCS) | AG34: CCS energy penalty | AH34: Electricity generation efficiency (with CCS) | AI34: Electricity generated (with CCS) | AJ34: Heat generated | AK34: CO2 capture % | AL34: Carbon released by plant (post-CCS) | AM34: Total carbon geological storage | AN34: Total biogenic C released | AO34: % biogenic carbon lost | AP34: Total biogenic CO2 geologically stored | AQ34: Total biogenic CO2 released | AR34: Fossil emissions in supply chain (kgCO2e) | AS34: Gross CO2 intensity | AT34: CO2 sequestered by harvest-enhanced growth | AU34: Net CO2 released with harvest-enhanced growth | AV34: Net CO2 intensity | AW34: Allocated electricity CO2 intensity (RED) | AX34: Allocated heat CO2 intensity (RED)
B35: ='Scenario Input Data Tables'!B30 -> Non-fuel generation cost (bioenergy, no CCS) ($/kWh) | D35: =IFERROR(_xlfn.LET(_xlpm.val,_xlfn.XLOOKUP($D$4,'Scenario Input Data Tables'!$C$26:$AV$26,'Scenario Input Data Tables'!$C30:$AV30),_xlpm.result,IF(_xlpm.val="",'Scenario Input Data Tables'!C30,_xlpm.val),_xlpm.result), "Check scenario name") -> 0.03421716041 | E35: =IFERROR(_xlfn.LET(_xlpm.val,_xlfn.XLOOKUP($B$4,'Scenario Input Data Tables'!$C$2:$AX$2,'Scenario Input Data Tables'!$D30:$AY30),IF(_xlpm.val="",'Scenario Input Data Tables'!D30,_xlpm.val)), "Check scenario name") -> Fajardy et al. (2021) | I35: Units: | J35: kg C | K35: kg biomass (dry) | L35: kg C | M35: kg C | N35: kg C | O35: kg C | P35: kg C | Q35: % of original standing biomass | R35: kg C | S35: % of original standing biomass | T35: kg C | U35: kg C | V35: % | W35: % of harvested carbon | X35: % of original standing biomass | Y35: kg C | Z35: kg C | AA35: kg C | AB35: kgCO2e | AC35: kg C / kWh, HHV basis | AD35: kWh, HHV | AE35: % | AF35: kWh | AG35: % | AH35: % | AI35: kWh | AJ35: kWh | AK35: % | AL35: kg C | AM35: kg C | AN35: kg C | AO35: % | AP35: kg CO2 | AQ35: kg CO2e | AR35: kg CO2e | AS35: g CO2e / kWh | AT35: kg CO2e | AU35: kg CO2e | AV35: kg CO2e / kWh | AW35: g CO2e / kWh | AX35: g CO2e / kWh
B36: ='Scenario Input Data Tables'!B31 -> Non-fuel CCS cost (gas power, $/tCO2e) | D36: =IFERROR(_xlfn.LET(_xlpm.val,_xlfn.XLOOKUP($D$4,'Scenario Input Data Tables'!$C$26:$AV$26,'Scenario Input Data Tables'!$C31:$AV31),_xlpm.result,IF(_xlpm.val="",'Scenario Input Data Tables'!C31,_xlpm.val),_xlpm.result), "Check scenario name") -> 73.15343629 | E36: =IFERROR(_xlfn.LET(_xlpm.val,_xlfn.XLOOKUP($B$4,'Scenario Input Data Tables'!$C$2:$AX$2,'Scenario Input Data Tables'!$D31:$AY31),IF(_xlpm.val="",'Scenario Input Data Tables'!D31,_xlpm.val)), "Check scenario name") -> Fajardy et al. (2021) | I36: Biomass to electricity | J36: =_xlfn.LET(_xlpm.HC,U36,_xlpm.SR,D20,_xlpm.SH,MIN(1,D21),_xlpm.BS,MAX(0,D21-1),_xlpm.result,U36/((1-RS_frac)*(1-_xlpm.SR+_xlpm.SR*_xlpm.SH+IF(_xlpm.BS=0,0,_xlpm.SR*_xlpm.BS/_xlpm.SH))),_xlpm.result+Ancillary_losses) -> 1983408.748 | K36: =J36*2 -> 3966817.496 | L36: =RS_frac*(J36-Ancillary_losses) -> 346907.994 | M36: =D22*(U36-P36+N36) -> 128205.1282 | N36: =_xlfn.LET(_xlpm.HC, U36, _xlpm.SR, D20, _xlpm.SH, MIN(D21,1), _xlpm.SI, MAX(0,D21-1), _xlpm.wood_harvest, (_xlpm.HC/(1-_xlpm.SR*(1-_xlpm.SH))), _xlpm.slash, _xlpm.wood_harvest*D20, _xlpm.extra_slash, _xlpm.SI*_xlpm.slash, _xlpm.slash*(1-_xlpm.SH)) -> 226244.3439 | O36: =_xlfn.LET(_xlpm.HC,U36,_xlpm.SR,D20,_xlpm.SH,MIN(1,D21),_xlpm.BS,MAX(0,D21-1),_xlpm.result,U36/((1-RS_frac)*(1-_xlpm.SR+_xlpm.SR*_xlpm.SH+IF(_xlpm.BS=0,0,_xlpm.SR*_xlpm.BS/_xlpm.SH))),_xlpm.result*(1-RS_frac)*_xlpm.SR*_xlpm.SH) -> 226244.3439 | P36: =_xlfn.LET(_xlpm.HC,U36,_xlpm.SR,D20,_xlpm.SH,MIN(1,D21),_xlpm.BS,MAX(0,D21-1),_xlpm.result,U36/((1-RS_frac)*(1-_xlpm.SR+_xlpm.SR*_xlpm.SH+IF(_xlpm.BS=0,0,_xlpm.SR*_xlpm.BS/_xlpm.SH))),IF(_xlpm.BS=0,0,_xlpm.result*(1-RS_frac)*_xlpm.SR*_xlpm.BS/_xlpm.SH)) -> 0 | Q36: =SUM(L36:N36)/J36 -> 0.3536121673 | R36: =Slash_remnant*(Ancillary_losses*(1-RS_frac)+N36)+Root_remnant*(Ancillary_losses*RS_frac+L36) -> 74136.61069 | S36: =R36/J36 -> 0.03737838242 | T36: =-(1-Slash_remnant)*P36 -> 0 | U36: =AA36/(1-W36) -> 1282051.282 | V36: =SUM(O36:P36)/U36 -> 0.1764705882 | W36: =D23 -> 0.22 | X36: =1-(1-Q36)*(1-W36) -> 0.4958174905 | Y36: =_xlfn.LET(_xlpm.comment,"Carbon left in forest minus carbon remaining in forest after 30 years",X36*J36) -> 983408.7481 | Z36: =Y36-R36+T36 -> 909272.1374 | AA36: 1000000 | AB36: =D$24/'Background assumptions'!$F$6*AD36/1000 -> 595989.0021 | AC36: ='Background assumptions'!C$10 -> 0.08720747094 | AD36: =AA36/AC36 -> 11466907.47 | AE36: =D$25 -> 0.36 | AF36: =AD36*AE36 -> 4128086.689 | AG36: =D$28 -> 0.1114549845 | AH36: =AE36-D$28 -> 0.2485450155 | AI36: =AH36*AD36 -> 2850042.695 | AJ36: =D26*AD36 -> 0 | AK36: =D$27 -> 0.85 | AL36: =AA36*(1-AK36) -> 150000 | AM36: =AA36-AL36 -> 850000 | AN36: =AL36+Z36 -> 1059272.137 | AO36: =AN36/J36 -> 0.5340664845 | AP36: =AM36*CO2_to_C_ratio -> 3114400 | AQ36: =AN36*CO2_to_C_ratio -> 3881173.112 | AR36: =AB36 -> 595989.0021 | AS36: =(AQ36+AR36)/(AI36+AJ36)*1000 -> 1570.910542 | AT36: =D29*J36*CO2_to_C_ratio -> 2841665.313 | AU36: =(AQ36+AR36)-D$29*J36*CO2_to_C_ratio -> 1635496.801 | AV36: =AU36/(AI36+AJ36)*1000 -> 573.8499299 | AW36: =AU36*(AH36)/(AH36+D26*(CHP_temp)/(CHP_temp+273.15))/AI36*1000 -> 573.8499299 | AX36: =IFERROR(AU36*(D26*(CHP_temp)/(CHP_temp+273.15))/(AH36+D26*(CHP_temp)/(CHP_temp+273.15))/AJ36*1000,"-") -> -
B37: ='Scenario Input Data Tables'!B32 -> Non-fuel CCS cost (bioenergy, $/tCO2e) | D37: =IFERROR(_xlfn.LET(_xlpm.val,_xlfn.XLOOKUP($D$4,'Scenario Input Data Tables'!$C$26:$AV$26,'Scenario Input Data Tables'!$C32:$AV32),_xlpm.result,IF(_xlpm.val="",'Scenario Input Data Tables'!C32,_xlpm.val),_xlpm.result), "Check scenario name") -> 199.5527665 | E37: =IFERROR(_xlfn.LET(_xlpm.val,_xlfn.XLOOKUP($B$4,'Scenario Input Data Tables'!$C$2:$AX$2,'Scenario Input Data Tables'!$D32:$AY32),IF(_xlpm.val="",'Scenario Input Data Tables'!D32,_xlpm.val)), "Check scenario name") -> Fajardy et al. (2021)
H38: Table 6a: | I38: Emissions and removals normalized to 100 tC in wood felled for harvest, BECCS
B39: Natural gas related | D39: Value (grey if based on default) | E39: Source: | J39: CO2 sequestered in harvested trees | K39: Emissions in forest for 30 years from harvest (including from ancillary mortality) | L39: Wood pellet processing and transport biogenic emissions | M39: Fossil emissions pre-power plant | N39: Uncaptured emissions in power plant | O39: Carbon captured by CCS | P39: Harvest-enhanced growth | Q39: Net Emissions | R39: Net emissions per kWh
A40: Natural gas related inputs | B40: Venting/fugitives/ flaring at production site | D40: =IFERROR(_xlfn.LET(_xlpm.val,_xlfn.XLOOKUP($C$4,'Scenario Input Data Tables'!$C$17:$AV$17,'Scenario Input Data Tables'!$C18:$AV18),IF(_xlpm.val="",'Scenario Input Data Tables'!C18,_xlpm.val)), "Check scenario name") -> 0.01 | E40: =IFERROR(_xlfn.LET(_xlpm.val,_xlfn.XLOOKUP($B$4,'Scenario Input Data Tables'!$C$17:$AX$17,'Scenario Input Data Tables'!$D18:$AY18),IF(_xlpm.val="",'Scenario Input Data Tables'!D18,_xlpm.val)), "Check scenario name") -> Indicative | J40: t C | K40: t C | L40: t C | M40: t C | N40: t C | O40: t C | P40: t C | Q40: t C | R40: g CO2e / kWh
B41: Venting/fugitives/ flaring in transport | D41: =IFERROR(_xlfn.LET(_xlpm.val,_xlfn.XLOOKUP($C$4,'Scenario Input Data Tables'!$C$17:$AV$17,'Scenario Input Data Tables'!$C19:$AV19),IF(_xlpm.val="",'Scenario Input Data Tables'!C19,_xlpm.val)), "Check scenario name") -> 0.01 | E41: =IFERROR(_xlfn.LET(_xlpm.val,_xlfn.XLOOKUP($B$4,'Scenario Input Data Tables'!$C$17:$AX$17,'Scenario Input Data Tables'!$D19:$AY19),IF(_xlpm.val="",'Scenario Input Data Tables'!D19,_xlpm.val)), "Check scenario name") -> Indicative | I41: Per 100 tC in wood felled for harvest | J41: =100 -> 100 | K41: =$J$41/J36*(SUM(L36:N36)-R36) -> 31.62337849 | L41: =$J$41/J36*(W36*U36) -> 14.22053232 | M41: =$J$41/J36*(AB36)/CO2_to_C_ratio -> 8.201070707 | N41: =$J$41/J36*(AL36) -> 7.562737643 | O41: =$J$41/J36*(AM36) -> 42.85551331 | P41: =J41*D29 -> 39.1025641 | Q41: =SUM(K41:N41)-P41 -> 22.50515505 | R41: =AU36/SUM(AI36:AJ36)*1000 -> 573.8499299
B42: GHG intensity of supply chain fossil fuel use (excl. CH4 emission) (gCO2e/kWh fuel) | D42: =IFERROR(_xlfn.LET(_xlpm.val,_xlfn.XLOOKUP($C$4,'Scenario Input Data Tables'!$C$17:$AV$17,'Scenario Input Data Tables'!$C20:$AV20),IF(_xlpm.val="",'Scenario Input Data Tables'!C20,_xlpm.val)), "Check scenario name") -> 28.8 | E42: =IFERROR(_xlfn.LET(_xlpm.val,_xlfn.XLOOKUP($B$4,'Scenario Input Data Tables'!$C$17:$AX$17,'Scenario Input Data Tables'!$D20:$AY20),IF(_xlpm.val="",'Scenario Input Data Tables'!D20,_xlpm.val)), "Check scenario name") -> JEC WTW
B43: Natural gas electrical efficiency (no CCS) | D43: =IFERROR(_xlfn.LET(_xlpm.val,_xlfn.XLOOKUP($C$4,'Scenario Input Data Tables'!$C$17:$AV$17,'Scenario Input Data Tables'!$C21:$AV21),IF(_xlpm.val="",'Scenario Input Data Tables'!C21,_xlpm.val)), "Check scenario name") -> 0.6 | E43: =IFERROR(_xlfn.LET(_xlpm.val,_xlfn.XLOOKUP($B$4,'Scenario Input Data Tables'!$C$17:$AX$17,'Scenario Input Data Tables'!$D21:$AY21),IF(_xlpm.val="",'Scenario Input Data Tables'!D21,_xlpm.val)), "Check scenario name") -> CCGT onshore in IPIECA. | H43: Table 7: | I43: Carbon flow calculations, NG-CCS
B44: Natuiral gas heat efficiency (no CCS) | D44: =IFERROR(_xlfn.LET(_xlpm.val,_xlfn.XLOOKUP($C$4,'Scenario Input Data Tables'!$C$17:$AV$17,'Scenario Input Data Tables'!$C22:$AV22),IF(_xlpm.val="",'Scenario Input Data Tables'!C22,_xlpm.val)), "Check scenario name") -> 0 | E44: =IFERROR(_xlfn.LET(_xlpm.val,_xlfn.XLOOKUP($B$4,'Scenario Input Data Tables'!$C$17:$AX$17,'Scenario Input Data Tables'!$D22:$AY22),IF(_xlpm.val="",'Scenario Input Data Tables'!D22,_xlpm.val)), "Check scenario name") -> No CHP | J44: Carbon in natural gas extracted | K44: Quantity of natural gas extracted | T44: Carbon lost to venting/fugitives at production site | U44: Carbon lost to venting/fugitives and for energy in transport | X44: Carbon loss pre-power plant | AA44: Remaining carbon in gas used in plant | AB44: Fossil carbon emitted in supply chain, excl. CH4 | AC44: Carbon release per unit of fuel | AD44: Caloric value of fuel | AE44: Thermal efficiency (no CCS) | AF44: Electricity generated (no CCS) | AG44: CCS energy penalty | AH44: Electricity generation efficiency (with CCS) | AI44: Electricity generated (with CCS) | AJ44: Heat generated | AK44: CO2 capture % | AL44: Carbon released by plant (post-CCS) | AM44: Total carbon geological storage | AN44: Total fossil C released | AO44: % fossil carbon lost | AP44: Total fossil CO2 geologically stored | AQ44: Total fossil CO2 released from plant | AR44: Fossil emissions in supply chain (incl. CH4 losses) | AS44: Total CO2 intensity | AW44: Allocated electricity CO2 intensity (RED) | AX44: Allocated electricity CO2 intensity (RED)
B45: Carbon capture % | D45: =IFERROR(_xlfn.LET(_xlpm.val,_xlfn.XLOOKUP($C$4,'Scenario Input Data Tables'!$C$17:$AV$17,'Scenario Input Data Tables'!$C23:$AV23),IF(_xlpm.val="",'Scenario Input Data Tables'!C23,_xlpm.val)), "Check scenario name") -> 0.85 | E45: =IFERROR(_xlfn.LET(_xlpm.val,_xlfn.XLOOKUP($B$4,'Scenario Input Data Tables'!$C$17:$AX$17,'Scenario Input Data Tables'!$D23:$AY23),IF(_xlpm.val="",'Scenario Input Data Tables'!D23,_xlpm.val)), "Check scenario name") -> Assumption | I45: Units: | J45: kg C | K45: kg natural gas | T45: % | U45: % | X45: % | Y45: kg C | AA45: kg C | AB45: kgCO2e | AC45: kg C / kWh, HHV basis | AD45: kWh, HHV | AE45: % | AF45: kWh | AG45: % | AH45: % | AI45: kWh | AJ45: kWh | AK45: % | AL45: kg C | AM45: kg C | AN45: kg C | AP45: kg CO2 | AQ45: kg CO2e | AR45: kg CO2e | AS45: gCO2e / kWh | AW45: kg CO2e / kWh | AX45: g CO2e / kWh
B46: Carbon capture electrical energy efficiency penalty | D46: =IFERROR(_xlfn.LET(_xlpm.val,_xlfn.XLOOKUP($C$4,'Scenario Input Data Tables'!$C$17:$AV$17,'Scenario Input Data Tables'!$C24:$AV24),IF(_xlpm.val="",'Scenario Input Data Tables'!C24,_xlpm.val)), "Check scenario name") -> 0.0692922724 | E46: =IFERROR(_xlfn.LET(_xlpm.val,_xlfn.XLOOKUP($B$4,'Scenario Input Data Tables'!$C$17:$AX$17,'Scenario Input Data Tables'!$D24:$AY24),IF(_xlpm.val="",'Scenario Input Data Tables'!D24,_xlpm.val)), "Check scenario name") -> Isoli et al. 2025 | I46: Natural gas to electricity | J46: =AA46/(1-U46)/(1-T46) -> 1020304.051 | K46: =J46/0.75 -> 1360405.401 | T46: =D40 -> 0.01 | U46: =D$41 -> 0.01 | X46: =1-(1-T46)*(1-U46) -> 0.0199 | Y46: =X46*J46 -> 20304.05061 | AA46: 1000000 | AB46: =D$42*AD46/1000 -> 458796.5217 | AC46: =0.23/CO2_to_C_ratio -> 0.06277292576 | AD46: =AA46/AC46 -> 15930434.78 | AE46: =D43 -> 0.6 | AF46: =AD46*AE46 -> 9558260.87 | AG46: =D$46 -> 0.0692922724 | AH46: =AE46-D$46 -> 0.5307077276 | AI46: =AH46*AD46 -> 8454404.843 | AJ46: =D44*AD46 -> 0 | AK46: =D$45 -> 0.85 | AL46: =AA46*(1-AK46) -> 150000 | AM46: =AA46-AL46 -> 850000 | AN46: =AL46+Y46 -> 170304.0506 | AO46: =AN46/J46 -> 0.166915 | AP46: =AM46*CO2_to_C_ratio -> 3114400 | AQ46: =AL46*CO2_to_C_ratio -> 549600 | AR46: =AB46+X46*27*J46*16/12 -> 1189742.344 | AS46: =(AQ46+AR46)/(AI46+AJ46)*1000 -> 205.7320859 | AW46: =SUM(AQ46,AR46)*(AH46)/(AH46+D44*(CHP_temp)/(CHP_temp+273.15))/AI46*1000 -> 205.7320859 | AX46: =IFERROR(SUM(AQ46:AR46)*(D44*(CHP_temp)/(CHP_temp+273.15))/(AH46+D44*(CHP_temp)/(CHP_temp+273.15))/AJ46*1000,"-") -> -

Sheet Scenario Input Data Tables
C2: Suggested default | D2: Source | E2: Convert secondary forest to intensive loblolly | F2: Source | G2: Intensive loblolly (USDA) | H2: Source | I2: Loblolly + 50% residues | J2: Source | K2: Northeastern U.S. Forests | L2: Source | M2: U.S. avg | N2: Source | O2: U.S. Douglas Fir | P2: Source | Q2: Germany Average | R2: Source | S2: Global Average | U2: CHP Germany | V2: Source | W2: CHP U.S. Avg. | X2: Source | Y2: CHP (extreme) | Z2: Source | AD2: Source | AF2: Source | AH2: Source | AJ2: Source | AL2: Source | AN2: Source | AP2: Source | AR2: Source | AT2: Source | AV2: Source | AX2: Source
A3: Temporal model | B3: Post-harvest growth | C3: Global | E3: Hoover loblolly | G3: Hoover loblolly | I3: Hoover loblolly | K3: US average | M3: US average | O3: Hoover douglas fir | Q3: Germany | S3: Global | U3: Germany | W3: US average | Y3: Hoover loblolly
B4: Counter-factual growth | C4: Global | E4: Hoover oak hickory | G4: Hoover loblolly | I4: Hoover loblolly | K4: US average | M4: US average | O4: Hoover douglas fir | Q4: Germany | S4: Global | U4: Germany | W4: US average | Y4: Hoover loblolly
A5: Biomass related inputs | B5: Root:shoot ratio (expressed as ratio with colon or as % of roots in total wood) | C5: 23:100 | D5: Huang et al., Earth Syst. Sci. Data, 13, 4263–4274, 2021 | I5: =$C$5 -> 23:100 | K5: 18.4:100 | L5: U.S. Forest Inventory data analyzed by Canham using SORTIE Model (SORTIE) | M5: =C5 -> 23:100 | N5: Peng et al. Nature (2023)
B6: % slash (slash rate of ABG carbon) | C6: 0.3 | D6: IPCC rates based on biomass expansion factors as calculated globally using CHARM model (Peng et. al 2023) | E6: 0.3 | F6: Author calculations based on biomass allocation equations in Zhao et al. (2015) | G6: 0.2 | H6: Author calculations based on biomass allocation equations in Zhao et al. (2015) | I6: 0.2 | J6: Author calculations based on biomass allocation equations in Zhao et al. (2015) | K6: 0.3694 | L6: SORTIE | Y6: 0.2
B7: % of slash harvested | C7: 0.5 | D7: assumed from residue retention recommendations | I7: 2.5 | W7: 1 | Y7: 2.5 | Z7: Assume high slash harvest
B8: Carbon loss from ancillary sapling mortality (as % of harvested wood) | C8: 0.085 | D8: SORTIE model analysis of northeastern U.S. | E8: 0.043 | G8: 0.043 | I8: 0.043 | M8: 0.07 | Q8: 0.043
B9: Carbon lost in bark and processing into pellets | C9: 0.22 | D9: Röder et al. (2015)
B10: GHG intensity of supply chain fossil fuel use (kgCO2e/tonne fuel) | C10: 268 | D10: Röder et al. (2015)
B11: Biomass power efficiency (no CCS) | C11: 0.36 | D11: Quiggins estimate of Drax average | U11: 0.3 | V11: Assumption | W11: 0.3 | X11: Assumption | Y11: 0.35 | Z11: Assumption
B12: Biomass heat efficiency for CHP (no CCS). Set to zero for electricity production only. | C12: 0 | D12: No CHP | U12: 0.45 | V12: Assumption | W12: 0.45 | X12: Assumption | Y12: 0.45 | Z12: Assumption
B13: Carbon capture % | C13: 0.85 | D13: Assumption | Y13: 0.9 | Z13: Assume high capture efficiency
B14: Carbon capture energy efficiency penalty | C14: ='Isoli 2025'!S41 -> 0.1114549845 | D14: Isoli et al. 2025 | I14: 0.111 | U14: 0.0555 | W14: 0.0555 | Y14: 0.0555
B15: Harvest-enhanced growth as fraction of harvest (undisturbed growth as baseline) | C15: =IFERROR(_xlfn.LET(_xlpm.result,INDEX(CHARM_results,MATCH('CHARM results'!$B$12,INDEX(CHARM_results,,1),0),MATCH(_xlfn.XLOOKUP(C$2,INDEX(Input_case_CHARM_translation,1,),INDEX(Input_case_CHARM_translation,2,)),INDEX(CHARM_results,1,),0)),_xlpm.result),"") -> 0.391025641 | D15: Highly variable. Initial global average calculation using CHARM (combines secondary forest + plantations) | E15: 0.38 | F15: Hoover et al. (2021) Tables A46 and A21 | G15: 0.57 | H15: Hoover, Bagdon & Gagnon (2021) Table A44 | I15: 0.57 | J15: Calculations from CHARM model used in Peng et al. Nature (2023) and shown in Global Land Squeeze (WRI 2023) | K15: 0 | L15: SORTIE | M15: 0.39 | N15: CHARM | O15: 0.31 | P15: Hoover, Bagdon & Gagnon (2021) Table A21 | Q15: =IFERROR(_xlfn.LET(_xlpm.result,INDEX(CHARM_results,MATCH('CHARM results'!$B$12,INDEX(CHARM_results,,1),0),MATCH(_xlfn.XLOOKUP(Q$2,INDEX(Input_case_CHARM_translation,1,),INDEX(Input_case_CHARM_translation,2,)),INDEX(CHARM_results,1,),0)),_xlpm.result),"") -> 0.1778916545 | R15: CHARM | S15: 0.39 | T15: CHARM | U15: =Q15 -> 0.1778916545 | W15: 0.36 | Y15: 0.6 | AC15: =IFERROR(_xlfn.LET(_xlpm.result,INDEX(CHARM_results,MATCH('CHARM results'!$B$12,INDEX(CHARM_results,,1),0),MATCH(_xlfn.XLOOKUP(AC$2,INDEX(Input_case_CHARM_translation,1,),INDEX(Input_case_CHARM_translation,2,)),INDEX(CHARM_results,1,),0)),_xlpm.result),"") ->  | AE15: =IFERROR(_xlfn.LET(_xlpm.result,INDEX(CHARM_results,MATCH('CHARM results'!$B$12,INDEX(CHARM_results,,1),0),MATCH(_xlfn.XLOOKUP(AE$2,INDEX(Input_case_CHARM_translation,1,),INDEX(Input_case_CHARM_translation,2,)),INDEX(CHARM_results,1,),0)),_xlpm.result),"") ->  | AG15: =IFERROR(_xlfn.LET(_xlpm.result,INDEX(CHARM_results,MATCH('CHARM results'!$B$12,INDEX(CHARM_results,,1),0),MATCH(_xlfn.XLOOKUP(AG$2,INDEX(Input_case_CHARM_translation,1,),INDEX(Input_case_CHARM_translation,2,)),INDEX(CHARM_results,1,),0)),_xlpm.result),"") ->  | AI15: =IFERROR(_xlfn.LET(_xlpm.result,INDEX(CHARM_results,MATCH('CHARM results'!$B$12,INDEX(CHARM_results,,1),0),MATCH(_xlfn.XLOOKUP(AI$2,INDEX(Input_case_CHARM_translation,1,),INDEX(Input_case_CHARM_translation,2,)),INDEX(CHARM_results,1,),0)),_xlpm.result),"") ->  | AK15: =IFERROR(_xlfn.LET(_xlpm.result,INDEX(CHARM_results,MATCH('CHARM results'!$B$12,INDEX(CHARM_results,,1),0),MATCH(_xlfn.XLOOKUP(AK$2,INDEX(Input_case_CHARM_translation,1,),INDEX(Input_case_CHARM_translation,2,)),INDEX(CHARM_results,1,),0)),_xlpm.result),"") ->  | AM15: =IFERROR(_xlfn.LET(_xlpm.result,INDEX(CHARM_results,MATCH('CHARM results'!$B$12,INDEX(CHARM_results,,1),0),MATCH(_xlfn.XLOOKUP(AM$2,INDEX(Input_case_CHARM_translation,1,),INDEX(Input_case_CHARM_translation,2,)),INDEX(CHARM_results,1,),0)),_xlpm.result),"") ->  | AO15: =IFERROR(_xlfn.LET(_xlpm.result,INDEX(CHARM_results,MATCH('CHARM results'!$B$12,INDEX(CHARM_results,,1),0),MATCH(_xlfn.XLOOKUP(AO$2,INDEX(Input_case_CHARM_translation,1,),INDEX(Input_case_CHARM_translation,2,)),INDEX(CHARM_results,1,),0)),_xlpm.result),"") ->  | AQ15: =IFERROR(_xlfn.LET(_xlpm.result,INDEX(CHARM_results,MATCH('CHARM results'!$B$12,INDEX(CHARM_results,,1),0),MATCH(_xlfn.XLOOKUP(AQ$2,INDEX(Input_case_CHARM_translation,1,),INDEX(Input_case_CHARM_translation,2,)),INDEX(CHARM_results,1,),0)),_xlpm.result),"") ->  | AS15: =IFERROR(_xlfn.LET(_xlpm.result,INDEX(CHARM_results,MATCH('CHARM results'!$B$12,INDEX(CHARM_results,,1),0),MATCH(_xlfn.XLOOKUP(AS$2,INDEX(Input_case_CHARM_translation,1,),INDEX(Input_case_CHARM_translation,2,)),INDEX(CHARM_results,1,),0)),_xlpm.result),"") ->  | AU15: =IFERROR(_xlfn.LET(_xlpm.result,INDEX(CHARM_results,MATCH('CHARM results'!$B$12,INDEX(CHARM_results,,1),0),MATCH(_xlfn.XLOOKUP(AU$2,INDEX(Input_case_CHARM_translation,1,),INDEX(Input_case_CHARM_translation,2,)),INDEX(CHARM_results,1,),0)),_xlpm.result),"") ->  | AW15: =IFERROR(_xlfn.LET(_xlpm.result,INDEX(CHARM_results,MATCH('CHARM results'!$B$12,INDEX(CHARM_results,,1),0),MATCH(_xlfn.XLOOKUP(AW$2,INDEX(Input_case_CHARM_translation,1,),INDEX(Input_case_CHARM_translation,2,)),INDEX(CHARM_results,1,),0)),_xlpm.result),"") -> 
B17: Natural gas related | C17: Suggested default | D17: Source | E17: High losses | F17: Source | G17: High GHG intensity in supply chain | H17: Source | I17: CHP | J17: Source | K17: CHP extreme | L17: Source | N17: Source | P17: Source | R17: Source | T17: Source | V17: Source | X17: Source | Z17: Source | AB17: Source | AD17: Source | AF17: Source | AH17: Source | AJ17: Source | AL17: Source | AN17: Source | AP17: Source | AR17: Source | AT17: Source | AV17: Source
A18: Natural gas related inputs | B18: Venting/fugitives/ flaring at production site | C18: 0.01 | D18: Indicative | E18: 0.03 | F18: Indicative (three times default)
B19: Venting/fugitives/ flaring in transport | C19: 0.01 | D19: Indicative | E19: 0.02 | F19: Indicative (twice default)
B20: GHG intensity of supply chain fossil fuel use (excl. CH4 emission) (gCO2e/kWh fuel) | C20: 28.8 | D20: JEC WTW | G20: =C20*1.4 -> 40.32 | H20: Indicative (40% above default)
B21: Natural gas power efficiency (no CCS) | C21: 0.6 | D21: CCGT onshore in IPIECA. | I21: 0.5 | J21: Indicative | K21: 0.45 | L21: Indicative
B22: Natural gas heat efficiency for CHP (no CCS). Set to zero for electricity production only. | C22: 0 | D22: No CHP | I22: 0.35 | J22: Indicative | K22: 0.45 | L22: Indicative
B23: Carbon capture % | C23: 0.85 | D23: Assumption | I23: 0.85 | J23: Indicative | K23: 0.9 | L23: Indicative
B24: Carbon capture energy efficiency penalty | C24: ='Isoli 2025'!S40 -> 0.0692922724 | D24: Isoli et al. 2025 | I24: 0.0345 | J24: Assumed half of power only | K24: 0.0345 | L24: Assumed half of power only
B26: Prices | C26: Suggested default | D26: Source | E26: Low gas price, low pellet price | F26: Source | G26: High gas price, high pellet price | H26: Source | I26: Low gas price, high pellet price | J26: Source | K26: High gas price, low pellet price | L26: Source | M26: Low CCS cost | N26: Source | P26: Source | R26: Source | T26: Source | V26: Source | X26: Source | Z26: Source | AB26: Source | AD26: Source | AF26: Source | AH26: Source | AJ26: Source | AL26: Source | AN26: Source | AP26: Source | AR26: Source | AT26: Source | AV26: Source
A27: Price related inputs | B27: Gas price ($/MWh) | C27: 39.13043478 | D27: EU Commission, wholesale price Q1 2025 | E27: =C27/1.5 -> 26.08695652 | F27: Indicative (50% below default) | G27: =C27*1.5 -> 58.69565217 | H27: Indicative (50% above default) | I27: =E27 -> 26.08695652 | J27: Indicative (50% below default) | K27: =G27 -> 58.69565217 | L27: Indicative (50% above default)
B28: Wood pellet price ($/tonne) | C28: 208.5 | D28: Argus forward price for 2027 as quoted by Quiggin 2024 | E28: =C28/1.5 -> 139 | F28: Indicative (50% below default) | G28: =C28*1.5 -> 312.75 | H28: Indicative (50% above default) | I28: =G28 -> 312.75 | J28: Indicative (50% above default) | K28: =E28 -> 139 | L28: Indicative (50% below default)
B29: Non-fuel generation cost (gas power, no CCS) ($/kWh) | C29: =SUM('Fajardy 2021 cost data'!P43:P45,'Fajardy 2021 cost data'!P47:P48) -> 0.0142837115 | D29: Fajardy et al. (2021)
B30: Non-fuel generation cost (bioenergy, no CCS) ($/kWh) | C30: =SUM('Fajardy 2021 cost data'!R43:R45,'Fajardy 2021 cost data'!R47:R48) -> 0.03421716041 | D30: Fajardy et al. (2021)
B31: Non-fuel CCS cost (gas power, $/tCO2e) | C31: ='Fajardy 2021 cost data'!S37 -> 73.15343629 | D31: Fajardy et al. (2021) | M31: =C31/2 -> 36.57671814 | N31: Indicative (50% below default)
B32: Non-fuel CCS cost (bioenergy, $/tCO2e) | C32: ='Fajardy 2021 cost data'!W37 -> 199.5527665 | D32: Fajardy et al. (2021) | M32: =C32/2 -> 99.77638326 | N32: Indicative (50% below default)
B35: References: | C35: Brown, M., et al., Net carbon sequestration implications of intensified timber harvest in Northeastern U.S. forests. Ecosphere 15, e4758 (2024).
C37: European Commission, Report on Energy Prices and Costs in Europe (2025)
C39: Hoover, C. M., Bagdon, B. & Gagnon, A. Standard Estimates of Forest Ecosystem Carbon for Forest Types of the United States. 1–158 (2021)
C41: IPIECA, Combined Cycle Gas-Turbines: Energy Efficiency Compendium. (London, 2022).
C43: Pröll, T. & Zerobin, F. Biomass-based negative emission technology options with combined heat and power generation. Mitig Adapt Strateg Glob Change 24, 1307–1324 (2019).
C45: Fajardy, M. et al. The economics of bioenergy with carbon capture and storage (BECCS) deployment in a 1.5 °C or 2 °C world. Global Environmental Change 68, 102262 (2021).
C47: Peng, L., Searchinger, T. D., Zionts, J. & R. Waite, The carbon costs of global wood harvests. Nature 620, 110–115 (2023).
C49: Quiggin, D. BECCS Deployment: The Risks of Policies Forging Ahead of the Evidence (2021).
C51: Röder, M., Whittaker, C. & Thornley, P. How certain are greenhouse gas reductions from bioenergy? Life cycle assessment and uncertainty analysis of wood pellet-to-electricity supply chains from forest residues. Biomass and Bioenergy 79, 50–63 (2015).
C53: Zhao, D., M. Kane, D. Markewitz, R. Teskey, Ratio Equations for Loblolly Pine Trees, in New Directions in Inventory Techniques & Applications Forest Inventory & Analysis (FIA) Symposium 2015 (PNW-GTW-931, 2015) pp. 36-38)

Sheet Saved data
A1: =TRANSPOSE(IF((P1:BB13)="","",P1:BB13)) -> Active scenario result | E1: Suggested default Suggested default Suggested default | F1: Net GHG Intensity of NG (No CCS) | G1: Net GHG intensity of NG-CCS | H1: Net GHG Intensity of Bioenergy (no CCS) | I1: Net GHG intensity of BECCS | J1: Incremental cost of BECCS over NG power | K1: Mitigation cost for BECCS rel to NG (no CCS) | L1: Mitigation cost for BECCS rel to NG (with CCS) | M1: BECCS cost compared to NG-CCS cost | P1: Active scenario result | U1: Select recorded scenario results to compare (repeated scenario selections will show as blank): | BD1: Chart data for paper
U2: Biomass scenario | V2: Global Average | W2: U.S. avg | X2: Northeastern U.S. Forests | Y2: Germany Average | Z2: U.S. Douglas Fir | AA2: Convert secondary forest to intensive loblolly | AB2: Intensive loblolly (USDA) | AC2: Loblolly + 50% residues | AD2: CHP Germany | AE2: CHP U.S. Avg. | AF2: CHP (extreme) | AG2: Suggested default | AH2: Suggested default | AI2: Suggested default | AJ2: Suggested default | AK2: Suggested default | AL2: Suggested default | AM2: Suggested default | AN2: Suggested default | AO2: Suggested default | AP2: Suggested default | AQ2: Suggested default | AR2: Suggested default | AS2: Suggested default | AT2: Suggested default | AU2: Suggested default | AV2: Suggested default | AW2: Suggested default | AX2: Suggested default | AY2: Suggested default | AZ2: Suggested default | BA2: Suggested default | BB2: Suggested default | BE2: =INDEX('Chart selection'!$C$3:$E$12,TRUNC((COLUMNS($BE6:BE6)-1)/4,0)+1,(ROWS(BD$2:BD2))) -> CHP U.S. Avg. | BF2: =INDEX('Chart selection'!$C$3:$E$12,TRUNC((COLUMNS($BE6:BF6)-1)/4,0)+1,(ROWS(BE$2:BE2))) -> CHP U.S. Avg. | BG2: =INDEX('Chart selection'!$C$3:$E$12,TRUNC((COLUMNS($BE6:BG6)-1)/4,0)+1,(ROWS(BF$2:BF2))) -> CHP U.S. Avg. | BH2: =INDEX('Chart selection'!$C$3:$E$12,TRUNC((COLUMNS($BE6:BH6)-1)/4,0)+1,(ROWS(BG$2:BG2))) -> CHP U.S. Avg. | BI2: =INDEX('Chart selection'!$C$3:$E$12,TRUNC((COLUMNS($BE6:BI6)-1)/4,0)+1,(ROWS(BH$2:BH2))) -> CHP Germany | BJ2: =INDEX('Chart selection'!$C$3:$E$12,TRUNC((COLUMNS($BE6:BJ6)-1)/4,0)+1,(ROWS(BI$2:BI2))) -> CHP Germany | BK2: =INDEX('Chart selection'!$C$3:$E$12,TRUNC((COLUMNS($BE6:BK6)-1)/4,0)+1,(ROWS(BJ$2:BJ2))) -> CHP Germany | BL2: =INDEX('Chart selection'!$C$3:$E$12,TRUNC((COLUMNS($BE6:BL6)-1)/4,0)+1,(ROWS(BK$2:BK2))) -> CHP Germany | BM2: =INDEX('Chart selection'!$C$3:$E$12,TRUNC((COLUMNS($BE6:BM6)-1)/4,0)+1,(ROWS(BL$2:BL2))) -> CHP (extreme) | BN2: =INDEX('Chart selection'!$C$3:$E$12,TRUNC((COLUMNS($BE6:BN6)-1)/4,0)+1,(ROWS(BM$2:BM2))) -> CHP (extreme) | BO2: =INDEX('Chart selection'!$C$3:$E$12,TRUNC((COLUMNS($BE6:BO6)-1)/4,0)+1,(ROWS(BN$2:BN2))) -> CHP (extreme) | BP2: =INDEX('Chart selection'!$C$3:$E$12,TRUNC((COLUMNS($BE6:BP6)-1)/4,0)+1,(ROWS(BO$2:BO2))) -> CHP (extreme) | BQ2: =INDEX('Chart selection'!$C$3:$E$12,TRUNC((COLUMNS($BE6:BQ6)-1)/4,0)+1,(ROWS(BP$2:BP2))) -> Convert secondary forest to intensive loblolly | BR2: =INDEX('Chart selection'!$C$3:$E$12,TRUNC((COLUMNS($BE6:BR6)-1)/4,0)+1,(ROWS(BQ$2:BQ2))) -> Convert secondary forest to intensive loblolly | BS2: =INDEX('Chart selection'!$C$3:$E$12,TRUNC((COLUMNS($BE6:BS6)-1)/4,0)+1,(ROWS(BR$2:BR2))) -> Convert secondary forest to intensive loblolly | BT2: =INDEX('Chart selection'!$C$3:$E$12,TRUNC((COLUMNS($BE6:BT6)-1)/4,0)+1,(ROWS(BS$2:BS2))) -> Convert secondary forest to intensive loblolly | BU2: =INDEX('Chart selection'!$C$3:$E$12,TRUNC((COLUMNS($BE6:BU6)-1)/4,0)+1,(ROWS(BT$2:BT2))) -> U.S. avg | BV2: =INDEX('Chart selection'!$C$3:$E$12,TRUNC((COLUMNS($BE6:BV6)-1)/4,0)+1,(ROWS(BU$2:BU2))) -> U.S. avg | BW2: =INDEX('Chart selection'!$C$3:$E$12,TRUNC((COLUMNS($BE6:BW6)-1)/4,0)+1,(ROWS(BV$2:BV2))) -> U.S. avg | BX2: =INDEX('Chart selection'!$C$3:$E$12,TRUNC((COLUMNS($BE6:BX6)-1)/4,0)+1,(ROWS(BW$2:BW2))) -> U.S. avg | BY2: =INDEX('Chart selection'!$C$3:$E$12,TRUNC((COLUMNS($BE6:BY6)-1)/4,0)+1,(ROWS(BX$2:BX2))) -> Global Average | BZ2: =INDEX('Chart selection'!$C$3:$E$12,TRUNC((COLUMNS($BE6:BZ6)-1)/4,0)+1,(ROWS(BY$2:BY2))) -> Global Average | CA2: =INDEX('Chart selection'!$C$3:$E$12,TRUNC((COLUMNS($BE6:CA6)-1)/4,0)+1,(ROWS(BZ$2:BZ2))) -> Global Average | CB2: =INDEX('Chart selection'!$C$3:$E$12,TRUNC((COLUMNS($BE6:CB6)-1)/4,0)+1,(ROWS(CA$2:CA2))) -> Global Average | CC2: =INDEX('Chart selection'!$C$3:$E$12,TRUNC((COLUMNS($BE6:CC6)-1)/4,0)+1,(ROWS(CB$2:CB2))) -> U.S. Douglas Fir | CD2: =INDEX('Chart selection'!$C$3:$E$12,TRUNC((COLUMNS($BE6:CD6)-1)/4,0)+1,(ROWS(CC$2:CC2))) -> U.S. Douglas Fir | CE2: =INDEX('Chart selection'!$C$3:$E$12,TRUNC((COLUMNS($BE6:CE6)-1)/4,0)+1,(ROWS(CD$2:CD2))) -> U.S. Douglas Fir | CF2: =INDEX('Chart selection'!$C$3:$E$12,TRUNC((COLUMNS($BE6:CF6)-1)/4,0)+1,(ROWS(CE$2:CE2))) -> U.S. Douglas Fir | CG2: =INDEX('Chart selection'!$C$3:$E$12,TRUNC((COLUMNS($BE6:CG6)-1)/4,0)+1,(ROWS(CF$2:CF2))) -> Germany Average | CH2: =INDEX('Chart selection'!$C$3:$E$12,TRUNC((COLUMNS($BE6:CH6)-1)/4,0)+1,(ROWS(CG$2:CG2))) -> Germany Average | CI2: =INDEX('Chart selection'!$C$3:$E$12,TRUNC((COLUMNS($BE6:CI6)-1)/4,0)+1,(ROWS(CH$2:CH2))) -> Germany Average | CJ2: =INDEX('Chart selection'!$C$3:$E$12,TRUNC((COLUMNS($BE6:CJ6)-1)/4,0)+1,(ROWS(CI$2:CI2))) -> Germany Average | CK2: =INDEX('Chart selection'!$C$3:$E$12,TRUNC((COLUMNS($BE6:CK6)-1)/4,0)+1,(ROWS(CJ$2:CJ2))) -> Intensive loblolly (USDA) | CL2: =INDEX('Chart selection'!$C$3:$E$12,TRUNC((COLUMNS($BE6:CL6)-1)/4,0)+1,(ROWS(CK$2:CK2))) -> Intensive loblolly (USDA) | CM2: =INDEX('Chart selection'!$C$3:$E$12,TRUNC((COLUMNS($BE6:CM6)-1)/4,0)+1,(ROWS(CL$2:CL2))) -> Intensive loblolly (USDA) | CN2: =INDEX('Chart selection'!$C$3:$E$12,TRUNC((COLUMNS($BE6:CN6)-1)/4,0)+1,(ROWS(CM$2:CM2))) -> Intensive loblolly (USDA) | CO2: =INDEX('Chart selection'!$C$3:$E$12,TRUNC((COLUMNS($BE6:CO6)-1)/4,0)+1,(ROWS(CN$2:CN2))) -> Northeastern U.S. Forests | CP2: =INDEX('Chart selection'!$C$3:$E$12,TRUNC((COLUMNS($BE6:CP6)-1)/4,0)+1,(ROWS(CO$2:CO2))) -> Northeastern U.S. Forests | CQ2: =INDEX('Chart selection'!$C$3:$E$12,TRUNC((COLUMNS($BE6:CQ6)-1)/4,0)+1,(ROWS(CP$2:CP2))) -> Northeastern U.S. Forests | CR2: =INDEX('Chart selection'!$C$3:$E$12,TRUNC((COLUMNS($BE6:CR6)-1)/4,0)+1,(ROWS(CQ$2:CQ2))) -> Northeastern U.S. Forests
U3: NG scenario | V3: Suggested default | W3: Suggested default | X3: Suggested default | Y3: Suggested default | Z3: Suggested default | AA3: Suggested default | AB3: Suggested default | AC3: Suggested default | AD3: CHP | AE3: CHP | AF3: CHP extreme | AG3: Suggested default | AH3: Suggested default | AI3: Suggested default | AJ3: Suggested default | AK3: Suggested default | AL3: Suggested default | AM3: Suggested default | AN3: Suggested default | AO3: Suggested default | AP3: Suggested default | AQ3: Suggested default | AR3: Suggested default | AS3: Suggested default | AT3: Suggested default | AU3: Suggested default | AV3: Suggested default | AW3: Suggested default | AX3: Suggested default | AY3: Suggested default | AZ3: Suggested default | BA3: Suggested default | BB3: Suggested default | BE3: =INDEX('Chart selection'!$C$3:$E$12,TRUNC((COLUMNS($BE2:BE2)-1)/4,0)+1,(ROWS(BD$2:BD3))) -> CHP | BF3: =INDEX('Chart selection'!$C$3:$E$12,TRUNC((COLUMNS($BE2:BF2)-1)/4,0)+1,(ROWS(BE$2:BE3))) -> CHP | BG3: =INDEX('Chart selection'!$C$3:$E$12,TRUNC((COLUMNS($BE2:BG2)-1)/4,0)+1,(ROWS(BF$2:BF3))) -> CHP | BH3: =INDEX('Chart selection'!$C$3:$E$12,TRUNC((COLUMNS($BE2:BH2)-1)/4,0)+1,(ROWS(BG$2:BG3))) -> CHP | BI3: =INDEX('Chart selection'!$C$3:$E$12,TRUNC((COLUMNS($BE2:BI2)-1)/4,0)+1,(ROWS(BH$2:BH3))) -> CHP | BJ3: =INDEX('Chart selection'!$C$3:$E$12,TRUNC((COLUMNS($BE2:BJ2)-1)/4,0)+1,(ROWS(BI$2:BI3))) -> CHP | BK3: =INDEX('Chart selection'!$C$3:$E$12,TRUNC((COLUMNS($BE2:BK2)-1)/4,0)+1,(ROWS(BJ$2:BJ3))) -> CHP | BL3: =INDEX('Chart selection'!$C$3:$E$12,TRUNC((COLUMNS($BE2:BL2)-1)/4,0)+1,(ROWS(BK$2:BK3))) -> CHP | BM3: =INDEX('Chart selection'!$C$3:$E$12,TRUNC((COLUMNS($BE2:BM2)-1)/4,0)+1,(ROWS(BL$2:BL3))) -> CHP extreme | BN3: =INDEX('Chart selection'!$C$3:$E$12,TRUNC((COLUMNS($BE2:BN2)-1)/4,0)+1,(ROWS(BM$2:BM3))) -> CHP extreme | BO3: =INDEX('Chart selection'!$C$3:$E$12,TRUNC((COLUMNS($BE2:BO2)-1)/4,0)+1,(ROWS(BN$2:BN3))) -> CHP extreme | BP3: =INDEX('Chart selection'!$C$3:$E$12,TRUNC((COLUMNS($BE2:BP2)-1)/4,0)+1,(ROWS(BO$2:BO3))) -> CHP extreme | BQ3: =INDEX('Chart selection'!$C$3:$E$12,TRUNC((COLUMNS($BE2:BQ2)-1)/4,0)+1,(ROWS(BP$2:BP3))) -> Suggested default | BR3: =INDEX('Chart selection'!$C$3:$E$12,TRUNC((COLUMNS($BE2:BR2)-1)/4,0)+1,(ROWS(BQ$2:BQ3))) -> Suggested default | BS3: =INDEX('Chart selection'!$C$3:$E$12,TRUNC((COLUMNS($BE2:BS2)-1)/4,0)+1,(ROWS(BR$2:BR3))) -> Suggested default | BT3: =INDEX('Chart selection'!$C$3:$E$12,TRUNC((COLUMNS($BE2:BT2)-1)/4,0)+1,(ROWS(BS$2:BS3))) -> Suggested default | BU3: =INDEX('Chart selection'!$C$3:$E$12,TRUNC((COLUMNS($BE2:BU2)-1)/4,0)+1,(ROWS(BT$2:BT3))) -> Suggested default | BV3: =INDEX('Chart selection'!$C$3:$E$12,TRUNC((COLUMNS($BE2:BV2)-1)/4,0)+1,(ROWS(BU$2:BU3))) -> Suggested default | BW3: =INDEX('Chart selection'!$C$3:$E$12,TRUNC((COLUMNS($BE2:BW2)-1)/4,0)+1,(ROWS(BV$2:BV3))) -> Suggested default | BX3: =INDEX('Chart selection'!$C$3:$E$12,TRUNC((COLUMNS($BE2:BX2)-1)/4,0)+1,(ROWS(BW$2:BW3))) -> Suggested default | BY3: =INDEX('Chart selection'!$C$3:$E$12,TRUNC((COLUMNS($BE2:BY2)-1)/4,0)+1,(ROWS(BX$2:BX3))) -> Suggested default | BZ3: =INDEX('Chart selection'!$C$3:$E$12,TRUNC((COLUMNS($BE2:BZ2)-1)/4,0)+1,(ROWS(BY$2:BY3))) -> Suggested default | CA3: =INDEX('Chart selection'!$C$3:$E$12,TRUNC((COLUMNS($BE2:CA2)-1)/4,0)+1,(ROWS(BZ$2:BZ3))) -> Suggested default | CB3: =INDEX('Chart selection'!$C$3:$E$12,TRUNC((COLUMNS($BE2:CB2)-1)/4,0)+1,(ROWS(CA$2:CA3))) -> Suggested default | CC3: =INDEX('Chart selection'!$C$3:$E$12,TRUNC((COLUMNS($BE2:CC2)-1)/4,0)+1,(ROWS(CB$2:CB3))) -> Suggested default | CD3: =INDEX('Chart selection'!$C$3:$E$12,TRUNC((COLUMNS($BE2:CD2)-1)/4,0)+1,(ROWS(CC$2:CC3))) -> Suggested default | CE3: =INDEX('Chart selection'!$C$3:$E$12,TRUNC((COLUMNS($BE2:CE2)-1)/4,0)+1,(ROWS(CD$2:CD3))) -> Suggested default | CF3: =INDEX('Chart selection'!$C$3:$E$12,TRUNC((COLUMNS($BE2:CF2)-1)/4,0)+1,(ROWS(CE$2:CE3))) -> Suggested default | CG3: =INDEX('Chart selection'!$C$3:$E$12,TRUNC((COLUMNS($BE2:CG2)-1)/4,0)+1,(ROWS(CF$2:CF3))) -> Suggested default | CH3: =INDEX('Chart selection'!$C$3:$E$12,TRUNC((COLUMNS($BE2:CH2)-1)/4,0)+1,(ROWS(CG$2:CG3))) -> Suggested default | CI3: =INDEX('Chart selection'!$C$3:$E$12,TRUNC((COLUMNS($BE2:CI2)-1)/4,0)+1,(ROWS(CH$2:CH3))) -> Suggested default | CJ3: =INDEX('Chart selection'!$C$3:$E$12,TRUNC((COLUMNS($BE2:CJ2)-1)/4,0)+1,(ROWS(CI$2:CI3))) -> Suggested default | CK3: =INDEX('Chart selection'!$C$3:$E$12,TRUNC((COLUMNS($BE2:CK2)-1)/4,0)+1,(ROWS(CJ$2:CJ3))) -> Suggested default | CL3: =INDEX('Chart selection'!$C$3:$E$12,TRUNC((COLUMNS($BE2:CL2)-1)/4,0)+1,(ROWS(CK$2:CK3))) -> Suggested default | CM3: =INDEX('Chart selection'!$C$3:$E$12,TRUNC((COLUMNS($BE2:CM2)-1)/4,0)+1,(ROWS(CL$2:CL3))) -> Suggested default | CN3: =INDEX('Chart selection'!$C$3:$E$12,TRUNC((COLUMNS($BE2:CN2)-1)/4,0)+1,(ROWS(CM$2:CM3))) -> Suggested default | CO3: =INDEX('Chart selection'!$C$3:$E$12,TRUNC((COLUMNS($BE2:CO2)-1)/4,0)+1,(ROWS(CN$2:CN3))) -> Suggested default | CP3: =INDEX('Chart selection'!$C$3:$E$12,TRUNC((COLUMNS($BE2:CP2)-1)/4,0)+1,(ROWS(CO$2:CO3))) -> Suggested default | CQ3: =INDEX('Chart selection'!$C$3:$E$12,TRUNC((COLUMNS($BE2:CQ2)-1)/4,0)+1,(ROWS(CP$2:CP3))) -> Suggested default | CR3: =INDEX('Chart selection'!$C$3:$E$12,TRUNC((COLUMNS($BE2:CR2)-1)/4,0)+1,(ROWS(CQ$2:CQ3))) -> Suggested default
E4: Value: | F4: 507.806013 | G4: 205.7320859 | H4: 1150.629131 | I4: 573.8499299 | J4: 0.2912741021 | K4: No saving | L4: No saving | M4: 2.603494562 | U4: Cost scenario | V4: Suggested default | W4: Suggested default | X4: Suggested default | Y4: Suggested default | Z4: Suggested default | AA4: Suggested default | AB4: Suggested default | AC4: Suggested default | AD4: Suggested default | AE4: Suggested default | AF4: Suggested default | AG4: Suggested default | AH4: High gas price, low pellet price | AI4: Suggested default | AJ4: Suggested default | AK4: Suggested default | AL4: Suggested default | AM4: Suggested default | AN4: Suggested default | AO4: Suggested default | AP4: Suggested default | AQ4: Suggested default | AR4: Suggested default | AS4: Suggested default | AT4: Suggested default | AU4: Suggested default | AV4: Suggested default | AW4: Suggested default | AX4: Suggested default | AY4: Suggested default | AZ4: Suggested default | BA4: Suggested default | BB4: Suggested default | BE4: =INDEX('Chart selection'!$C$3:$E$12,TRUNC((COLUMNS($BE3:BE3)-1)/4,0)+1,(ROWS(BD$2:BD4))) -> Suggested default | BF4: =INDEX('Chart selection'!$C$3:$E$12,TRUNC((COLUMNS($BE3:BF3)-1)/4,0)+1,(ROWS(BE$2:BE4))) -> Suggested default | BG4: =INDEX('Chart selection'!$C$3:$E$12,TRUNC((COLUMNS($BE3:BG3)-1)/4,0)+1,(ROWS(BF$2:BF4))) -> Suggested default | BH4: =INDEX('Chart selection'!$C$3:$E$12,TRUNC((COLUMNS($BE3:BH3)-1)/4,0)+1,(ROWS(BG$2:BG4))) -> Suggested default | BI4: =INDEX('Chart selection'!$C$3:$E$12,TRUNC((COLUMNS($BE3:BI3)-1)/4,0)+1,(ROWS(BH$2:BH4))) -> Suggested default | BJ4: =INDEX('Chart selection'!$C$3:$E$12,TRUNC((COLUMNS($BE3:BJ3)-1)/4,0)+1,(ROWS(BI$2:BI4))) -> Suggested default | BK4: =INDEX('Chart selection'!$C$3:$E$12,TRUNC((COLUMNS($BE3:BK3)-1)/4,0)+1,(ROWS(BJ$2:BJ4))) -> Suggested default | BL4: =INDEX('Chart selection'!$C$3:$E$12,TRUNC((COLUMNS($BE3:BL3)-1)/4,0)+1,(ROWS(BK$2:BK4))) -> Suggested default | BM4: =INDEX('Chart selection'!$C$3:$E$12,TRUNC((COLUMNS($BE3:BM3)-1)/4,0)+1,(ROWS(BL$2:BL4))) -> Suggested default | BN4: =INDEX('Chart selection'!$C$3:$E$12,TRUNC((COLUMNS($BE3:BN3)-1)/4,0)+1,(ROWS(BM$2:BM4))) -> Suggested default | BO4: =INDEX('Chart selection'!$C$3:$E$12,TRUNC((COLUMNS($BE3:BO3)-1)/4,0)+1,(ROWS(BN$2:BN4))) -> Suggested default | BP4: =INDEX('Chart selection'!$C$3:$E$12,TRUNC((COLUMNS($BE3:BP3)-1)/4,0)+1,(ROWS(BO$2:BO4))) -> Suggested default | BQ4: =INDEX('Chart selection'!$C$3:$E$12,TRUNC((COLUMNS($BE3:BQ3)-1)/4,0)+1,(ROWS(BP$2:BP4))) -> Suggested default | BR4: =INDEX('Chart selection'!$C$3:$E$12,TRUNC((COLUMNS($BE3:BR3)-1)/4,0)+1,(ROWS(BQ$2:BQ4))) -> Suggested default | BS4: =INDEX('Chart selection'!$C$3:$E$12,TRUNC((COLUMNS($BE3:BS3)-1)/4,0)+1,(ROWS(BR$2:BR4))) -> Suggested default | BT4: =INDEX('Chart selection'!$C$3:$E$12,TRUNC((COLUMNS($BE3:BT3)-1)/4,0)+1,(ROWS(BS$2:BS4))) -> Suggested default | BU4: =INDEX('Chart selection'!$C$3:$E$12,TRUNC((COLUMNS($BE3:BU3)-1)/4,0)+1,(ROWS(BT$2:BT4))) -> Suggested default | BV4: =INDEX('Chart selection'!$C$3:$E$12,TRUNC((COLUMNS($BE3:BV3)-1)/4,0)+1,(ROWS(BU$2:BU4))) -> Suggested default | BW4: =INDEX('Chart selection'!$C$3:$E$12,TRUNC((COLUMNS($BE3:BW3)-1)/4,0)+1,(ROWS(BV$2:BV4))) -> Suggested default | BX4: =INDEX('Chart selection'!$C$3:$E$12,TRUNC((COLUMNS($BE3:BX3)-1)/4,0)+1,(ROWS(BW$2:BW4))) -> Suggested default | BY4: =INDEX('Chart selection'!$C$3:$E$12,TRUNC((COLUMNS($BE3:BY3)-1)/4,0)+1,(ROWS(BX$2:BX4))) -> Suggested default | BZ4: =INDEX('Chart selection'!$C$3:$E$12,TRUNC((COLUMNS($BE3:BZ3)-1)/4,0)+1,(ROWS(BY$2:BY4))) -> Suggested default | CA4: =INDEX('Chart selection'!$C$3:$E$12,TRUNC((COLUMNS($BE3:CA3)-1)/4,0)+1,(ROWS(BZ$2:BZ4))) -> Suggested default | CB4: =INDEX('Chart selection'!$C$3:$E$12,TRUNC((COLUMNS($BE3:CB3)-1)/4,0)+1,(ROWS(CA$2:CA4))) -> Suggested default | CC4: =INDEX('Chart selection'!$C$3:$E$12,TRUNC((COLUMNS($BE3:CC3)-1)/4,0)+1,(ROWS(CB$2:CB4))) -> Suggested default | CD4: =INDEX('Chart selection'!$C$3:$E$12,TRUNC((COLUMNS($BE3:CD3)-1)/4,0)+1,(ROWS(CC$2:CC4))) -> Suggested default | CE4: =INDEX('Chart selection'!$C$3:$E$12,TRUNC((COLUMNS($BE3:CE3)-1)/4,0)+1,(ROWS(CD$2:CD4))) -> Suggested default | CF4: =INDEX('Chart selection'!$C$3:$E$12,TRUNC((COLUMNS($BE3:CF3)-1)/4,0)+1,(ROWS(CE$2:CE4))) -> Suggested default | CG4: =INDEX('Chart selection'!$C$3:$E$12,TRUNC((COLUMNS($BE3:CG3)-1)/4,0)+1,(ROWS(CF$2:CF4))) -> Suggested default | CH4: =INDEX('Chart selection'!$C$3:$E$12,TRUNC((COLUMNS($BE3:CH3)-1)/4,0)+1,(ROWS(CG$2:CG4))) -> Suggested default | CI4: =INDEX('Chart selection'!$C$3:$E$12,TRUNC((COLUMNS($BE3:CI3)-1)/4,0)+1,(ROWS(CH$2:CH4))) -> Suggested default | CJ4: =INDEX('Chart selection'!$C$3:$E$12,TRUNC((COLUMNS($BE3:CJ3)-1)/4,0)+1,(ROWS(CI$2:CI4))) -> Suggested default | CK4: =INDEX('Chart selection'!$C$3:$E$12,TRUNC((COLUMNS($BE3:CK3)-1)/4,0)+1,(ROWS(CJ$2:CJ4))) -> Suggested default | CL4: =INDEX('Chart selection'!$C$3:$E$12,TRUNC((COLUMNS($BE3:CL3)-1)/4,0)+1,(ROWS(CK$2:CK4))) -> Suggested default | CM4: =INDEX('Chart selection'!$C$3:$E$12,TRUNC((COLUMNS($BE3:CM3)-1)/4,0)+1,(ROWS(CL$2:CL4))) -> Suggested default | CN4: =INDEX('Chart selection'!$C$3:$E$12,TRUNC((COLUMNS($BE3:CN3)-1)/4,0)+1,(ROWS(CM$2:CM4))) -> Suggested default | CO4: =INDEX('Chart selection'!$C$3:$E$12,TRUNC((COLUMNS($BE3:CO3)-1)/4,0)+1,(ROWS(CN$2:CN4))) -> Suggested default | CP4: =INDEX('Chart selection'!$C$3:$E$12,TRUNC((COLUMNS($BE3:CP3)-1)/4,0)+1,(ROWS(CO$2:CO4))) -> Suggested default | CQ4: =INDEX('Chart selection'!$C$3:$E$12,TRUNC((COLUMNS($BE3:CQ3)-1)/4,0)+1,(ROWS(CP$2:CP4))) -> Suggested default | CR4: =INDEX('Chart selection'!$C$3:$E$12,TRUNC((COLUMNS($BE3:CR3)-1)/4,0)+1,(ROWS(CQ$2:CQ4))) -> Suggested default
E5: Unit | F5: g CO2e / kWh | G5: g CO2e / kWh | H5: g CO2e / kWh | I5: g CO2e / kWh | J5: $ / kWh | K5: $/tCO2e | L5: $/tCO2e | M5: Ratio | P5: ='Calculation Single Use Results'!B4&CRLF&'Calculation Single Use Results'!C4&CRLF&'Calculation Single Use Results'!D4 -> Suggested default Suggested default Suggested default | S5: Value: | T5: Unit | BE5: =IF(BE2=BD2,"",BE2) -> CHP U.S. Avg. | BF5: =IF(BF2=BE2,"",BF2) ->  | BI5: CHP Germany | BM5: CHP (extreme) | BQ5: =IF(BQ2=BP2,"",BQ2) -> Convert secondary forest to intensive loblolly | BU5: U.S. avg | BY5: Global Average | CC5: U.S. Douglas Fir | CG5: Germany Average | CK5: Intensive loblolly (USDA) | CO5: Northeastern U.S. Forests
A6: Select recorded scenario results to compare (repeated scenario selections will show as blank): | B6: Biomass scenario | C6: NG scenario | D6: Cost scenario | P6: ='Calculation Single Use Results'!I5 -> Net GHG Intensity of NG (No CCS) | S6: ='Calculation Single Use Results'!L5 -> 507.806013 | T6: ='Calculation Single Use Results'!M5 -> g CO2e / kWh | V6: =IF(ISNUMBER(MATCH(V2&V3&V4,U2:$U2&$U3:U3&$U4:U4,0)), "",IFERROR(INDEX($S$47:$ZZ$83,,MATCH(V$2&CRLF&V$3&CRLF&V$4,$S$46:$ZZ$46,0)),"")) -> 507.806013 | W6: =IF(ISNUMBER(MATCH(W2&W3&W4,$U2:V2&$U3:V3&$U4:V4,0)), "",IFERROR(INDEX($S$47:$ZZ$83,,MATCH(W$2&CRLF&W$3&CRLF&W$4,$S$46:$ZZ$46,0)),"")) -> 507.806013 | X6: =IF(ISNUMBER(MATCH(X2&X3&X4,$U2:W2&$U3:W3&$U4:W4,0)), "",IFERROR(INDEX($S$47:$ZZ$83,,MATCH(X$2&CRLF&X$3&CRLF&X$4,$S$46:$ZZ$46,0)),"")) -> 507.806013 | Y6: =IF(ISNUMBER(MATCH(Y2&Y3&Y4,$U2:X2&$U3:X3&$U4:X4,0)), "",IFERROR(INDEX($S$47:$ZZ$83,,MATCH(Y$2&CRLF&Y$3&CRLF&Y$4,$S$46:$ZZ$46,0)),"")) -> 507.806013 | Z6: =IF(ISNUMBER(MATCH(Z2&Z3&Z4,$U2:Y2&$U3:Y3&$U4:Y4,0)), "",IFERROR(INDEX($S$47:$ZZ$83,,MATCH(Z$2&CRLF&Z$3&CRLF&Z$4,$S$46:$ZZ$46,0)),"")) -> 507.806013 | AA6: =IF(ISNUMBER(MATCH(AA2&AA3&AA4,$U2:Z2&$U3:Z3&$U4:Z4,0)), "",IFERROR(INDEX($S$47:$ZZ$83,,MATCH(AA$2&CRLF&AA$3&CRLF&AA$4,$S$46:$ZZ$46,0)),"")) -> 507.806013 | AB6: =IF(ISNUMBER(MATCH(AB2&AB3&AB4,$U2:AA2&$U3:AA3&$U4:AA4,0)), "",IFERROR(INDEX($S$47:$ZZ$83,,MATCH(AB$2&CRLF&AB$3&CRLF&AB$4,$S$46:$ZZ$46,0)),"")) -> 507.806013 | AC6: =IF(ISNUMBER(MATCH(AC2&AC3&AC4,$U2:AB2&$U3:AB3&$U4:AB4,0)), "",IFERROR(INDEX($S$47:$ZZ$83,,MATCH(AC$2&CRLF&AC$3&CRLF&AC$4,$S$46:$ZZ$46,0)),"")) -> 507.806013 | AD6: =IF(ISNUMBER(MATCH(AD2&AD3&AD4,$U2:AC2&$U3:AC3&$U4:AC4,0)), "",IFERROR(INDEX($S$47:$ZZ$83,,MATCH(AD$2&CRLF&AD$3&CRLF&AD$4,$S$46:$ZZ$46,0)),"")) -> 358.4513033 | AE6: =IF(ISNUMBER(MATCH(AE2&AE3&AE4,$U2:AD2&$U3:AD3&$U4:AD4,0)), "",IFERROR(INDEX($S$47:$ZZ$83,,MATCH(AE$2&CRLF&AE$3&CRLF&AE$4,$S$46:$ZZ$46,0)),"")) -> 358.4513033 | AF6: =IF(ISNUMBER(MATCH(AF2&AF3&AF4,$U2:AE2&$U3:AE3&$U4:AE4,0)), "",IFERROR(INDEX($S$47:$ZZ$83,,MATCH(AF$2&CRLF&AF$3&CRLF&AF$4,$S$46:$ZZ$46,0)),"")) -> 338.537342 | AG6: =IF(ISNUMBER(MATCH(AG2&AG3&AG4,$U2:AF2&$U3:AF3&$U4:AF4,0)), "",IFERROR(INDEX($S$47:$ZZ$83,,MATCH(AG$2&CRLF&AG$3&CRLF&AG$4,$S$46:$ZZ$46,0)),"")) -> 507.806013 | AH6: =IF(ISNUMBER(MATCH(AH2&AH3&AH4,$U2:AG2&$U3:AG3&$U4:AG4,0)), "",IFERROR(INDEX($S$47:$ZZ$83,,MATCH(AH$2&CRLF&AH$3&CRLF&AH$4,$S$46:$ZZ$46,0)),"")) -> 507.806013 | AI6: =IF(ISNUMBER(MATCH(AI2&AI3&AI4,$U2:AH2&$U3:AH3&$U4:AH4,0)), "",IFERROR(INDEX($S$47:$ZZ$83,,MATCH(AI$2&CRLF&AI$3&CRLF&AI$4,$S$46:$ZZ$46,0)),"")) ->  | AJ6: =IF(ISNUMBER(MATCH(AJ2&AJ3&AJ4,$U2:AI2&$U3:AI3&$U4:AI4,0)), "",IFERROR(INDEX($S$47:$ZZ$83,,MATCH(AJ$2&CRLF&AJ$3&CRLF&AJ$4,$S$46:$ZZ$46,0)),"")) ->  | AK6: =IF(ISNUMBER(MATCH(AK2&AK3&AK4,$U2:AJ2&$U3:AJ3&$U4:AJ4,0)), "",IFERROR(INDEX($S$47:$ZZ$83,,MATCH(AK$2&CRLF&AK$3&CRLF&AK$4,$S$46:$ZZ$46,0)),"")) ->  | AL6: =IF(ISNUMBER(MATCH(AL2&AL3&AL4,$U2:AK2&$U3:AK3&$U4:AK4,0)), "",IFERROR(INDEX($S$47:$ZZ$83,,MATCH(AL$2&CRLF&AL$3&CRLF&AL$4,$S$46:$ZZ$46,0)),"")) ->  | AM6: =IF(ISNUMBER(MATCH(AM2&AM3&AM4,$U2:AL2&$U3:AL3&$U4:AL4,0)), "",IFERROR(INDEX($S$47:$ZZ$83,,MATCH(AM$2&CRLF&AM$3&CRLF&AM$4,$S$46:$ZZ$46,0)),"")) ->  | AN6: =IF(ISNUMBER(MATCH(AN2&AN3&AN4,$U2:AM2&$U3:AM3&$U4:AM4,0)), "",IFERROR(INDEX($S$47:$ZZ$83,,MATCH(AN$2&CRLF&AN$3&CRLF&AN$4,$S$46:$ZZ$46,0)),"")) ->  | AO6: =IF(ISNUMBER(MATCH(AO2&AO3&AO4,$U2:AN2&$U3:AN3&$U4:AN4,0)), "",IFERROR(INDEX($S$47:$ZZ$83,,MATCH(AO$2&CRLF&AO$3&CRLF&AO$4,$S$46:$ZZ$46,0)),"")) ->  | AP6: =IF(ISNUMBER(MATCH(AP2&AP3&AP4,$U2:AO2&$U3:AO3&$U4:AO4,0)), "",IFERROR(INDEX($S$47:$ZZ$83,,MATCH(AP$2&CRLF&AP$3&CRLF&AP$4,$S$46:$ZZ$46,0)),"")) ->  | AQ6: =IF(ISNUMBER(MATCH(AQ2&AQ3&AQ4,$U2:AP2&$U3:AP3&$U4:AP4,0)), "",IFERROR(INDEX($S$47:$ZZ$83,,MATCH(AQ$2&CRLF&AQ$3&CRLF&AQ$4,$S$46:$ZZ$46,0)),"")) ->  | AR6: =IF(ISNUMBER(MATCH(AR2&AR3&AR4,$U2:AQ2&$U3:AQ3&$U4:AQ4,0)), "",IFERROR(INDEX($S$47:$ZZ$83,,MATCH(AR$2&CRLF&AR$3&CRLF&AR$4,$S$46:$ZZ$46,0)),"")) ->  | AS6: =IF(ISNUMBER(MATCH(AS2&AS3&AS4,$U2:AR2&$U3:AR3&$U4:AR4,0)), "",IFERROR(INDEX($S$47:$ZZ$83,,MATCH(AS$2&CRLF&AS$3&CRLF&AS$4,$S$46:$ZZ$46,0)),"")) ->  | AT6: =IF(ISNUMBER(MATCH(AT2&AT3&AT4,$U2:AS2&$U3:AS3&$U4:AS4,0)), "",IFERROR(INDEX($S$47:$ZZ$83,,MATCH(AT$2&CRLF&AT$3&CRLF&AT$4,$S$46:$ZZ$46,0)),"")) ->  | AU6: =IF(ISNUMBER(MATCH(AU2&AU3&AU4,$U2:AT2&$U3:AT3&$U4:AT4,0)), "",IFERROR(INDEX($S$47:$ZZ$83,,MATCH(AU$2&CRLF&AU$3&CRLF&AU$4,$S$46:$ZZ$46,0)),"")) ->  | AV6: =IF(ISNUMBER(MATCH(AV2&AV3&AV4,$U2:AU2&$U3:AU3&$U4:AU4,0)), "",IFERROR(INDEX($S$47:$ZZ$83,,MATCH(AV$2&CRLF&AV$3&CRLF&AV$4,$S$46:$ZZ$46,0)),"")) ->  | AW6: =IF(ISNUMBER(MATCH(AW2&AW3&AW4,$U2:AV2&$U3:AV3&$U4:AV4,0)), "",IFERROR(INDEX($S$47:$ZZ$83,,MATCH(AW$2&CRLF&AW$3&CRLF&AW$4,$S$46:$ZZ$46,0)),"")) ->  | AX6: =IF(ISNUMBER(MATCH(AX2&AX3&AX4,$U2:AW2&$U3:AW3&$U4:AW4,0)), "",IFERROR(INDEX($S$47:$ZZ$83,,MATCH(AX$2&CRLF&AX$3&CRLF&AX$4,$S$46:$ZZ$46,0)),"")) ->  | AY6: =IF(ISNUMBER(MATCH(AY2&AY3&AY4,$U2:AX2&$U3:AX3&$U4:AX4,0)), "",IFERROR(INDEX($S$47:$ZZ$83,,MATCH(AY$2&CRLF&AY$3&CRLF&AY$4,$S$46:$ZZ$46,0)),"")) ->  | AZ6: =IF(ISNUMBER(MATCH(AZ2&AZ3&AZ4,$U2:AY2&$U3:AY3&$U4:AY4,0)), "",IFERROR(INDEX($S$47:$ZZ$83,,MATCH(AZ$2&CRLF&AZ$3&CRLF&AZ$4,$S$46:$ZZ$46,0)),"")) ->  | BA6: =IF(ISNUMBER(MATCH(BA2&BA3&BA4,$U2:AZ2&$U3:AZ3&$U4:AZ4,0)), "",IFERROR(INDEX($S$47:$ZZ$83,,MATCH(BA$2&CRLF&BA$3&CRLF&BA$4,$S$46:$ZZ$46,0)),"")) ->  | BB6: =IF(ISNUMBER(MATCH(BB2&BB3&BB4,$U2:BA2&$U3:BA3&$U4:BA4,0)), "",IFERROR(INDEX($S$47:$ZZ$83,,MATCH(BB$2&CRLF&BB$3&CRLF&BB$4,$S$46:$ZZ$46,0)),"")) ->  | BE6: =_xlfn.HSTACK(INDEX(TRANSPOSE('Calculation Single Use Results'!I19:I22),{4,3,2,1}),INDEX(TRANSPOSE('Calculation Single Use Results'!I19:I22),{4,3,2,1}),INDEX(TRANSPOSE('Calculation Single Use Results'!I19:I22),{4,3,2,1}),INDEX(TRANSPOSE('Calculation Single Use Results'!I19:I22),{4,3,2,1}),INDEX(TRANSPOSE('Calculation Single Use Results'!I19:I22),{4,3,2,1}),INDEX(TRANSPOSE('Calculation Single Use Results'!I19:I22),{4,3,2,1}),INDEX(TRANSPOSE('Calculation Single Use Results'!I19:I22),{4,3,2,1}),INDEX(TRANSPOSE('Calculation Single Use Results'!I19:I22),{4,3,2,1}),INDEX(TRANSPOSE('Calculation Single Use Results'!I19:I22),{4,3,2,1}),INDEX(TRANSPOSE('Calculation Single Use Results'!I19:I22),{4,3,2,1})) -> NG w/o CCS emissions | BF6: NG-CCS emissions | BG6: Bioenergy w/o CCS emissions | BH6: BECCS emissions | BI6: NG w/o CCS emissions | BJ6: NG-CCS emissions | BK6: Bioenergy w/o CCS emissions | BL6: BECCS emissions | BM6: NG w/o CCS emissions | BN6: NG-CCS emissions | BO6: Bioenergy w/o CCS emissions | BP6: BECCS emissions | BQ6: NG w/o CCS emissions | BR6: NG-CCS emissions | BS6: Bioenergy w/o CCS emissions | BT6: BECCS emissions | BU6: NG w/o CCS emissions | BV6: NG-CCS emissions | BW6: Bioenergy w/o CCS emissions | BX6: BECCS emissions | BY6: NG w/o CCS emissions | BZ6: NG-CCS emissions | CA6: Bioenergy w/o CCS emissions | CB6: BECCS emissions | CC6: NG w/o CCS emissions | CD6: NG-CCS emissions | CE6: Bioenergy w/o CCS emissions | CF6: BECCS emissions | CG6: NG w/o CCS emissions | CH6: NG-CCS emissions | CI6: Bioenergy w/o CCS emissions | CJ6: BECCS emissions | CK6: NG w/o CCS emissions | CL6: NG-CCS emissions | CM6: Bioenergy w/o CCS emissions | CN6: BECCS emissions | CO6: NG w/o CCS emissions | CP6: NG-CCS emissions | CQ6: Bioenergy w/o CCS emissions | CR6: BECCS emissions
B7: Global Average | C7: Suggested default | D7: Suggested default | F7: 507.806013 | G7: 205.7320859 | H7: 1152.434701 | I7: 576.4651708 | J7: 0.2912741021 | K7: No saving | L7: No saving | M7: 2.603494562 | P7: ='Calculation Single Use Results'!I6 -> Net GHG intensity of NG-CCS | S7: ='Calculation Single Use Results'!L6 -> 205.7320859 | T7: ='Calculation Single Use Results'!M6 -> g CO2e / kWh | V7: 205.7320859 | W7: 205.7320859 | X7: 205.7320859 | Y7: 205.7320859 | Z7: 205.7320859 | AA7: 205.7320859 | AB7: 205.7320859 | AC7: 205.7320859 | AD7: 133.8854786 | AE7: 133.8854786 | AF7: 112.8637872 | AG7: 205.7320859 | AH7: 205.7320859 | BD7: =TRANSPOSE('Calculation Single Use Results'!K18:N18) -> Fossil emissions | BE7: =INDEX($S$57:$NI$83,_xlfn.XMATCH(BE$6,$P$57:$P$83)+_xlfn.XMATCH($BD7,_xlfn.ANCHORARRAY($BD$7))-1,_xlfn.XMATCH(BE$2&CRLF&BE$3&CRLF&BE$4,$S$46:$ZZ$46)) -> 358.4513033 | BF7: =INDEX($S$57:$NI$83,_xlfn.XMATCH(BF$6,$P$57:$P$83)+_xlfn.XMATCH($BD7,_xlfn.ANCHORARRAY($BD$7))-1,_xlfn.XMATCH(BF$2&CRLF&BF$3&CRLF&BF$4,$S$46:$ZZ$46)) -> 133.8854786 | BG7: =INDEX($S$57:$NI$83,_xlfn.XMATCH(BG$6,$P$57:$P$83)+_xlfn.XMATCH($BD7,_xlfn.ANCHORARRAY($BD$7))-1,_xlfn.XMATCH(BG$2&CRLF&BG$3&CRLF&BG$4,$S$46:$ZZ$46)) -> 69.29959144 | BH7: =INDEX($S$57:$NI$83,_xlfn.XMATCH(BH$6,$P$57:$P$83)+_xlfn.XMATCH($BD7,_xlfn.ANCHORARRAY($BD$7))-1,_xlfn.XMATCH(BH$2&CRLF&BH$3&CRLF&BH$4,$S$46:$ZZ$46)) -> 74.83757175 | BI7: =INDEX($S$57:$NI$83,_xlfn.XMATCH(BI$6,$P$57:$P$83)+_xlfn.XMATCH($BD7,_xlfn.ANCHORARRAY($BD$7))-1,_xlfn.XMATCH(BI$2&CRLF&BI$3&CRLF&BI$4,$S$46:$ZZ$46)) -> 358.4513033 | BJ7: =INDEX($S$57:$NI$83,_xlfn.XMATCH(BJ$6,$P$57:$P$83)+_xlfn.XMATCH($BD7,_xlfn.ANCHORARRAY($BD$7))-1,_xlfn.XMATCH(BJ$2&CRLF&BJ$3&CRLF&BJ$4,$S$46:$ZZ$46)) -> 133.8854786 | BK7: =INDEX($S$57:$NI$83,_xlfn.XMATCH(BK$6,$P$57:$P$83)+_xlfn.XMATCH($BD7,_xlfn.ANCHORARRAY($BD$7))-1,_xlfn.XMATCH(BK$2&CRLF&BK$3&CRLF&BK$4,$S$46:$ZZ$46)) -> 69.29959144 | BL7: =INDEX($S$57:$NI$83,_xlfn.XMATCH(BL$6,$P$57:$P$83)+_xlfn.XMATCH($BD7,_xlfn.ANCHORARRAY($BD$7))-1,_xlfn.XMATCH(BL$2&CRLF&BL$3&CRLF&BL$4,$S$46:$ZZ$46)) -> 74.83757175 | BM7: =INDEX($S$57:$NI$83,_xlfn.XMATCH(BM$6,$P$57:$P$83)+_xlfn.XMATCH($BD7,_xlfn.ANCHORARRAY($BD$7))-1,_xlfn.XMATCH(BM$2&CRLF&BM$3&CRLF&BM$4,$S$46:$ZZ$46)) -> 338.537342 | BN7: =INDEX($S$57:$NI$83,_xlfn.XMATCH(BN$6,$P$57:$P$83)+_xlfn.XMATCH($BD7,_xlfn.ANCHORARRAY($BD$7))-1,_xlfn.XMATCH(BN$2&CRLF&BN$3&CRLF&BN$4,$S$46:$ZZ$46)) -> 112.8637872 | BO7: =INDEX($S$57:$NI$83,_xlfn.XMATCH(BO$6,$P$57:$P$83)+_xlfn.XMATCH($BD7,_xlfn.ANCHORARRAY($BD$7))-1,_xlfn.XMATCH(BO$2&CRLF&BO$3&CRLF&BO$4,$S$46:$ZZ$46)) -> 64.96836698 | BP7: =INDEX($S$57:$NI$83,_xlfn.XMATCH(BP$6,$P$57:$P$83)+_xlfn.XMATCH($BD7,_xlfn.ANCHORARRAY($BD$7))-1,_xlfn.XMATCH(BP$2&CRLF&BP$3&CRLF&BP$4,$S$46:$ZZ$46)) -> 69.81154276 | BQ7: =INDEX($S$57:$NI$83,_xlfn.XMATCH(BQ$6,$P$57:$P$83)+_xlfn.XMATCH($BD7,_xlfn.ANCHORARRAY($BD$7))-1,_xlfn.XMATCH(BQ$2&CRLF&BQ$3&CRLF&BQ$4,$S$46:$ZZ$46)) -> 507.806013 | BR7: =INDEX($S$57:$NI$83,_xlfn.XMATCH(BR$6,$P$57:$P$83)+_xlfn.XMATCH($BD7,_xlfn.ANCHORARRAY($BD$7))-1,_xlfn.XMATCH(BR$2&CRLF&BR$3&CRLF&BR$4,$S$46:$ZZ$46)) -> 205.7320859 | BS7: =INDEX($S$57:$NI$83,_xlfn.XMATCH(BS$6,$P$57:$P$83)+_xlfn.XMATCH($BD7,_xlfn.ANCHORARRAY($BD$7))-1,_xlfn.XMATCH(BS$2&CRLF&BS$3&CRLF&BS$4,$S$46:$ZZ$46)) -> 144.3741488 | BT7: =INDEX($S$57:$NI$83,_xlfn.XMATCH(BT$6,$P$57:$P$83)+_xlfn.XMATCH($BD7,_xlfn.ANCHORARRAY($BD$7))-1,_xlfn.XMATCH(BT$2&CRLF&BT$3&CRLF&BT$4,$S$46:$ZZ$46)) -> 209.1158154 | BU7: =INDEX($S$57:$NI$83,_xlfn.XMATCH(BU$6,$P$57:$P$83)+_xlfn.XMATCH($BD7,_xlfn.ANCHORARRAY($BD$7))-1,_xlfn.XMATCH(BU$2&CRLF&BU$3&CRLF&BU$4,$S$46:$ZZ$46)) -> 507.806013 | BV7: =INDEX($S$57:$NI$83,_xlfn.XMATCH(BV$6,$P$57:$P$83)+_xlfn.XMATCH($BD7,_xlfn.ANCHORARRAY($BD$7))-1,_xlfn.XMATCH(BV$2&CRLF&BV$3&CRLF&BV$4,$S$46:$ZZ$46)) -> 205.7320859 | BW7: =INDEX($S$57:$NI$83,_xlfn.XMATCH(BW$6,$P$57:$P$83)+_xlfn.XMATCH($BD7,_xlfn.ANCHORARRAY($BD$7))-1,_xlfn.XMATCH(BW$2&CRLF&BW$3&CRLF&BW$4,$S$46:$ZZ$46)) -> 144.3741488 | BX7: =INDEX($S$57:$NI$83,_xlfn.XMATCH(BX$6,$P$57:$P$83)+_xlfn.XMATCH($BD7,_xlfn.ANCHORARRAY($BD$7))-1,_xlfn.XMATCH(BX$2&CRLF&BX$3&CRLF&BX$4,$S$46:$ZZ$46)) -> 209.1158154 | BY7: =INDEX($S$57:$NI$83,_xlfn.XMATCH(BY$6,$P$57:$P$83)+_xlfn.XMATCH($BD7,_xlfn.ANCHORARRAY($BD$7))-1,_xlfn.XMATCH(BY$2&CRLF&BY$3&CRLF&BY$4,$S$46:$ZZ$46)) -> 507.806013 | BZ7: =INDEX($S$57:$NI$83,_xlfn.XMATCH(BZ$6,$P$57:$P$83)+_xlfn.XMATCH($BD7,_xlfn.ANCHORARRAY($BD$7))-1,_xlfn.XMATCH(BZ$2&CRLF&BZ$3&CRLF&BZ$4,$S$46:$ZZ$46)) -> 205.7320859 | CA7: =INDEX($S$57:$NI$83,_xlfn.XMATCH(CA$6,$P$57:$P$83)+_xlfn.XMATCH($BD7,_xlfn.ANCHORARRAY($BD$7))-1,_xlfn.XMATCH(CA$2&CRLF&CA$3&CRLF&CA$4,$S$46:$ZZ$46)) -> 144.3741488 | CB7: =INDEX($S$57:$NI$83,_xlfn.XMATCH(CB$6,$P$57:$P$83)+_xlfn.XMATCH($BD7,_xlfn.ANCHORARRAY($BD$7))-1,_xlfn.XMATCH(CB$2&CRLF&CB$3&CRLF&CB$4,$S$46:$ZZ$46)) -> 209.1158154 | CC7: =INDEX($S$57:$NI$83,_xlfn.XMATCH(CC$6,$P$57:$P$83)+_xlfn.XMATCH($BD7,_xlfn.ANCHORARRAY($BD$7))-1,_xlfn.XMATCH(CC$2&CRLF&CC$3&CRLF&CC$4,$S$46:$ZZ$46)) -> 507.806013 | CD7: =INDEX($S$57:$NI$83,_xlfn.XMATCH(CD$6,$P$57:$P$83)+_xlfn.XMATCH($BD7,_xlfn.ANCHORARRAY($BD$7))-1,_xlfn.XMATCH(CD$2&CRLF&CD$3&CRLF&CD$4,$S$46:$ZZ$46)) -> 205.7320859 | CE7: =INDEX($S$57:$NI$83,_xlfn.XMATCH(CE$6,$P$57:$P$83)+_xlfn.XMATCH($BD7,_xlfn.ANCHORARRAY($BD$7))-1,_xlfn.XMATCH(CE$2&CRLF&CE$3&CRLF&CE$4,$S$46:$ZZ$46)) -> 144.3741488 | CF7: =INDEX($S$57:$NI$83,_xlfn.XMATCH(CF$6,$P$57:$P$83)+_xlfn.XMATCH($BD7,_xlfn.ANCHORARRAY($BD$7))-1,_xlfn.XMATCH(CF$2&CRLF&CF$3&CRLF&CF$4,$S$46:$ZZ$46)) -> 209.1158154 | CG7: =INDEX($S$57:$NI$83,_xlfn.XMATCH(CG$6,$P$57:$P$83)+_xlfn.XMATCH($BD7,_xlfn.ANCHORARRAY($BD$7))-1,_xlfn.XMATCH(CG$2&CRLF&CG$3&CRLF&CG$4,$S$46:$ZZ$46)) -> 507.806013 | CH7: =INDEX($S$57:$NI$83,_xlfn.XMATCH(CH$6,$P$57:$P$83)+_xlfn.XMATCH($BD7,_xlfn.ANCHORARRAY($BD$7))-1,_xlfn.XMATCH(CH$2&CRLF&CH$3&CRLF&CH$4,$S$46:$ZZ$46)) -> 205.7320859 | CI7: =INDEX($S$57:$NI$83,_xlfn.XMATCH(CI$6,$P$57:$P$83)+_xlfn.XMATCH($BD7,_xlfn.ANCHORARRAY($BD$7))-1,_xlfn.XMATCH(CI$2&CRLF&CI$3&CRLF&CI$4,$S$46:$ZZ$46)) -> 144.3741488 | CJ7: =INDEX($S$57:$NI$83,_xlfn.XMATCH(CJ$6,$P$57:$P$83)+_xlfn.XMATCH($BD7,_xlfn.ANCHORARRAY($BD$7))-1,_xlfn.XMATCH(CJ$2&CRLF&CJ$3&CRLF&CJ$4,$S$46:$ZZ$46)) -> 209.1158154 | CK7: =INDEX($S$57:$NI$83,_xlfn.XMATCH(CK$6,$P$57:$P$83)+_xlfn.XMATCH($BD7,_xlfn.ANCHORARRAY($BD$7))-1,_xlfn.XMATCH(CK$2&CRLF&CK$3&CRLF&CK$4,$S$46:$ZZ$46)) -> 507.806013 | CL7: =INDEX($S$57:$NI$83,_xlfn.XMATCH(CL$6,$P$57:$P$83)+_xlfn.XMATCH($BD7,_xlfn.ANCHORARRAY($BD$7))-1,_xlfn.XMATCH(CL$2&CRLF&CL$3&CRLF&CL$4,$S$46:$ZZ$46)) -> 205.7320859 | CM7: =INDEX($S$57:$NI$83,_xlfn.XMATCH(CM$6,$P$57:$P$83)+_xlfn.XMATCH($BD7,_xlfn.ANCHORARRAY($BD$7))-1,_xlfn.XMATCH(CM$2&CRLF&CM$3&CRLF&CM$4,$S$46:$ZZ$46)) -> 144.3741488 | CN7: =INDEX($S$57:$NI$83,_xlfn.XMATCH(CN$6,$P$57:$P$83)+_xlfn.XMATCH($BD7,_xlfn.ANCHORARRAY($BD$7))-1,_xlfn.XMATCH(CN$2&CRLF&CN$3&CRLF&CN$4,$S$46:$ZZ$46)) -> 209.1158154 | CO7: =INDEX($S$57:$NI$83,_xlfn.XMATCH(CO$6,$P$57:$P$83)+_xlfn.XMATCH($BD7,_xlfn.ANCHORARRAY($BD$7))-1,_xlfn.XMATCH(CO$2&CRLF&CO$3&CRLF&CO$4,$S$46:$ZZ$46)) -> 507.806013 | CP7: =INDEX($S$57:$NI$83,_xlfn.XMATCH(CP$6,$P$57:$P$83)+_xlfn.XMATCH($BD7,_xlfn.ANCHORARRAY($BD$7))-1,_xlfn.XMATCH(CP$2&CRLF&CP$3&CRLF&CP$4,$S$46:$ZZ$46)) -> 205.7320859 | CQ7: =INDEX($S$57:$NI$83,_xlfn.XMATCH(CQ$6,$P$57:$P$83)+_xlfn.XMATCH($BD7,_xlfn.ANCHORARRAY($BD$7))-1,_xlfn.XMATCH(CQ$2&CRLF&CQ$3&CRLF&CQ$4,$S$46:$ZZ$46)) -> 144.3741488 | CR7: =INDEX($S$57:$NI$83,_xlfn.XMATCH(CR$6,$P$57:$P$83)+_xlfn.XMATCH($BD7,_xlfn.ANCHORARRAY($BD$7))-1,_xlfn.XMATCH(CR$2&CRLF&CR$3&CRLF&CR$4,$S$46:$ZZ$46)) -> 209.1158154
B8: U.S. avg | C8: Suggested default | D8: Suggested default | F8: 507.806013 | G8: 205.7320859 | H8: 1143.017064 | I8: 562.8243854 | J8: 0.2912741021 | K8: No saving | L8: No saving | M8: 2.603494562 | P8: ='Calculation Single Use Results'!I7 -> Net GHG Intensity of Bioenergy (no CCS) | S8: ='Calculation Single Use Results'!L7 -> 1150.629131 | T8: ='Calculation Single Use Results'!M7 -> g CO2e / kWh | V8: 1152.434701 | W8: 1143.017064 | X8: 1842.434075 | Y8: 1487.541168 | Z8: 1293.26914 | AA8: 1143.107356 | AB8: 791.9482576 | AC8: 591.0610839 | AD8: 732.4016153 | AE8: 515.2722026 | AF8: 255.2191358 | AG8: 1150.629131 | AH8: 1150.629131 | BD8: Biogenic emissions | BE8: =INDEX($S$57:$NI$83,_xlfn.XMATCH(BE$6,$P$57:$P$83)+_xlfn.XMATCH($BD8,_xlfn.ANCHORARRAY($BD$7))-1,_xlfn.XMATCH(BE$2&CRLF&BE$3&CRLF&BE$4,$S$46:$ZZ$46)) -> 0 | BF8: =INDEX($S$57:$NI$83,_xlfn.XMATCH(BF$6,$P$57:$P$83)+_xlfn.XMATCH($BD8,_xlfn.ANCHORARRAY($BD$7))-1,_xlfn.XMATCH(BF$2&CRLF&BF$3&CRLF&BF$4,$S$46:$ZZ$46)) -> 0 | BG8: =INDEX($S$57:$NI$83,_xlfn.XMATCH(BG$6,$P$57:$P$83)+_xlfn.XMATCH($BD8,_xlfn.ANCHORARRAY($BD$7))-1,_xlfn.XMATCH(BG$2&CRLF&BG$3&CRLF&BG$4,$S$46:$ZZ$46)) -> 704.5446409 | BH8: =INDEX($S$57:$NI$83,_xlfn.XMATCH(BH$6,$P$57:$P$83)+_xlfn.XMATCH($BD8,_xlfn.ANCHORARRAY($BD$7))-1,_xlfn.XMATCH(BH$2&CRLF&BH$3&CRLF&BH$4,$S$46:$ZZ$46)) -> 369.7761456 | BI8: =INDEX($S$57:$NI$83,_xlfn.XMATCH(BI$6,$P$57:$P$83)+_xlfn.XMATCH($BD8,_xlfn.ANCHORARRAY($BD$7))-1,_xlfn.XMATCH(BI$2&CRLF&BI$3&CRLF&BI$4,$S$46:$ZZ$46)) -> 0 | BJ8: =INDEX($S$57:$NI$83,_xlfn.XMATCH(BJ$6,$P$57:$P$83)+_xlfn.XMATCH($BD8,_xlfn.ANCHORARRAY($BD$7))-1,_xlfn.XMATCH(BJ$2&CRLF&BJ$3&CRLF&BJ$4,$S$46:$ZZ$46)) -> 0 | BK8: =INDEX($S$57:$NI$83,_xlfn.XMATCH(BK$6,$P$57:$P$83)+_xlfn.XMATCH($BD8,_xlfn.ANCHORARRAY($BD$7))-1,_xlfn.XMATCH(BK$2&CRLF&BK$3&CRLF&BK$4,$S$46:$ZZ$46)) -> 813.4216518 | BL8: =INDEX($S$57:$NI$83,_xlfn.XMATCH(BL$6,$P$57:$P$83)+_xlfn.XMATCH($BD8,_xlfn.ANCHORARRAY($BD$7))-1,_xlfn.XMATCH(BL$2&CRLF&BL$3&CRLF&BL$4,$S$46:$ZZ$46)) -> 487.3539112 | BM8: =INDEX($S$57:$NI$83,_xlfn.XMATCH(BM$6,$P$57:$P$83)+_xlfn.XMATCH($BD8,_xlfn.ANCHORARRAY($BD$7))-1,_xlfn.XMATCH(BM$2&CRLF&BM$3&CRLF&BM$4,$S$46:$ZZ$46)) -> 0 | BN8: =INDEX($S$57:$NI$83,_xlfn.XMATCH(BN$6,$P$57:$P$83)+_xlfn.XMATCH($BD8,_xlfn.ANCHORARRAY($BD$7))-1,_xlfn.XMATCH(BN$2&CRLF&BN$3&CRLF&BN$4,$S$46:$ZZ$46)) -> 0 | BO8: =INDEX($S$57:$NI$83,_xlfn.XMATCH(BO$6,$P$57:$P$83)+_xlfn.XMATCH($BD8,_xlfn.ANCHORARRAY($BD$7))-1,_xlfn.XMATCH(BO$2&CRLF&BO$3&CRLF&BO$4,$S$46:$ZZ$46)) -> 501.0344583 | BP8: =INDEX($S$57:$NI$83,_xlfn.XMATCH(BP$6,$P$57:$P$83)+_xlfn.XMATCH($BD8,_xlfn.ANCHORARRAY($BD$7))-1,_xlfn.XMATCH(BP$2&CRLF&BP$3&CRLF&BP$4,$S$46:$ZZ$46)) -> 152.1184828 | BQ8: =INDEX($S$57:$NI$83,_xlfn.XMATCH(BQ$6,$P$57:$P$83)+_xlfn.XMATCH($BD8,_xlfn.ANCHORARRAY($BD$7))-1,_xlfn.XMATCH(BQ$2&CRLF&BQ$3&CRLF&BQ$4,$S$46:$ZZ$46)) -> 0 | BR8: =INDEX($S$57:$NI$83,_xlfn.XMATCH(BR$6,$P$57:$P$83)+_xlfn.XMATCH($BD8,_xlfn.ANCHORARRAY($BD$7))-1,_xlfn.XMATCH(BR$2&CRLF&BR$3&CRLF&BR$4,$S$46:$ZZ$46)) -> 0 | BS8: =INDEX($S$57:$NI$83,_xlfn.XMATCH(BS$6,$P$57:$P$83)+_xlfn.XMATCH($BD8,_xlfn.ANCHORARRAY($BD$7))-1,_xlfn.XMATCH(BS$2&CRLF&BS$3&CRLF&BS$4,$S$46:$ZZ$46)) -> 1646.330654 | BT8: =INDEX($S$57:$NI$83,_xlfn.XMATCH(BT$6,$P$57:$P$83)+_xlfn.XMATCH($BD8,_xlfn.ANCHORARRAY($BD$7))-1,_xlfn.XMATCH(BT$2&CRLF&BT$3&CRLF&BT$4,$S$46:$ZZ$46)) -> 1291.838774 | BU8: =INDEX($S$57:$NI$83,_xlfn.XMATCH(BU$6,$P$57:$P$83)+_xlfn.XMATCH($BD8,_xlfn.ANCHORARRAY($BD$7))-1,_xlfn.XMATCH(BU$2&CRLF&BU$3&CRLF&BU$4,$S$46:$ZZ$46)) -> 0 | BV8: =INDEX($S$57:$NI$83,_xlfn.XMATCH(BV$6,$P$57:$P$83)+_xlfn.XMATCH($BD8,_xlfn.ANCHORARRAY($BD$7))-1,_xlfn.XMATCH(BV$2&CRLF&BV$3&CRLF&BV$4,$S$46:$ZZ$46)) -> 0 | BW8: =INDEX($S$57:$NI$83,_xlfn.XMATCH(BW$6,$P$57:$P$83)+_xlfn.XMATCH($BD8,_xlfn.ANCHORARRAY($BD$7))-1,_xlfn.XMATCH(BW$2&CRLF&BW$3&CRLF&BW$4,$S$46:$ZZ$46)) -> 1677.379232 | BX8: =INDEX($S$57:$NI$83,_xlfn.XMATCH(BX$6,$P$57:$P$83)+_xlfn.XMATCH($BD8,_xlfn.ANCHORARRAY($BD$7))-1,_xlfn.XMATCH(BX$2&CRLF&BX$3&CRLF&BX$4,$S$46:$ZZ$46)) -> 1336.810458 | BY8: =INDEX($S$57:$NI$83,_xlfn.XMATCH(BY$6,$P$57:$P$83)+_xlfn.XMATCH($BD8,_xlfn.ANCHORARRAY($BD$7))-1,_xlfn.XMATCH(BY$2&CRLF&BY$3&CRLF&BY$4,$S$46:$ZZ$46)) -> 0 | BZ8: =INDEX($S$57:$NI$83,_xlfn.XMATCH(BZ$6,$P$57:$P$83)+_xlfn.XMATCH($BD8,_xlfn.ANCHORARRAY($BD$7))-1,_xlfn.XMATCH(BZ$2&CRLF&BZ$3&CRLF&BZ$4,$S$46:$ZZ$46)) -> 0 | CA8: =INDEX($S$57:$NI$83,_xlfn.XMATCH(CA$6,$P$57:$P$83)+_xlfn.XMATCH($BD8,_xlfn.ANCHORARRAY($BD$7))-1,_xlfn.XMATCH(CA$2&CRLF&CA$3&CRLF&CA$4,$S$46:$ZZ$46)) -> 1694.628441 | CB8: =INDEX($S$57:$NI$83,_xlfn.XMATCH(CB$6,$P$57:$P$83)+_xlfn.XMATCH($BD8,_xlfn.ANCHORARRAY($BD$7))-1,_xlfn.XMATCH(CB$2&CRLF&CB$3&CRLF&CB$4,$S$46:$ZZ$46)) -> 1361.794726 | CC8: =INDEX($S$57:$NI$83,_xlfn.XMATCH(CC$6,$P$57:$P$83)+_xlfn.XMATCH($BD8,_xlfn.ANCHORARRAY($BD$7))-1,_xlfn.XMATCH(CC$2&CRLF&CC$3&CRLF&CC$4,$S$46:$ZZ$46)) -> 0 | CD8: =INDEX($S$57:$NI$83,_xlfn.XMATCH(CD$6,$P$57:$P$83)+_xlfn.XMATCH($BD8,_xlfn.ANCHORARRAY($BD$7))-1,_xlfn.XMATCH(CD$2&CRLF&CD$3&CRLF&CD$4,$S$46:$ZZ$46)) -> 0 | CE8: =INDEX($S$57:$NI$83,_xlfn.XMATCH(CE$6,$P$57:$P$83)+_xlfn.XMATCH($BD8,_xlfn.ANCHORARRAY($BD$7))-1,_xlfn.XMATCH(CE$2&CRLF&CE$3&CRLF&CE$4,$S$46:$ZZ$46)) -> 1694.628441 | CF8: =INDEX($S$57:$NI$83,_xlfn.XMATCH(CF$6,$P$57:$P$83)+_xlfn.XMATCH($BD8,_xlfn.ANCHORARRAY($BD$7))-1,_xlfn.XMATCH(CF$2&CRLF&CF$3&CRLF&CF$4,$S$46:$ZZ$46)) -> 1361.794726 | CG8: =INDEX($S$57:$NI$83,_xlfn.XMATCH(CG$6,$P$57:$P$83)+_xlfn.XMATCH($BD8,_xlfn.ANCHORARRAY($BD$7))-1,_xlfn.XMATCH(CG$2&CRLF&CG$3&CRLF&CG$4,$S$46:$ZZ$46)) -> 0 | CH8: =INDEX($S$57:$NI$83,_xlfn.XMATCH(CH$6,$P$57:$P$83)+_xlfn.XMATCH($BD8,_xlfn.ANCHORARRAY($BD$7))-1,_xlfn.XMATCH(CH$2&CRLF&CH$3&CRLF&CH$4,$S$46:$ZZ$46)) -> 0 | CI8: =INDEX($S$57:$NI$83,_xlfn.XMATCH(CI$6,$P$57:$P$83)+_xlfn.XMATCH($BD8,_xlfn.ANCHORARRAY($BD$7))-1,_xlfn.XMATCH(CI$2&CRLF&CI$3&CRLF&CI$4,$S$46:$ZZ$46)) -> 1646.330654 | CJ8: =INDEX($S$57:$NI$83,_xlfn.XMATCH(CJ$6,$P$57:$P$83)+_xlfn.XMATCH($BD8,_xlfn.ANCHORARRAY($BD$7))-1,_xlfn.XMATCH(CJ$2&CRLF&CJ$3&CRLF&CJ$4,$S$46:$ZZ$46)) -> 1291.838774 | CK8: =INDEX($S$57:$NI$83,_xlfn.XMATCH(CK$6,$P$57:$P$83)+_xlfn.XMATCH($BD8,_xlfn.ANCHORARRAY($BD$7))-1,_xlfn.XMATCH(CK$2&CRLF&CK$3&CRLF&CK$4,$S$46:$ZZ$46)) -> 0 | CL8: =INDEX($S$57:$NI$83,_xlfn.XMATCH(CL$6,$P$57:$P$83)+_xlfn.XMATCH($BD8,_xlfn.ANCHORARRAY($BD$7))-1,_xlfn.XMATCH(CL$2&CRLF&CL$3&CRLF&CL$4,$S$46:$ZZ$46)) -> 0 | CM8: =INDEX($S$57:$NI$83,_xlfn.XMATCH(CM$6,$P$57:$P$83)+_xlfn.XMATCH($BD8,_xlfn.ANCHORARRAY($BD$7))-1,_xlfn.XMATCH(CM$2&CRLF&CM$3&CRLF&CM$4,$S$46:$ZZ$46)) -> 1565.003825 | CN8: =INDEX($S$57:$NI$83,_xlfn.XMATCH(CN$6,$P$57:$P$83)+_xlfn.XMATCH($BD8,_xlfn.ANCHORARRAY($BD$7))-1,_xlfn.XMATCH(CN$2&CRLF&CN$3&CRLF&CN$4,$S$46:$ZZ$46)) -> 1174.042574 | CO8: =INDEX($S$57:$NI$83,_xlfn.XMATCH(CO$6,$P$57:$P$83)+_xlfn.XMATCH($BD8,_xlfn.ANCHORARRAY($BD$7))-1,_xlfn.XMATCH(CO$2&CRLF&CO$3&CRLF&CO$4,$S$46:$ZZ$46)) -> 0 | CP8: =INDEX($S$57:$NI$83,_xlfn.XMATCH(CP$6,$P$57:$P$83)+_xlfn.XMATCH($BD8,_xlfn.ANCHORARRAY($BD$7))-1,_xlfn.XMATCH(CP$2&CRLF&CP$3&CRLF&CP$4,$S$46:$ZZ$46)) -> 0 | CQ8: =INDEX($S$57:$NI$83,_xlfn.XMATCH(CQ$6,$P$57:$P$83)+_xlfn.XMATCH($BD8,_xlfn.ANCHORARRAY($BD$7))-1,_xlfn.XMATCH(CQ$2&CRLF&CQ$3&CRLF&CQ$4,$S$46:$ZZ$46)) -> 1698.059926 | CR8: =INDEX($S$57:$NI$83,_xlfn.XMATCH(CR$6,$P$57:$P$83)+_xlfn.XMATCH($BD8,_xlfn.ANCHORARRAY($BD$7))-1,_xlfn.XMATCH(CR$2&CRLF&CR$3&CRLF&CR$4,$S$46:$ZZ$46)) -> 1366.764992
B9: Northeastern U.S. Forests | C9: Suggested default | D9: Suggested default | F9: 507.806013 | G9: 205.7320859 | H9: 1842.434075 | I9: 1575.880807 | J9: 0.2912741021 | K9: No saving | L9: No saving | M9: 2.603494562 | P9: ='Calculation Single Use Results'!I8 -> Net GHG intensity of BECCS | S9: ='Calculation Single Use Results'!L8 -> 573.8499299 | T9: ='Calculation Single Use Results'!M8 -> g CO2e / kWh | V9: 576.4651708 | W9: 562.8243854 | X9: 1575.880807 | Y9: 1061.843355 | Z9: 780.4539648 | AA9: 562.955167 | AB9: 54.32587421 | AC9: -236.2126799 | AD9: 399.8592714 | AE9: 165.3782642 | AF9: -112.0215548 | AG9: 573.8499299 | AH9: 573.8499299 | BD9: Harvest-enhanced growth | BE9: =INDEX($S$57:$NI$83,_xlfn.XMATCH(BE$6,$P$57:$P$83)+_xlfn.XMATCH($BD9,_xlfn.ANCHORARRAY($BD$7))-1,_xlfn.XMATCH(BE$2&CRLF&BE$3&CRLF&BE$4,$S$46:$ZZ$46)) -> 0 | BF9: =INDEX($S$57:$NI$83,_xlfn.XMATCH(BF$6,$P$57:$P$83)+_xlfn.XMATCH($BD9,_xlfn.ANCHORARRAY($BD$7))-1,_xlfn.XMATCH(BF$2&CRLF&BF$3&CRLF&BF$4,$S$46:$ZZ$46)) -> 0 | BG9: =INDEX($S$57:$NI$83,_xlfn.XMATCH(BG$6,$P$57:$P$83)+_xlfn.XMATCH($BD9,_xlfn.ANCHORARRAY($BD$7))-1,_xlfn.XMATCH(BG$2&CRLF&BG$3&CRLF&BG$4,$S$46:$ZZ$46)) -> -258.5720297 | BH9: =INDEX($S$57:$NI$83,_xlfn.XMATCH(BH$6,$P$57:$P$83)+_xlfn.XMATCH($BD9,_xlfn.ANCHORARRAY($BD$7))-1,_xlfn.XMATCH(BH$2&CRLF&BH$3&CRLF&BH$4,$S$46:$ZZ$46)) -> -279.2354532 | BI9: =INDEX($S$57:$NI$83,_xlfn.XMATCH(BI$6,$P$57:$P$83)+_xlfn.XMATCH($BD9,_xlfn.ANCHORARRAY($BD$7))-1,_xlfn.XMATCH(BI$2&CRLF&BI$3&CRLF&BI$4,$S$46:$ZZ$46)) -> 0 | BJ9: =INDEX($S$57:$NI$83,_xlfn.XMATCH(BJ$6,$P$57:$P$83)+_xlfn.XMATCH($BD9,_xlfn.ANCHORARRAY($BD$7))-1,_xlfn.XMATCH(BJ$2&CRLF&BJ$3&CRLF&BJ$4,$S$46:$ZZ$46)) -> 0 | BK9: =INDEX($S$57:$NI$83,_xlfn.XMATCH(BK$6,$P$57:$P$83)+_xlfn.XMATCH($BD9,_xlfn.ANCHORARRAY($BD$7))-1,_xlfn.XMATCH(BK$2&CRLF&BK$3&CRLF&BK$4,$S$46:$ZZ$46)) -> -150.319628 | BL9: =INDEX($S$57:$NI$83,_xlfn.XMATCH(BL$6,$P$57:$P$83)+_xlfn.XMATCH($BD9,_xlfn.ANCHORARRAY($BD$7))-1,_xlfn.XMATCH(BL$2&CRLF&BL$3&CRLF&BL$4,$S$46:$ZZ$46)) -> -162.3322116 | BM9: =INDEX($S$57:$NI$83,_xlfn.XMATCH(BM$6,$P$57:$P$83)+_xlfn.XMATCH($BD9,_xlfn.ANCHORARRAY($BD$7))-1,_xlfn.XMATCH(BM$2&CRLF&BM$3&CRLF&BM$4,$S$46:$ZZ$46)) -> 0 | BN9: =INDEX($S$57:$NI$83,_xlfn.XMATCH(BN$6,$P$57:$P$83)+_xlfn.XMATCH($BD9,_xlfn.ANCHORARRAY($BD$7))-1,_xlfn.XMATCH(BN$2&CRLF&BN$3&CRLF&BN$4,$S$46:$ZZ$46)) -> 0 | BO9: =INDEX($S$57:$NI$83,_xlfn.XMATCH(BO$6,$P$57:$P$83)+_xlfn.XMATCH($BD9,_xlfn.ANCHORARRAY($BD$7))-1,_xlfn.XMATCH(BO$2&CRLF&BO$3&CRLF&BO$4,$S$46:$ZZ$46)) -> -310.7836895 | BP9: =INDEX($S$57:$NI$83,_xlfn.XMATCH(BP$6,$P$57:$P$83)+_xlfn.XMATCH($BD9,_xlfn.ANCHORARRAY($BD$7))-1,_xlfn.XMATCH(BP$2&CRLF&BP$3&CRLF&BP$4,$S$46:$ZZ$46)) -> -333.9515804 | BQ9: =INDEX($S$57:$NI$83,_xlfn.XMATCH(BQ$6,$P$57:$P$83)+_xlfn.XMATCH($BD9,_xlfn.ANCHORARRAY($BD$7))-1,_xlfn.XMATCH(BQ$2&CRLF&BQ$3&CRLF&BQ$4,$S$46:$ZZ$46)) -> 0 | BR9: =INDEX($S$57:$NI$83,_xlfn.XMATCH(BR$6,$P$57:$P$83)+_xlfn.XMATCH($BD9,_xlfn.ANCHORARRAY($BD$7))-1,_xlfn.XMATCH(BR$2&CRLF&BR$3&CRLF&BR$4,$S$46:$ZZ$46)) -> 0 | BS9: =INDEX($S$57:$NI$83,_xlfn.XMATCH(BS$6,$P$57:$P$83)+_xlfn.XMATCH($BD9,_xlfn.ANCHORARRAY($BD$7))-1,_xlfn.XMATCH(BS$2&CRLF&BS$3&CRLF&BS$4,$S$46:$ZZ$46)) -> -647.5974471 | BT9: =INDEX($S$57:$NI$83,_xlfn.XMATCH(BT$6,$P$57:$P$83)+_xlfn.XMATCH($BD9,_xlfn.ANCHORARRAY($BD$7))-1,_xlfn.XMATCH(BT$2&CRLF&BT$3&CRLF&BT$4,$S$46:$ZZ$46)) -> -937.9994222 | BU9: =INDEX($S$57:$NI$83,_xlfn.XMATCH(BU$6,$P$57:$P$83)+_xlfn.XMATCH($BD9,_xlfn.ANCHORARRAY($BD$7))-1,_xlfn.XMATCH(BU$2&CRLF&BU$3&CRLF&BU$4,$S$46:$ZZ$46)) -> 0 | BV9: =INDEX($S$57:$NI$83,_xlfn.XMATCH(BV$6,$P$57:$P$83)+_xlfn.XMATCH($BD9,_xlfn.ANCHORARRAY($BD$7))-1,_xlfn.XMATCH(BV$2&CRLF&BV$3&CRLF&BV$4,$S$46:$ZZ$46)) -> 0 | BW9: =INDEX($S$57:$NI$83,_xlfn.XMATCH(BW$6,$P$57:$P$83)+_xlfn.XMATCH($BD9,_xlfn.ANCHORARRAY($BD$7))-1,_xlfn.XMATCH(BW$2&CRLF&BW$3&CRLF&BW$4,$S$46:$ZZ$46)) -> -678.7363163 | BX9: =INDEX($S$57:$NI$83,_xlfn.XMATCH(BX$6,$P$57:$P$83)+_xlfn.XMATCH($BD9,_xlfn.ANCHORARRAY($BD$7))-1,_xlfn.XMATCH(BX$2&CRLF&BX$3&CRLF&BX$4,$S$46:$ZZ$46)) -> -983.1018875 | BY9: =INDEX($S$57:$NI$83,_xlfn.XMATCH(BY$6,$P$57:$P$83)+_xlfn.XMATCH($BD9,_xlfn.ANCHORARRAY($BD$7))-1,_xlfn.XMATCH(BY$2&CRLF&BY$3&CRLF&BY$4,$S$46:$ZZ$46)) -> 0 | BZ9: =INDEX($S$57:$NI$83,_xlfn.XMATCH(BZ$6,$P$57:$P$83)+_xlfn.XMATCH($BD9,_xlfn.ANCHORARRAY($BD$7))-1,_xlfn.XMATCH(BZ$2&CRLF&BZ$3&CRLF&BZ$4,$S$46:$ZZ$46)) -> 0 | CA9: =INDEX($S$57:$NI$83,_xlfn.XMATCH(CA$6,$P$57:$P$83)+_xlfn.XMATCH($BD9,_xlfn.ANCHORARRAY($BD$7))-1,_xlfn.XMATCH(CA$2&CRLF&CA$3&CRLF&CA$4,$S$46:$ZZ$46)) -> -686.5678892 | CB9: =INDEX($S$57:$NI$83,_xlfn.XMATCH(CB$6,$P$57:$P$83)+_xlfn.XMATCH($BD9,_xlfn.ANCHORARRAY($BD$7))-1,_xlfn.XMATCH(CB$2&CRLF&CB$3&CRLF&CB$4,$S$46:$ZZ$46)) -> -994.4453709 | CC9: =INDEX($S$57:$NI$83,_xlfn.XMATCH(CC$6,$P$57:$P$83)+_xlfn.XMATCH($BD9,_xlfn.ANCHORARRAY($BD$7))-1,_xlfn.XMATCH(CC$2&CRLF&CC$3&CRLF&CC$4,$S$46:$ZZ$46)) -> 0 | CD9: =INDEX($S$57:$NI$83,_xlfn.XMATCH(CD$6,$P$57:$P$83)+_xlfn.XMATCH($BD9,_xlfn.ANCHORARRAY($BD$7))-1,_xlfn.XMATCH(CD$2&CRLF&CD$3&CRLF&CD$4,$S$46:$ZZ$46)) -> 0 | CE9: =INDEX($S$57:$NI$83,_xlfn.XMATCH(CE$6,$P$57:$P$83)+_xlfn.XMATCH($BD9,_xlfn.ANCHORARRAY($BD$7))-1,_xlfn.XMATCH(CE$2&CRLF&CE$3&CRLF&CE$4,$S$46:$ZZ$46)) -> -545.7334504 | CF9: =INDEX($S$57:$NI$83,_xlfn.XMATCH(CF$6,$P$57:$P$83)+_xlfn.XMATCH($BD9,_xlfn.ANCHORARRAY($BD$7))-1,_xlfn.XMATCH(CF$2&CRLF&CF$3&CRLF&CF$4,$S$46:$ZZ$46)) -> -790.4565768 | CG9: =INDEX($S$57:$NI$83,_xlfn.XMATCH(CG$6,$P$57:$P$83)+_xlfn.XMATCH($BD9,_xlfn.ANCHORARRAY($BD$7))-1,_xlfn.XMATCH(CG$2&CRLF&CG$3&CRLF&CG$4,$S$46:$ZZ$46)) -> 0 | CH9: =INDEX($S$57:$NI$83,_xlfn.XMATCH(CH$6,$P$57:$P$83)+_xlfn.XMATCH($BD9,_xlfn.ANCHORARRAY($BD$7))-1,_xlfn.XMATCH(CH$2&CRLF&CH$3&CRLF&CH$4,$S$46:$ZZ$46)) -> 0 | CI9: =INDEX($S$57:$NI$83,_xlfn.XMATCH(CI$6,$P$57:$P$83)+_xlfn.XMATCH($BD9,_xlfn.ANCHORARRAY($BD$7))-1,_xlfn.XMATCH(CI$2&CRLF&CI$3&CRLF&CI$4,$S$46:$ZZ$46)) -> -303.163635 | CJ9: =INDEX($S$57:$NI$83,_xlfn.XMATCH(CJ$6,$P$57:$P$83)+_xlfn.XMATCH($BD9,_xlfn.ANCHORARRAY($BD$7))-1,_xlfn.XMATCH(CJ$2&CRLF&CJ$3&CRLF&CJ$4,$S$46:$ZZ$46)) -> -439.1112345 | CK9: =INDEX($S$57:$NI$83,_xlfn.XMATCH(CK$6,$P$57:$P$83)+_xlfn.XMATCH($BD9,_xlfn.ANCHORARRAY($BD$7))-1,_xlfn.XMATCH(CK$2&CRLF&CK$3&CRLF&CK$4,$S$46:$ZZ$46)) -> 0 | CL9: =INDEX($S$57:$NI$83,_xlfn.XMATCH(CL$6,$P$57:$P$83)+_xlfn.XMATCH($BD9,_xlfn.ANCHORARRAY($BD$7))-1,_xlfn.XMATCH(CL$2&CRLF&CL$3&CRLF&CL$4,$S$46:$ZZ$46)) -> 0 | CM9: =INDEX($S$57:$NI$83,_xlfn.XMATCH(CM$6,$P$57:$P$83)+_xlfn.XMATCH($BD9,_xlfn.ANCHORARRAY($BD$7))-1,_xlfn.XMATCH(CM$2&CRLF&CM$3&CRLF&CM$4,$S$46:$ZZ$46)) -> -917.4297167 | CN9: =INDEX($S$57:$NI$83,_xlfn.XMATCH(CN$6,$P$57:$P$83)+_xlfn.XMATCH($BD9,_xlfn.ANCHORARRAY($BD$7))-1,_xlfn.XMATCH(CN$2&CRLF&CN$3&CRLF&CN$4,$S$46:$ZZ$46)) -> -1328.832515 | CO9: =INDEX($S$57:$NI$83,_xlfn.XMATCH(CO$6,$P$57:$P$83)+_xlfn.XMATCH($BD9,_xlfn.ANCHORARRAY($BD$7))-1,_xlfn.XMATCH(CO$2&CRLF&CO$3&CRLF&CO$4,$S$46:$ZZ$46)) -> 0 | CP9: =INDEX($S$57:$NI$83,_xlfn.XMATCH(CP$6,$P$57:$P$83)+_xlfn.XMATCH($BD9,_xlfn.ANCHORARRAY($BD$7))-1,_xlfn.XMATCH(CP$2&CRLF&CP$3&CRLF&CP$4,$S$46:$ZZ$46)) -> 0 | CQ9: =INDEX($S$57:$NI$83,_xlfn.XMATCH(CQ$6,$P$57:$P$83)+_xlfn.XMATCH($BD9,_xlfn.ANCHORARRAY($BD$7))-1,_xlfn.XMATCH(CQ$2&CRLF&CQ$3&CRLF&CQ$4,$S$46:$ZZ$46)) -> 0 | CR9: =INDEX($S$57:$NI$83,_xlfn.XMATCH(CR$6,$P$57:$P$83)+_xlfn.XMATCH($BD9,_xlfn.ANCHORARRAY($BD$7))-1,_xlfn.XMATCH(CR$2&CRLF&CR$3&CRLF&CR$4,$S$46:$ZZ$46)) -> 0
B10: Germany Average | C10: Suggested default | D10: Suggested default | F10: 507.806013 | G10: 205.7320859 | H10: 1487.541168 | I10: 1061.843355 | J10: 0.2912741021 | K10: No saving | L10: No saving | M10: 2.603494562 | P10: ='Calculation Single Use Results'!I9 -> Incremental cost of BECCS over NG power | S10: ='Calculation Single Use Results'!L9 -> 0.2912741021 | T10: ='Calculation Single Use Results'!M9 -> $ / kWh | V10: 0.2912741021 | W10: 0.2912741021 | X10: 0.2912741021 | Y10: 0.2912741021 | Z10: 0.2912741021 | AA10: 0.2912741021 | AB10: 0.2912741021 | AC10: 0.2905792043 | AD10: 0.1253906554 | AE10: 0.1253906554 | AF10: 0.1324550811 | AG10: 0.2912741021 | AH10: 0.2044357454 | BD10: Total | BE10: =INDEX($S$57:$NI$83,_xlfn.XMATCH(BE$6,$P$57:$P$83)+_xlfn.XMATCH($BD10,_xlfn.ANCHORARRAY($BD$7))-1,_xlfn.XMATCH(BE$2&CRLF&BE$3&CRLF&BE$4,$S$46:$ZZ$46)) -> 358.4513033 | BF10: =INDEX($S$57:$NI$83,_xlfn.XMATCH(BF$6,$P$57:$P$83)+_xlfn.XMATCH($BD10,_xlfn.ANCHORARRAY($BD$7))-1,_xlfn.XMATCH(BF$2&CRLF&BF$3&CRLF&BF$4,$S$46:$ZZ$46)) -> 133.8854786 | BG10: =INDEX($S$57:$NI$83,_xlfn.XMATCH(BG$6,$P$57:$P$83)+_xlfn.XMATCH($BD10,_xlfn.ANCHORARRAY($BD$7))-1,_xlfn.XMATCH(BG$2&CRLF&BG$3&CRLF&BG$4,$S$46:$ZZ$46)) -> 515.2722026 | BH10: =INDEX($S$57:$NI$83,_xlfn.XMATCH(BH$6,$P$57:$P$83)+_xlfn.XMATCH($BD10,_xlfn.ANCHORARRAY($BD$7))-1,_xlfn.XMATCH(BH$2&CRLF&BH$3&CRLF&BH$4,$S$46:$ZZ$46)) -> 165.3782642 | BI10: =INDEX($S$57:$NI$83,_xlfn.XMATCH(BI$6,$P$57:$P$83)+_xlfn.XMATCH($BD10,_xlfn.ANCHORARRAY($BD$7))-1,_xlfn.XMATCH(BI$2&CRLF&BI$3&CRLF&BI$4,$S$46:$ZZ$46)) -> 358.4513033 | BJ10: =INDEX($S$57:$NI$83,_xlfn.XMATCH(BJ$6,$P$57:$P$83)+_xlfn.XMATCH($BD10,_xlfn.ANCHORARRAY($BD$7))-1,_xlfn.XMATCH(BJ$2&CRLF&BJ$3&CRLF&BJ$4,$S$46:$ZZ$46)) -> 133.8854786 | BK10: =INDEX($S$57:$NI$83,_xlfn.XMATCH(BK$6,$P$57:$P$83)+_xlfn.XMATCH($BD10,_xlfn.ANCHORARRAY($BD$7))-1,_xlfn.XMATCH(BK$2&CRLF&BK$3&CRLF&BK$4,$S$46:$ZZ$46)) -> 732.4016153 | BL10: =INDEX($S$57:$NI$83,_xlfn.XMATCH(BL$6,$P$57:$P$83)+_xlfn.XMATCH($BD10,_xlfn.ANCHORARRAY($BD$7))-1,_xlfn.XMATCH(BL$2&CRLF&BL$3&CRLF&BL$4,$S$46:$ZZ$46)) -> 399.8592714 | BM10: =INDEX($S$57:$NI$83,_xlfn.XMATCH(BM$6,$P$57:$P$83)+_xlfn.XMATCH($BD10,_xlfn.ANCHORARRAY($BD$7))-1,_xlfn.XMATCH(BM$2&CRLF&BM$3&CRLF&BM$4,$S$46:$ZZ$46)) -> 338.537342 | BN10: =INDEX($S$57:$NI$83,_xlfn.XMATCH(BN$6,$P$57:$P$83)+_xlfn.XMATCH($BD10,_xlfn.ANCHORARRAY($BD$7))-1,_xlfn.XMATCH(BN$2&CRLF&BN$3&CRLF&BN$4,$S$46:$ZZ$46)) -> 112.8637872 | BO10: =INDEX($S$57:$NI$83,_xlfn.XMATCH(BO$6,$P$57:$P$83)+_xlfn.XMATCH($BD10,_xlfn.ANCHORARRAY($BD$7))-1,_xlfn.XMATCH(BO$2&CRLF&BO$3&CRLF&BO$4,$S$46:$ZZ$46)) -> 255.2191358 | BP10: =INDEX($S$57:$NI$83,_xlfn.XMATCH(BP$6,$P$57:$P$83)+_xlfn.XMATCH($BD10,_xlfn.ANCHORARRAY($BD$7))-1,_xlfn.XMATCH(BP$2&CRLF&BP$3&CRLF&BP$4,$S$46:$ZZ$46)) -> -112.0215548 | BQ10: =INDEX($S$57:$NI$83,_xlfn.XMATCH(BQ$6,$P$57:$P$83)+_xlfn.XMATCH($BD10,_xlfn.ANCHORARRAY($BD$7))-1,_xlfn.XMATCH(BQ$2&CRLF&BQ$3&CRLF&BQ$4,$S$46:$ZZ$46)) -> 507.806013 | BR10: =INDEX($S$57:$NI$83,_xlfn.XMATCH(BR$6,$P$57:$P$83)+_xlfn.XMATCH($BD10,_xlfn.ANCHORARRAY($BD$7))-1,_xlfn.XMATCH(BR$2&CRLF&BR$3&CRLF&BR$4,$S$46:$ZZ$46)) -> 205.7320859 | BS10: =INDEX($S$57:$NI$83,_xlfn.XMATCH(BS$6,$P$57:$P$83)+_xlfn.XMATCH($BD10,_xlfn.ANCHORARRAY($BD$7))-1,_xlfn.XMATCH(BS$2&CRLF&BS$3&CRLF&BS$4,$S$46:$ZZ$46)) -> 1143.107356 | BT10: =INDEX($S$57:$NI$83,_xlfn.XMATCH(BT$6,$P$57:$P$83)+_xlfn.XMATCH($BD10,_xlfn.ANCHORARRAY($BD$7))-1,_xlfn.XMATCH(BT$2&CRLF&BT$3&CRLF&BT$4,$S$46:$ZZ$46)) -> 562.955167 | BU10: =INDEX($S$57:$NI$83,_xlfn.XMATCH(BU$6,$P$57:$P$83)+_xlfn.XMATCH($BD10,_xlfn.ANCHORARRAY($BD$7))-1,_xlfn.XMATCH(BU$2&CRLF&BU$3&CRLF&BU$4,$S$46:$ZZ$46)) -> 507.806013 | BV10: =INDEX($S$57:$NI$83,_xlfn.XMATCH(BV$6,$P$57:$P$83)+_xlfn.XMATCH($BD10,_xlfn.ANCHORARRAY($BD$7))-1,_xlfn.XMATCH(BV$2&CRLF&BV$3&CRLF&BV$4,$S$46:$ZZ$46)) -> 205.7320859 | BW10: =INDEX($S$57:$NI$83,_xlfn.XMATCH(BW$6,$P$57:$P$83)+_xlfn.XMATCH($BD10,_xlfn.ANCHORARRAY($BD$7))-1,_xlfn.XMATCH(BW$2&CRLF&BW$3&CRLF&BW$4,$S$46:$ZZ$46)) -> 1143.017064 | BX10: =INDEX($S$57:$NI$83,_xlfn.XMATCH(BX$6,$P$57:$P$83)+_xlfn.XMATCH($BD10,_xlfn.ANCHORARRAY($BD$7))-1,_xlfn.XMATCH(BX$2&CRLF&BX$3&CRLF&BX$4,$S$46:$ZZ$46)) -> 562.8243854 | BY10: =INDEX($S$57:$NI$83,_xlfn.XMATCH(BY$6,$P$57:$P$83)+_xlfn.XMATCH($BD10,_xlfn.ANCHORARRAY($BD$7))-1,_xlfn.XMATCH(BY$2&CRLF&BY$3&CRLF&BY$4,$S$46:$ZZ$46)) -> 507.806013 | BZ10: =INDEX($S$57:$NI$83,_xlfn.XMATCH(BZ$6,$P$57:$P$83)+_xlfn.XMATCH($BD10,_xlfn.ANCHORARRAY($BD$7))-1,_xlfn.XMATCH(BZ$2&CRLF&BZ$3&CRLF&BZ$4,$S$46:$ZZ$46)) -> 205.7320859 | CA10: =INDEX($S$57:$NI$83,_xlfn.XMATCH(CA$6,$P$57:$P$83)+_xlfn.XMATCH($BD10,_xlfn.ANCHORARRAY($BD$7))-1,_xlfn.XMATCH(CA$2&CRLF&CA$3&CRLF&CA$4,$S$46:$ZZ$46)) -> 1152.434701 | CB10: =INDEX($S$57:$NI$83,_xlfn.XMATCH(CB$6,$P$57:$P$83)+_xlfn.XMATCH($BD10,_xlfn.ANCHORARRAY($BD$7))-1,_xlfn.XMATCH(CB$2&CRLF&CB$3&CRLF&CB$4,$S$46:$ZZ$46)) -> 576.4651708 | CC10: =INDEX($S$57:$NI$83,_xlfn.XMATCH(CC$6,$P$57:$P$83)+_xlfn.XMATCH($BD10,_xlfn.ANCHORARRAY($BD$7))-1,_xlfn.XMATCH(CC$2&CRLF&CC$3&CRLF&CC$4,$S$46:$ZZ$46)) -> 507.806013 | CD10: =INDEX($S$57:$NI$83,_xlfn.XMATCH(CD$6,$P$57:$P$83)+_xlfn.XMATCH($BD10,_xlfn.ANCHORARRAY($BD$7))-1,_xlfn.XMATCH(CD$2&CRLF&CD$3&CRLF&CD$4,$S$46:$ZZ$46)) -> 205.7320859 | CE10: =INDEX($S$57:$NI$83,_xlfn.XMATCH(CE$6,$P$57:$P$83)+_xlfn.XMATCH($BD10,_xlfn.ANCHORARRAY($BD$7))-1,_xlfn.XMATCH(CE$2&CRLF&CE$3&CRLF&CE$4,$S$46:$ZZ$46)) -> 1293.26914 | CF10: =INDEX($S$57:$NI$83,_xlfn.XMATCH(CF$6,$P$57:$P$83)+_xlfn.XMATCH($BD10,_xlfn.ANCHORARRAY($BD$7))-1,_xlfn.XMATCH(CF$2&CRLF&CF$3&CRLF&CF$4,$S$46:$ZZ$46)) -> 780.4539648 | CG10: =INDEX($S$57:$NI$83,_xlfn.XMATCH(CG$6,$P$57:$P$83)+_xlfn.XMATCH($BD10,_xlfn.ANCHORARRAY($BD$7))-1,_xlfn.XMATCH(CG$2&CRLF&CG$3&CRLF&CG$4,$S$46:$ZZ$46)) -> 507.806013 | CH10: =INDEX($S$57:$NI$83,_xlfn.XMATCH(CH$6,$P$57:$P$83)+_xlfn.XMATCH($BD10,_xlfn.ANCHORARRAY($BD$7))-1,_xlfn.XMATCH(CH$2&CRLF&CH$3&CRLF&CH$4,$S$46:$ZZ$46)) -> 205.7320859 | CI10: =INDEX($S$57:$NI$83,_xlfn.XMATCH(CI$6,$P$57:$P$83)+_xlfn.XMATCH($BD10,_xlfn.ANCHORARRAY($BD$7))-1,_xlfn.XMATCH(CI$2&CRLF&CI$3&CRLF&CI$4,$S$46:$ZZ$46)) -> 1487.541168 | CJ10: =INDEX($S$57:$NI$83,_xlfn.XMATCH(CJ$6,$P$57:$P$83)+_xlfn.XMATCH($BD10,_xlfn.ANCHORARRAY($BD$7))-1,_xlfn.XMATCH(CJ$2&CRLF&CJ$3&CRLF&CJ$4,$S$46:$ZZ$46)) -> 1061.843355 | CK10: =INDEX($S$57:$NI$83,_xlfn.XMATCH(CK$6,$P$57:$P$83)+_xlfn.XMATCH($BD10,_xlfn.ANCHORARRAY($BD$7))-1,_xlfn.XMATCH(CK$2&CRLF&CK$3&CRLF&CK$4,$S$46:$ZZ$46)) -> 507.806013 | CL10: =INDEX($S$57:$NI$83,_xlfn.XMATCH(CL$6,$P$57:$P$83)+_xlfn.XMATCH($BD10,_xlfn.ANCHORARRAY($BD$7))-1,_xlfn.XMATCH(CL$2&CRLF&CL$3&CRLF&CL$4,$S$46:$ZZ$46)) -> 205.7320859 | CM10: =INDEX($S$57:$NI$83,_xlfn.XMATCH(CM$6,$P$57:$P$83)+_xlfn.XMATCH($BD10,_xlfn.ANCHORARRAY($BD$7))-1,_xlfn.XMATCH(CM$2&CRLF&CM$3&CRLF&CM$4,$S$46:$ZZ$46)) -> 791.9482576 | CN10: =INDEX($S$57:$NI$83,_xlfn.XMATCH(CN$6,$P$57:$P$83)+_xlfn.XMATCH($BD10,_xlfn.ANCHORARRAY($BD$7))-1,_xlfn.XMATCH(CN$2&CRLF&CN$3&CRLF&CN$4,$S$46:$ZZ$46)) -> 54.32587421 | CO10: =INDEX($S$57:$NI$83,_xlfn.XMATCH(CO$6,$P$57:$P$83)+_xlfn.XMATCH($BD10,_xlfn.ANCHORARRAY($BD$7))-1,_xlfn.XMATCH(CO$2&CRLF&CO$3&CRLF&CO$4,$S$46:$ZZ$46)) -> 507.806013 | CP10: =INDEX($S$57:$NI$83,_xlfn.XMATCH(CP$6,$P$57:$P$83)+_xlfn.XMATCH($BD10,_xlfn.ANCHORARRAY($BD$7))-1,_xlfn.XMATCH(CP$2&CRLF&CP$3&CRLF&CP$4,$S$46:$ZZ$46)) -> 205.7320859 | CQ10: =INDEX($S$57:$NI$83,_xlfn.XMATCH(CQ$6,$P$57:$P$83)+_xlfn.XMATCH($BD10,_xlfn.ANCHORARRAY($BD$7))-1,_xlfn.XMATCH(CQ$2&CRLF&CQ$3&CRLF&CQ$4,$S$46:$ZZ$46)) -> 1842.434075 | CR10: =INDEX($S$57:$NI$83,_xlfn.XMATCH(CR$6,$P$57:$P$83)+_xlfn.XMATCH($BD10,_xlfn.ANCHORARRAY($BD$7))-1,_xlfn.XMATCH(CR$2&CRLF&CR$3&CRLF&CR$4,$S$46:$ZZ$46)) -> 1575.880807
B11: U.S. Douglas Fir | C11: Suggested default | D11: Suggested default | F11: 507.806013 | G11: 205.7320859 | H11: 1293.26914 | I11: 780.4539648 | J11: 0.2912741021 | K11: No saving | L11: No saving | M11: 2.603494562 | P11: ='Calculation Single Use Results'!I10 -> Mitigation cost for BECCS rel to NG (no CCS) | S11: ='Calculation Single Use Results'!L10 -> No saving | T11: ='Calculation Single Use Results'!M10 -> $/tCO2e | V11: No saving | W11: No saving | X11: No saving | Y11: No saving | Z11: No saving | AA11: No saving | AB11: 642.3083993 | AC11: 390.553634 | AD11: No saving | AE11: 649.4467378 | AF11: 293.9795042 | AG11: No saving | AH11: No saving
B12: Convert secondary forest to intensive loblolly | C12: Suggested default | D12: Suggested default | F12: 507.806013 | G12: 205.7320859 | H12: 1143.107356 | I12: 562.955167 | J12: 0.2912741021 | K12: No saving | L12: No saving | M12: 2.603494562 | P12: ='Calculation Single Use Results'!I11 -> Mitigation cost for BECCS rel to NG (with CCS) | S12: ='Calculation Single Use Results'!L11 -> No saving | T12: ='Calculation Single Use Results'!M11 -> $/tCO2e | V12: No saving | W12: No saving | X12: No saving | Y12: No saving | Z12: No saving | AA12: No saving | AB12: 1669.037843 | AC12: 570.2246496 | AD12: No saving | AE12: No saving | AF12: 498.5523552 | AG12: No saving | AH12: No saving
B13: Intensive loblolly (USDA) | C13: Suggested default | D13: Suggested default | F13: 507.806013 | G13: 205.7320859 | H13: 791.9482576 | I13: 54.32587421 | J13: 0.2912741021 | K13: 642.3083993 | L13: 1669.037843 | M13: 2.603494562 | P13: ='Calculation Single Use Results'!I12 -> BECCS cost compared to NG-CCS cost | S13: ='Calculation Single Use Results'!L12 -> 2.603494562 | T13: ='Calculation Single Use Results'!M12 -> Ratio | V13: 2.603494562 | W13: 2.603494562 | X13: 2.603494562 | Y13: 2.603494562 | Z13: 2.603494562 | AA13: 2.603494562 | AB13: 2.603494562 | AC13: 2.599085172 | AD13: 1.852464348 | AE13: 1.852464348 | AF13: 1.921750684 | AG13: 2.603494562 | AH13: 1.831048621
B14: Loblolly + 50% residues | C14: Suggested default | D14: Suggested default | F14: 507.806013 | G14: 205.7320859 | H14: 591.0610839 | I14: -236.2126799 | J14: 0.2905792043 | K14: 390.553634 | L14: 570.2246496 | M14: 2.599085172 | P14: ='Calculation Single Use Results'!I13 -> Ratio of gross CO2/kWh, BECCS:NG-CCS (gross only includes emissions w/o harvest-enhanced growth) | S14: ='Calculation Single Use Results'!L13 -> 7.63570998 | T14: ='Calculation Single Use Results'!M13 -> Ratio | V14: 7.63570998 | W14: 7.514269182 | X14: 7.659868902 | Y14: 7.295675745 | Z14: 7.63570998 | AA14: 7.295675745 | AB14: 6.723104871 | AC14: 3.315318041 | AD14: 4.19904749 | AE14: 3.320850939 | AF14: 1.966352814 | AG14: 7.63570998 | AH14: 7.63570998
B15: CHP Germany | C15: CHP | D15: Suggested default | F15: 358.4513033 | G15: 133.8854786 | H15: 732.4016153 | I15: 399.8592714 | J15: 0.1253906554 | K15: No saving | L15: No saving | M15: 1.852464348 | P15: ='Calculation Single Use Results'!I14 -> % of carbon captured by CCS that is negative emissions | S15: ='Calculation Single Use Results'!L14 -> None | T15: ='Calculation Single Use Results'!M14 -> kg CO2 / t CO2 stored | V15: None | W15: None | X15: None | Y15: None | Z15: None | AA15: None | AB15: None | AC15: 0.1957903827 | AD15: None | AE15: None | AF15: 0.2703971341 | AG15: None | AH15: None
B16: CHP U.S. Avg. | C16: CHP | D16: Suggested default | F16: 358.4513033 | G16: 133.8854786 | H16: 515.2722026 | I16: 165.3782642 | J16: 0.1253906554 | K16: 649.4467378 | L16: No saving | M16: 1.852464348 | P16: BECCS emissions | Q16: Fossil emissions | S16: =INDEX('Calculation Single Use Results'!$K$19:$O$22,TRUNC((ROWS(Q$16:Q16)-1)/5,0)+1,MATCH($Q16,'Calculation Single Use Results'!$K$18:$O$18,0)) -> 209.1158154 | T16: gCO2e/kWh | V16: 209.1158154 | W16: 209.1158154 | X16: 209.1158154 | Y16: 209.1158154 | Z16: 209.1158154 | AA16: 209.1158154 | AB16: 209.1158154 | AC16: 208.7337092 | AD16: 74.83757175 | AE16: 74.83757175 | AF16: 69.81154276 | AG16: 209.1158154 | AH16: 209.1158154
B17: CHP (extreme) | C17: CHP extreme | D17: Suggested default | F17: 338.537342 | G17: 112.8637872 | H17: 255.2191358 | I17: -112.0215548 | J17: 0.1324550811 | K17: 293.9795042 | L17: 498.5523552 | M17: 1.921750684 | Q17: Biogenic emissions | S17: =INDEX('Calculation Single Use Results'!$K$19:$O$22,TRUNC((ROWS(Q$16:Q17)-1)/5,0)+1,MATCH($Q17,'Calculation Single Use Results'!$K$18:$O$18,0)) -> 1361.794726 | T17: gCO2e/kWh | V17: 1361.794726 | W17: 1336.810458 | X17: 1366.764992 | Y17: 1291.838774 | Z17: 1361.794726 | AA17: 1291.838774 | AB17: 1174.042574 | AC17: 473.3335869 | AD17: 487.3539112 | AE17: 369.7761456 | AF17: 152.1184828 | AG17: 1361.794726 | AH17: 1361.794726
B18: Suggested default | C18: Suggested default | D18: Suggested default | F18: 507.806013 | G18: 205.7320859 | H18: 1150.629131 | I18: 573.8499299 | J18: 0.2912741021 | K18: No saving | L18: No saving | M18: 2.603494562 | Q18: Harvest-enhanced growth | S18: =INDEX('Calculation Single Use Results'!$K$19:$O$22,TRUNC((ROWS(Q$16:Q18)-1)/5,0)+1,MATCH($Q18,'Calculation Single Use Results'!$K$18:$O$18,0)) -> -997.0606118 | T18: gCO2e/kWh | V18: -994.4453709 | W18: -983.1018875 | X18: 0 | Y18: -439.1112345 | Z18: -790.4565768 | AA18: -937.9994222 | AB18: -1328.832515 | AC18: -918.2799759 | AD18: -162.3322116 | AE18: -279.2354532 | AF18: -333.9515804 | AG18: -997.0606118 | AH18: -997.0606118
B19: Suggested default | C19: Suggested default | D19: High gas price, low pellet price | F19: 507.806013 | G19: 205.7320859 | H19: 1150.629131 | I19: 573.8499299 | J19: 0.2044357454 | K19: No saving | L19: No saving | M19: 1.831048621 | Q19: Total | S19: =INDEX('Calculation Single Use Results'!$K$19:$O$22,TRUNC((ROWS(Q$16:Q19)-1)/5,0)+1,MATCH($Q19,'Calculation Single Use Results'!$K$18:$O$18,0)) -> 573.8499299 | T19: gCO2e/kWh | V19: 576.4651708 | W19: 562.8243854 | X19: 1575.880807 | Y19: 1061.843355 | Z19: 780.4539648 | AA19: 562.955167 | AB19: 54.32587421 | AC19: -236.2126799 | AD19: 399.8592714 | AE19: 165.3782642 | AF19: -112.0215548 | AG19: 573.8499299 | AH19: 573.8499299
B20: Suggested default | C20: Suggested default | D20: Suggested default | Q20: Captured CO2 | S20: =INDEX('Calculation Single Use Results'!$K$19:$O$22,TRUNC((ROWS(Q$16:Q20)-1)/5,0)+1,MATCH($Q20,'Calculation Single Use Results'!$K$18:$O$18,0)) -> 1092.75556 | T20: gCO2e/kWh | V20: 1092.75556 | W20: 1092.75556 | X20: 1092.75556 | Y20: 1092.75556 | Z20: 1092.75556 | AA20: 1092.75556 | AB20: 1092.75556 | AC20: 1090.758825 | AD20: 1110.834141 | AE20: 1110.834141 | AF20: 976.4867782 | AG20: 1092.75556 | AH20: 1092.75556
B21: Suggested default | C21: Suggested default | D21: Suggested default | P21: Bioenergy w/o CCS emissions | Q21: Fossil emissions | S21: =INDEX('Calculation Single Use Results'!$K$19:$O$22,TRUNC((ROWS(Q$16:Q21)-1)/5,0)+1,MATCH($Q21,'Calculation Single Use Results'!$K$18:$O$18,0)) -> 144.3741488 | T21: gCO2e/kWh | V21: 144.3741488 | W21: 144.3741488 | X21: 144.3741488 | Y21: 144.3741488 | Z21: 144.3741488 | AA21: 144.3741488 | AB21: 144.3741488 | AC21: 144.3741488 | AD21: 69.29959144 | AE21: 69.29959144 | AF21: 64.96836698 | AG21: 144.3741488 | AH21: 144.3741488
B22: Suggested default | C22: Suggested default | D22: Suggested default | Q22: Biogenic emissions | S22: =INDEX('Calculation Single Use Results'!$K$19:$O$22,TRUNC((ROWS(Q$16:Q22)-1)/5,0)+1,MATCH($Q22,'Calculation Single Use Results'!$K$18:$O$18,0)) -> 1694.628441 | T22: gCO2e/kWh | V22: 1694.628441 | W22: 1677.379232 | X22: 1698.059926 | Y22: 1646.330654 | Z22: 1694.628441 | AA22: 1646.330654 | AB22: 1565.003825 | AC22: 1081.830585 | AD22: 813.4216518 | AE22: 704.5446409 | AF22: 501.0344583 | AG22: 1694.628441 | AH22: 1694.628441
B23: Suggested default | C23: Suggested default | D23: Suggested default | Q23: Harvest-enhanced growth | S23: =INDEX('Calculation Single Use Results'!$K$19:$O$22,TRUNC((ROWS(Q$16:Q23)-1)/5,0)+1,MATCH($Q23,'Calculation Single Use Results'!$K$18:$O$18,0)) -> -688.3734589 | T23: gCO2e/kWh | V23: -686.5678892 | W23: -678.7363163 | X23: 0 | Y23: -303.163635 | Z23: -545.7334504 | AA23: -647.5974471 | AB23: -917.4297167 | AC23: -635.14365 | AD23: -150.319628 | AE23: -258.5720297 | AF23: -310.7836895 | AG23: -688.3734589 | AH23: -688.3734589
B24: Suggested default | C24: Suggested default | D24: Suggested default | Q24: Total | S24: =INDEX('Calculation Single Use Results'!$K$19:$O$22,TRUNC((ROWS(Q$16:Q24)-1)/5,0)+1,MATCH($Q24,'Calculation Single Use Results'!$K$18:$O$18,0)) -> 1150.629131 | T24: gCO2e/kWh | V24: 1152.434701 | W24: 1143.017064 | X24: 1842.434075 | Y24: 1487.541168 | Z24: 1293.26914 | AA24: 1143.107356 | AB24: 791.9482576 | AC24: 591.0610839 | AD24: 732.4016153 | AE24: 515.2722026 | AF24: 255.2191358 | AG24: 1150.629131 | AH24: 1150.629131
B25: Suggested default | C25: Suggested default | D25: Suggested default | Q25: Captured CO2 | S25: =INDEX('Calculation Single Use Results'!$K$19:$O$22,TRUNC((ROWS(Q$16:Q25)-1)/5,0)+1,MATCH($Q25,'Calculation Single Use Results'!$K$18:$O$18,0)) -> 0 | T25: gCO2e/kWh | V25: 0 | W25: 0 | X25: 0 | Y25: 0 | Z25: 0 | AA25: 0 | AB25: 0 | AC25: 0 | AD25: 0 | AE25: 0 | AF25: 0 | AG25: 0 | AH25: 0
B26: Suggested default | C26: Suggested default | D26: Suggested default | P26: NG-CCS emissions | Q26: Fossil emissions | S26: =INDEX('Calculation Single Use Results'!$K$19:$O$22,TRUNC((ROWS(Q$16:Q26)-1)/5,0)+1,MATCH($Q26,'Calculation Single Use Results'!$K$18:$O$18,0)) -> 205.7320859 | T26: gCO2e/kWh | V26: 205.7320859 | W26: 205.7320859 | X26: 205.7320859 | Y26: 205.7320859 | Z26: 205.7320859 | AA26: 205.7320859 | AB26: 205.7320859 | AC26: 205.7320859 | AD26: 133.8854786 | AE26: 133.8854786 | AF26: 112.8637872 | AG26: 205.7320859 | AH26: 205.7320859
B27: Suggested default | C27: Suggested default | D27: Suggested default | Q27: Biogenic emissions | S27: =INDEX('Calculation Single Use Results'!$K$19:$O$22,TRUNC((ROWS(Q$16:Q27)-1)/5,0)+1,MATCH($Q27,'Calculation Single Use Results'!$K$18:$O$18,0)) -> 0 | T27: gCO2e/kWh | V27: 0 | W27: 0 | X27: 0 | Y27: 0 | Z27: 0 | AA27: 0 | AB27: 0 | AC27: 0 | AD27: 0 | AE27: 0 | AF27: 0 | AG27: 0 | AH27: 0
B28: Suggested default | C28: Suggested default | D28: Suggested default | Q28: Harvest-enhanced growth | S28: =INDEX('Calculation Single Use Results'!$K$19:$O$22,TRUNC((ROWS(Q$16:Q28)-1)/5,0)+1,MATCH($Q28,'Calculation Single Use Results'!$K$18:$O$18,0)) -> 0 | T28: gCO2e/kWh | V28: 0 | W28: 0 | X28: 0 | Y28: 0 | Z28: 0 | AA28: 0 | AB28: 0 | AC28: 0 | AD28: 0 | AE28: 0 | AF28: 0 | AG28: 0 | AH28: 0
B29: Suggested default | C29: Suggested default | D29: Suggested default | Q29: Total | S29: =INDEX('Calculation Single Use Results'!$K$19:$O$22,TRUNC((ROWS(Q$16:Q29)-1)/5,0)+1,MATCH($Q29,'Calculation Single Use Results'!$K$18:$O$18,0)) -> 205.7320859 | T29: gCO2e/kWh | V29: 205.7320859 | W29: 205.7320859 | X29: 205.7320859 | Y29: 205.7320859 | Z29: 205.7320859 | AA29: 205.7320859 | AB29: 205.7320859 | AC29: 205.7320859 | AD29: 133.8854786 | AE29: 133.8854786 | AF29: 112.8637872 | AG29: 205.7320859 | AH29: 205.7320859
B30: Suggested default | C30: Suggested default | D30: Suggested default | Q30: Captured CO2 | S30: =INDEX('Calculation Single Use Results'!$K$19:$O$22,TRUNC((ROWS(Q$16:Q30)-1)/5,0)+1,MATCH($Q30,'Calculation Single Use Results'!$K$18:$O$18,0)) -> 368.3760191 | T30: gCO2e/kWh | V30: 368.3760191 | W30: 368.3760191 | X30: 368.3760191 | Y30: 368.3760191 | Z30: 368.3760191 | AA30: 368.3760191 | AB30: 368.3760191 | AC30: 368.3760191 | AD30: 419.9785177 | AE30: 419.9785177 | AF30: 498.1949458 | AG30: 368.3760191 | AH30: 368.3760191
B31: Suggested default | C31: Suggested default | D31: Suggested default | P31: NG w/o CCS emissions | Q31: Fossil emissions | S31: =INDEX('Calculation Single Use Results'!$K$19:$O$22,TRUNC((ROWS(Q$16:Q31)-1)/5,0)+1,MATCH($Q31,'Calculation Single Use Results'!$K$18:$O$18,0)) -> 507.806013 | T31: gCO2e/kWh | V31: 507.806013 | W31: 507.806013 | X31: 507.806013 | Y31: 507.806013 | Z31: 507.806013 | AA31: 507.806013 | AB31: 507.806013 | AC31: 507.806013 | AD31: 358.4513033 | AE31: 358.4513033 | AF31: 338.537342 | AG31: 507.806013 | AH31: 507.806013
... 37 more rows

Sheet Sustained Program Calculations
A1: Calculation of net carbon position in tonnes C as compared to counterfactual continued forest growth. Does not include any credit for fossil power displacement. | I1: =RIGHT(I2,LEN(I2)-5) -> 1 | J1: =RIGHT(J2,LEN(J2)-5) -> 2 | K1: 3 | L1: 4 | M1: 5 | N1: 6 | O1: 7 | P1: 8 | Q1: 9 | R1: 10 | S1: 11 | T1: 12 | U1: 13 | V1: 14 | W1: 15 | X1: 16 | Y1: 17 | Z1: 18 | AA1: 19 | AB1: 20 | AC1: 21 | AD1: 22 | AE1: 23 | AF1: 24 | AG1: 25 | AH1: 26 | AI1: 27 | AJ1: 28 | AK1: 29 | AL1: 30 | AM1: 31 | AN1: 32 | AO1: 33 | AP1: 34 | AQ1: 35 | AR1: 36 | AS1: 37 | AT1: 38 | AU1: 39 | AV1: 40 | AW1: 41 | AX1: 42 | AY1: 43 | AZ1: 44 | BA1: 45 | BB1: 46 | BC1: 47 | BD1: 48 | BE1: 49 | BF1: 50 | BG1: 51 | BH1: 52 | BI1: 53 | BJ1: 54 | BK1: 55 | BL1: 56 | BM1: 57 | BN1: 58 | BO1: 59 | BP1: 60 | BQ1: 61 | BR1: 62 | BS1: 63 | BT1: 64 | BU1: 65 | BV1: =RIGHT(BV2,LEN(BV2)-5) -> 66 | BW1: 67 | BX1: 68 | BY1: 69 | BZ1: 70 | CA1: 71 | CB1: 72 | CC1: 73 | CD1: 74 | CE1: 75 | CF1: 76 | CG1: 77 | CH1: 78 | CI1: 79 | CJ1: 80 | CK1: 81 | CL1: 82 | CM1: 83 | CN1: 84 | CO1: 85 | CP1: 86 | CQ1: 87 | CR1: 88 | CS1: 89 | CT1: 90 | CU1: 91 | CV1: 92 | CW1: 93 | CX1: 94 | CY1: 95 | CZ1: 96 | DA1: 97 | DB1: 98 | DC1: 99 | DD1: 100 | DE1: 101 | DF1: 102 | DG1: 103 | DH1: 104 | DI1: 105 | DJ1: 106 | DK1: 107 | DL1: 108 | DM1: 109 | DN1: 110 | DO1: 111 | DP1: 112 | DQ1: 113 | DR1: 114 | DS1: 115 | DT1: 116 | DU1: 117 | DV1: 118 | DW1: 119 | DX1: 120 | DY1: 121 | DZ1: 122 | EA1: 123 | EB1: 124 | EC1: 125 | ED1: 126 | EE1: 127 | EF1: 128 | EG1: 129 | EH1: =RIGHT(EH2,LEN(EH2)-5) -> 130 | EI1: 131 | EJ1: 132 | EK1: 133 | EL1: 134 | EM1: 135 | EN1: 136 | EO1: 137 | EP1: 138 | EQ1: 139 | ER1: 140 | ES1: 141 | ET1: 142 | EU1: 143 | EV1: 144 | EW1: 145 | EX1: 146 | EY1: 147 | EZ1: 148 | FA1: 149 | FB1: 150
A2: ='Calculation Single Use Results'!B4 -> Suggested default | B2: Regrowth basis: | C2: Monod | D2: (Monod is recommended) | I2: Year 1 | J2: Year 2 | K2: Year 3 | L2: Year 4 | M2: Year 5 | N2: Year 6 | O2: Year 7 | P2: Year 8 | Q2: Year 9 | R2: Year 10 | S2: Year 11 | T2: Year 12 | U2: Year 13 | V2: Year 14 | W2: Year 15 | X2: Year 16 | Y2: Year 17 | Z2: Year 18 | AA2: Year 19 | AB2: Year 20 | AC2: Year 21 | AD2: Year 22 | AE2: Year 23 | AF2: Year 24 | AG2: Year 25 | AH2: Year 26 | AI2: Year 27 | AJ2: Year 28 | AK2: Year 29 | AL2: Year 30 | AM2: Year 31 | AN2: Year 32 | AO2: Year 33 | AP2: Year 34 | AQ2: Year 35 | AR2: Year 36 | AS2: Year 37 | AT2: Year 38 | AU2: Year 39 | AV2: Year 40 | AW2: Year 41 | AX2: Year 42 | AY2: Year 43 | AZ2: Year 44 | BA2: Year 45 | BB2: Year 46 | BC2: Year 47 | BD2: Year 48 | BE2: Year 49 | BF2: Year 50 | BG2: Year 51 | BH2: Year 52 | BI2: Year 53 | BJ2: Year 54 | BK2: Year 55 | BL2: Year 56 | BM2: Year 57 | BN2: Year 58 | BO2: Year 59 | BP2: Year 60 | BQ2: Year 61 | BR2: Year 62 | BS2: Year 63 | BT2: Year 64 | BU2: Year 65 | BV2: Year 66 | BW2: Year 67 | BX2: Year 68 | BY2: Year 69 | BZ2: Year 70 | CA2: Year 71 | CB2: Year 72 | CC2: Year 73 | CD2: Year 74 | CE2: Year 75 | CF2: Year 76 | CG2: Year 77 | CH2: Year 78 | CI2: Year 79 | CJ2: Year 80 | CK2: Year 81 | CL2: Year 82 | CM2: Year 83 | CN2: Year 84 | CO2: Year 85 | CP2: Year 86 | CQ2: Year 87 | CR2: Year 88 | CS2: Year 89 | CT2: Year 90 | CU2: Year 91 | CV2: Year 92 | CW2: Year 93 | CX2: Year 94 | CY2: Year 95 | CZ2: Year 96 | DA2: Year 97 | DB2: Year 98 | DC2: Year 99 | DD2: Year 100 | DE2: Year 101 | DF2: Year 102 | DG2: Year 103 | DH2: Year 104 | DI2: Year 105 | DJ2: Year 106 | DK2: Year 107 | DL2: Year 108 | DM2: Year 109 | DN2: Year 110 | DO2: Year 111 | DP2: Year 112 | DQ2: Year 113 | DR2: Year 114 | DS2: Year 115 | DT2: Year 116 | DU2: Year 117 | DV2: Year 118 | DW2: Year 119 | DX2: Year 120 | DY2: Year 121 | DZ2: Year 122 | EA2: Year 123 | EB2: Year 124 | EC2: Year 125 | ED2: Year 126 | EE2: Year 127 | EF2: Year 128 | EG2: Year 129 | EH2: Year 130 | EI2: Year 131 | EJ2: Year 132 | EK2: Year 133 | EL2: Year 134 | EM2: Year 135 | EN2: Year 136 | EO2: Year 137 | EP2: Year 138 | EQ2: Year 139 | ER2: Year 140 | ES2: Year 141 | ET2: Year 142 | EU2: Year 143 | EV2: Year 144 | EW2: Year 145 | EX2: Year 146 | EY2: Year 147 | EZ2: Year 148 | FA2: Year 149 | FB2: Year 150 | FC2: Total carbon change
H3: Cumulative energy supply | I3: ='Calculation Single Use Results'!AI36+'Calculation Single Use Results'!AJ36 -> 2850042.695 | J3: =I3+'Calculation Single Use Results'!$AI$36+'Calculation Single Use Results'!$AJ$36 -> 5700085.39 | K3: =J3+'Calculation Single Use Results'!$AI$36+'Calculation Single Use Results'!$AJ$36 -> 8550128.085 | L3: =K3+'Calculation Single Use Results'!$AI$36+'Calculation Single Use Results'!$AJ$36 -> 11400170.78 | M3: =L3+'Calculation Single Use Results'!$AI$36+'Calculation Single Use Results'!$AJ$36 -> 14250213.47 | N3: =M3+'Calculation Single Use Results'!$AI$36+'Calculation Single Use Results'!$AJ$36 -> 17100256.17 | O3: =N3+'Calculation Single Use Results'!$AI$36+'Calculation Single Use Results'!$AJ$36 -> 19950298.86 | P3: =O3+'Calculation Single Use Results'!$AI$36+'Calculation Single Use Results'!$AJ$36 -> 22800341.56 | Q3: =P3+'Calculation Single Use Results'!$AI$36+'Calculation Single Use Results'!$AJ$36 -> 25650384.25 | R3: =Q3+'Calculation Single Use Results'!$AI$36+'Calculation Single Use Results'!$AJ$36 -> 28500426.95 | S3: =R3+'Calculation Single Use Results'!$AI$36+'Calculation Single Use Results'!$AJ$36 -> 31350469.64 | T3: =S3+'Calculation Single Use Results'!$AI$36+'Calculation Single Use Results'!$AJ$36 -> 34200512.34 | U3: =T3+'Calculation Single Use Results'!$AI$36+'Calculation Single Use Results'!$AJ$36 -> 37050555.03 | V3: =U3+'Calculation Single Use Results'!$AI$36+'Calculation Single Use Results'!$AJ$36 -> 39900597.73 | W3: =V3+'Calculation Single Use Results'!$AI$36+'Calculation Single Use Results'!$AJ$36 -> 42750640.42 | X3: =W3+'Calculation Single Use Results'!$AI$36+'Calculation Single Use Results'!$AJ$36 -> 45600683.12 | Y3: =X3+'Calculation Single Use Results'!$AI$36+'Calculation Single Use Results'!$AJ$36 -> 48450725.81 | Z3: =Y3+'Calculation Single Use Results'!$AI$36+'Calculation Single Use Results'!$AJ$36 -> 51300768.51 | AA3: =Z3+'Calculation Single Use Results'!$AI$36+'Calculation Single Use Results'!$AJ$36 -> 54150811.2 | AB3: =AA3+'Calculation Single Use Results'!$AI$36+'Calculation Single Use Results'!$AJ$36 -> 57000853.9 | AC3: =AB3+'Calculation Single Use Results'!$AI$36+'Calculation Single Use Results'!$AJ$36 -> 59850896.59 | AD3: =AC3+'Calculation Single Use Results'!$AI$36+'Calculation Single Use Results'!$AJ$36 -> 62700939.29 | AE3: =AD3+'Calculation Single Use Results'!$AI$36+'Calculation Single Use Results'!$AJ$36 -> 65550981.98 | AF3: =AE3+'Calculation Single Use Results'!$AI$36+'Calculation Single Use Results'!$AJ$36 -> 68401024.68 | AG3: =AF3+'Calculation Single Use Results'!$AI$36+'Calculation Single Use Results'!$AJ$36 -> 71251067.37 | AH3: =AG3+'Calculation Single Use Results'!$AI$36+'Calculation Single Use Results'!$AJ$36 -> 74101110.07 | AI3: =AH3+'Calculation Single Use Results'!$AI$36+'Calculation Single Use Results'!$AJ$36 -> 76951152.76 | AJ3: =AI3+'Calculation Single Use Results'!$AI$36+'Calculation Single Use Results'!$AJ$36 -> 79801195.46 | AK3: =AJ3+'Calculation Single Use Results'!$AI$36+'Calculation Single Use Results'!$AJ$36 -> 82651238.15 | AL3: =AK3+'Calculation Single Use Results'!$AI$36+'Calculation Single Use Results'!$AJ$36 -> 85501280.85 | AM3: =AL3+'Calculation Single Use Results'!$AI$36+'Calculation Single Use Results'!$AJ$36 -> 88351323.54 | AN3: =AM3+'Calculation Single Use Results'!$AI$36+'Calculation Single Use Results'!$AJ$36 -> 91201366.24 | AO3: =AN3+'Calculation Single Use Results'!$AI$36+'Calculation Single Use Results'!$AJ$36 -> 94051408.93 | AP3: =AO3+'Calculation Single Use Results'!$AI$36+'Calculation Single Use Results'!$AJ$36 -> 96901451.63 | AQ3: =AP3+'Calculation Single Use Results'!$AI$36+'Calculation Single Use Results'!$AJ$36 -> 99751494.32 | AR3: =AQ3+'Calculation Single Use Results'!$AI$36+'Calculation Single Use Results'!$AJ$36 -> 102601537 | AS3: =AR3+'Calculation Single Use Results'!$AI$36+'Calculation Single Use Results'!$AJ$36 -> 105451579.7 | AT3: =AS3+'Calculation Single Use Results'!$AI$36+'Calculation Single Use Results'!$AJ$36 -> 108301622.4 | AU3: =AT3+'Calculation Single Use Results'!$AI$36+'Calculation Single Use Results'!$AJ$36 -> 111151665.1 | AV3: =AU3+'Calculation Single Use Results'!$AI$36+'Calculation Single Use Results'!$AJ$36 -> 114001707.8 | AW3: =AV3+'Calculation Single Use Results'!$AI$36+'Calculation Single Use Results'!$AJ$36 -> 116851750.5 | AX3: =AW3+'Calculation Single Use Results'!$AI$36+'Calculation Single Use Results'!$AJ$36 -> 119701793.2 | AY3: =AX3+'Calculation Single Use Results'!$AI$36+'Calculation Single Use Results'!$AJ$36 -> 122551835.9 | AZ3: =AY3+'Calculation Single Use Results'!$AI$36+'Calculation Single Use Results'!$AJ$36 -> 125401878.6 | BA3: =AZ3+'Calculation Single Use Results'!$AI$36+'Calculation Single Use Results'!$AJ$36 -> 128251921.3 | BB3: =BA3+'Calculation Single Use Results'!$AI$36+'Calculation Single Use Results'!$AJ$36 -> 131101964 | BC3: =BB3+'Calculation Single Use Results'!$AI$36+'Calculation Single Use Results'!$AJ$36 -> 133952006.7 | BD3: =BC3+'Calculation Single Use Results'!$AI$36+'Calculation Single Use Results'!$AJ$36 -> 136802049.4 | BE3: =BD3+'Calculation Single Use Results'!$AI$36+'Calculation Single Use Results'!$AJ$36 -> 139652092.1 | BF3: =BE3+'Calculation Single Use Results'!$AI$36+'Calculation Single Use Results'!$AJ$36 -> 142502134.7 | BG3: =BF3+'Calculation Single Use Results'!$AI$36+'Calculation Single Use Results'!$AJ$36 -> 145352177.4 | BH3: =BG3+'Calculation Single Use Results'!$AI$36+'Calculation Single Use Results'!$AJ$36 -> 148202220.1 | BI3: =BH3+'Calculation Single Use Results'!$AI$36+'Calculation Single Use Results'!$AJ$36 -> 151052262.8 | BJ3: =BI3+'Calculation Single Use Results'!$AI$36+'Calculation Single Use Results'!$AJ$36 -> 153902305.5 | BK3: =BJ3+'Calculation Single Use Results'!$AI$36+'Calculation Single Use Results'!$AJ$36 -> 156752348.2 | BL3: =BK3+'Calculation Single Use Results'!$AI$36+'Calculation Single Use Results'!$AJ$36 -> 159602390.9 | BM3: =BL3+'Calculation Single Use Results'!$AI$36+'Calculation Single Use Results'!$AJ$36 -> 162452433.6 | BN3: =BM3+'Calculation Single Use Results'!$AI$36+'Calculation Single Use Results'!$AJ$36 -> 165302476.3 | BO3: =BN3+'Calculation Single Use Results'!$AI$36+'Calculation Single Use Results'!$AJ$36 -> 168152519 | BP3: =BO3+'Calculation Single Use Results'!$AI$36+'Calculation Single Use Results'!$AJ$36 -> 171002561.7 | BQ3: =BP3+'Calculation Single Use Results'!$AI$36+'Calculation Single Use Results'!$AJ$36 -> 173852604.4 | BR3: =BQ3+'Calculation Single Use Results'!$AI$36+'Calculation Single Use Results'!$AJ$36 -> 176702647.1 | BS3: =BR3+'Calculation Single Use Results'!$AI$36+'Calculation Single Use Results'!$AJ$36 -> 179552689.8 | BT3: =BS3+'Calculation Single Use Results'!$AI$36+'Calculation Single Use Results'!$AJ$36 -> 182402732.5 | BU3: =BT3+'Calculation Single Use Results'!$AI$36+'Calculation Single Use Results'!$AJ$36 -> 185252775.2 | BV3: =BU3+'Calculation Single Use Results'!$AI$36+'Calculation Single Use Results'!$AJ$36 -> 188102817.9 | BW3: =BV3+'Calculation Single Use Results'!$AI$36+'Calculation Single Use Results'!$AJ$36 -> 190952860.6 | BX3: =BW3+'Calculation Single Use Results'!$AI$36+'Calculation Single Use Results'!$AJ$36 -> 193802903.3 | BY3: =BX3+'Calculation Single Use Results'!$AI$36+'Calculation Single Use Results'!$AJ$36 -> 196652945.9 | BZ3: =BY3+'Calculation Single Use Results'!$AI$36+'Calculation Single Use Results'!$AJ$36 -> 199502988.6 | CA3: =BZ3+'Calculation Single Use Results'!$AI$36+'Calculation Single Use Results'!$AJ$36 -> 202353031.3 | CB3: =CA3+'Calculation Single Use Results'!$AI$36+'Calculation Single Use Results'!$AJ$36 -> 205203074 | CC3: =CB3+'Calculation Single Use Results'!$AI$36+'Calculation Single Use Results'!$AJ$36 -> 208053116.7 | CD3: =CC3+'Calculation Single Use Results'!$AI$36+'Calculation Single Use Results'!$AJ$36 -> 210903159.4 | CE3: =CD3+'Calculation Single Use Results'!$AI$36+'Calculation Single Use Results'!$AJ$36 -> 213753202.1 | CF3: =CE3+'Calculation Single Use Results'!$AI$36+'Calculation Single Use Results'!$AJ$36 -> 216603244.8 | CG3: =CF3+'Calculation Single Use Results'!$AI$36+'Calculation Single Use Results'!$AJ$36 -> 219453287.5 | CH3: =CG3+'Calculation Single Use Results'!$AI$36+'Calculation Single Use Results'!$AJ$36 -> 222303330.2 | CI3: =CH3+'Calculation Single Use Results'!$AI$36+'Calculation Single Use Results'!$AJ$36 -> 225153372.9 | CJ3: =CI3+'Calculation Single Use Results'!$AI$36+'Calculation Single Use Results'!$AJ$36 -> 228003415.6 | CK3: =CJ3+'Calculation Single Use Results'!$AI$36+'Calculation Single Use Results'!$AJ$36 -> 230853458.3 | CL3: =CK3+'Calculation Single Use Results'!$AI$36+'Calculation Single Use Results'!$AJ$36 -> 233703501 | CM3: =CL3+'Calculation Single Use Results'!$AI$36+'Calculation Single Use Results'!$AJ$36 -> 236553543.7 | CN3: =CM3+'Calculation Single Use Results'!$AI$36+'Calculation Single Use Results'!$AJ$36 -> 239403586.4 | CO3: =CN3+'Calculation Single Use Results'!$AI$36+'Calculation Single Use Results'!$AJ$36 -> 242253629.1 | CP3: =CO3+'Calculation Single Use Results'!$AI$36+'Calculation Single Use Results'!$AJ$36 -> 245103671.8 | CQ3: =CP3+'Calculation Single Use Results'!$AI$36+'Calculation Single Use Results'!$AJ$36 -> 247953714.5 | CR3: =CQ3+'Calculation Single Use Results'!$AI$36+'Calculation Single Use Results'!$AJ$36 -> 250803757.2 | CS3: =CR3+'Calculation Single Use Results'!$AI$36+'Calculation Single Use Results'!$AJ$36 -> 253653799.8 | CT3: =CS3+'Calculation Single Use Results'!$AI$36+'Calculation Single Use Results'!$AJ$36 -> 256503842.5 | CU3: =CT3+'Calculation Single Use Results'!$AI$36+'Calculation Single Use Results'!$AJ$36 -> 259353885.2 | CV3: =CU3+'Calculation Single Use Results'!$AI$36+'Calculation Single Use Results'!$AJ$36 -> 262203927.9 | CW3: =CV3+'Calculation Single Use Results'!$AI$36+'Calculation Single Use Results'!$AJ$36 -> 265053970.6 | CX3: =CW3+'Calculation Single Use Results'!$AI$36+'Calculation Single Use Results'!$AJ$36 -> 267904013.3 | CY3: =CX3+'Calculation Single Use Results'!$AI$36+'Calculation Single Use Results'!$AJ$36 -> 270754056 | CZ3: =CY3+'Calculation Single Use Results'!$AI$36+'Calculation Single Use Results'!$AJ$36 -> 273604098.7 | DA3: =CZ3+'Calculation Single Use Results'!$AI$36+'Calculation Single Use Results'!$AJ$36 -> 276454141.4 | DB3: =DA3+'Calculation Single Use Results'!$AI$36+'Calculation Single Use Results'!$AJ$36 -> 279304184.1 | DC3: =DB3+'Calculation Single Use Results'!$AI$36+'Calculation Single Use Results'!$AJ$36 -> 282154226.8 | DD3: =DC3+'Calculation Single Use Results'!$AI$36+'Calculation Single Use Results'!$AJ$36 -> 285004269.5 | DE3: =DD3+'Calculation Single Use Results'!$AI$36+'Calculation Single Use Results'!$AJ$36 -> 287854312.2 | DF3: =DE3+'Calculation Single Use Results'!$AI$36+'Calculation Single Use Results'!$AJ$36 -> 290704354.9 | DG3: =DF3+'Calculation Single Use Results'!$AI$36+'Calculation Single Use Results'!$AJ$36 -> 293554397.6 | DH3: =DG3+'Calculation Single Use Results'!$AI$36+'Calculation Single Use Results'!$AJ$36 -> 296404440.3 | DI3: =DH3+'Calculation Single Use Results'!$AI$36+'Calculation Single Use Results'!$AJ$36 -> 299254483 | DJ3: =DI3+'Calculation Single Use Results'!$AI$36+'Calculation Single Use Results'!$AJ$36 -> 302104525.7 | DK3: =DJ3+'Calculation Single Use Results'!$AI$36+'Calculation Single Use Results'!$AJ$36 -> 304954568.4 | DL3: =DK3+'Calculation Single Use Results'!$AI$36+'Calculation Single Use Results'!$AJ$36 -> 307804611.1 | DM3: =DL3+'Calculation Single Use Results'!$AI$36+'Calculation Single Use Results'!$AJ$36 -> 310654653.7 | DN3: =DM3+'Calculation Single Use Results'!$AI$36+'Calculation Single Use Results'!$AJ$36 -> 313504696.4 | DO3: =DN3+'Calculation Single Use Results'!$AI$36+'Calculation Single Use Results'!$AJ$36 -> 316354739.1 | DP3: =DO3+'Calculation Single Use Results'!$AI$36+'Calculation Single Use Results'!$AJ$36 -> 319204781.8 | DQ3: =DP3+'Calculation Single Use Results'!$AI$36+'Calculation Single Use Results'!$AJ$36 -> 322054824.5 | DR3: =DQ3+'Calculation Single Use Results'!$AI$36+'Calculation Single Use Results'!$AJ$36 -> 324904867.2 | DS3: =DR3+'Calculation Single Use Results'!$AI$36+'Calculation Single Use Results'!$AJ$36 -> 327754909.9 | DT3: =DS3+'Calculation Single Use Results'!$AI$36+'Calculation Single Use Results'!$AJ$36 -> 330604952.6 | DU3: =DT3+'Calculation Single Use Results'!$AI$36+'Calculation Single Use Results'!$AJ$36 -> 333454995.3 | DV3: =DU3+'Calculation Single Use Results'!$AI$36+'Calculation Single Use Results'!$AJ$36 -> 336305038 | DW3: =DV3+'Calculation Single Use Results'!$AI$36+'Calculation Single Use Results'!$AJ$36 -> 339155080.7 | DX3: =DW3+'Calculation Single Use Results'!$AI$36+'Calculation Single Use Results'!$AJ$36 -> 342005123.4 | DY3: =DX3+'Calculation Single Use Results'!$AI$36+'Calculation Single Use Results'!$AJ$36 -> 344855166.1 | DZ3: =DY3+'Calculation Single Use Results'!$AI$36+'Calculation Single Use Results'!$AJ$36 -> 347705208.8 | EA3: =DZ3+'Calculation Single Use Results'!$AI$36+'Calculation Single Use Results'!$AJ$36 -> 350555251.5 | EB3: =EA3+'Calculation Single Use Results'!$AI$36+'Calculation Single Use Results'!$AJ$36 -> 353405294.2 | EC3: =EB3+'Calculation Single Use Results'!$AI$36+'Calculation Single Use Results'!$AJ$36 -> 356255336.9 | ED3: =EC3+'Calculation Single Use Results'!$AI$36+'Calculation Single Use Results'!$AJ$36 -> 359105379.6 | EE3: =ED3+'Calculation Single Use Results'!$AI$36+'Calculation Single Use Results'!$AJ$36 -> 361955422.3 | EF3: =EE3+'Calculation Single Use Results'!$AI$36+'Calculation Single Use Results'!$AJ$36 -> 364805465 | EG3: =EF3+'Calculation Single Use Results'!$AI$36+'Calculation Single Use Results'!$AJ$36 -> 367655507.6 | EH3: =EG3+'Calculation Single Use Results'!$AI$36+'Calculation Single Use Results'!$AJ$36 -> 370505550.3 | EI3: =EH3+'Calculation Single Use Results'!$AI$36+'Calculation Single Use Results'!$AJ$36 -> 373355593 | EJ3: =EI3+'Calculation Single Use Results'!$AI$36+'Calculation Single Use Results'!$AJ$36 -> 376205635.7 | EK3: =EJ3+'Calculation Single Use Results'!$AI$36+'Calculation Single Use Results'!$AJ$36 -> 379055678.4 | EL3: =EK3+'Calculation Single Use Results'!$AI$36+'Calculation Single Use Results'!$AJ$36 -> 381905721.1 | EM3: =EL3+'Calculation Single Use Results'!$AI$36+'Calculation Single Use Results'!$AJ$36 -> 384755763.8 | EN3: =EM3+'Calculation Single Use Results'!$AI$36+'Calculation Single Use Results'!$AJ$36 -> 387605806.5 | EO3: =EN3+'Calculation Single Use Results'!$AI$36+'Calculation Single Use Results'!$AJ$36 -> 390455849.2 | EP3: =EO3+'Calculation Single Use Results'!$AI$36+'Calculation Single Use Results'!$AJ$36 -> 393305891.9 | EQ3: =EP3+'Calculation Single Use Results'!$AI$36+'Calculation Single Use Results'!$AJ$36 -> 396155934.6 | ER3: =EQ3+'Calculation Single Use Results'!$AI$36+'Calculation Single Use Results'!$AJ$36 -> 399005977.3 | ES3: =ER3+'Calculation Single Use Results'!$AI$36+'Calculation Single Use Results'!$AJ$36 -> 401856020 | ET3: =ES3+'Calculation Single Use Results'!$AI$36+'Calculation Single Use Results'!$AJ$36 -> 404706062.7 | EU3: =ET3+'Calculation Single Use Results'!$AI$36+'Calculation Single Use Results'!$AJ$36 -> 407556105.4 | EV3: =EU3+'Calculation Single Use Results'!$AI$36+'Calculation Single Use Results'!$AJ$36 -> 410406148.1 | EW3: =EV3+'Calculation Single Use Results'!$AI$36+'Calculation Single Use Results'!$AJ$36 -> 413256190.8 | EX3: =EW3+'Calculation Single Use Results'!$AI$36+'Calculation Single Use Results'!$AJ$36 -> 416106233.5 | EY3: =EX3+'Calculation Single Use Results'!$AI$36+'Calculation Single Use Results'!$AJ$36 -> 418956276.2 | EZ3: =EY3+'Calculation Single Use Results'!$AI$36+'Calculation Single Use Results'!$AJ$36 -> 421806318.8 | FA3: =EZ3+'Calculation Single Use Results'!$AI$36+'Calculation Single Use Results'!$AJ$36 -> 424656361.5 | FB3: =FA3+'Calculation Single Use Results'!$AI$36+'Calculation Single Use Results'!$AJ$36 -> 427506404.2
A4: Temporal results: | B4: Year in which cumulative average CI matches NG without CCS: | D4: =IFERROR(IF('Calculation Single Use Results'!$N$22<FB4, "Not within 150 years",INDEX($I$211:$FB$211,1,MATCH('Calculation Single Use Results'!$N$22,'Sustained Program Calculations'!$I$4:$FB$4,-1))), "Already better in year 0") -> 121 | H4: Cumulative average carbon intensity (gCO2e/kWh) | I4: =I8*3.664*1000/I3 -> 670.71427 | J4: 685.3223245 | K4: 698.909817 | L4: 711.4542968 | M4: 722.9778873 | N4: 733.5204454 | O4: 743.129204 | P4: 751.854041 | Q4: 759.7450973 | R4: 766.8515126 | S4: 773.2207424 | T4: 778.8981977 | U4: 783.9270725 | V4: 788.3482832 | W4: 792.2004764 | X4: 795.5200787 | Y4: 798.3413719 | Z4: 800.6965829 | AA4: 802.6159812 | AB4: 804.1279801 | AC4: 805.2592381 | AD4: 806.0347589 | AE4: 806.4779879 | AF4: 806.6109063 | AG4: 806.4541198 | AH4: 806.0269435 | AI4: 805.3474824 | AJ4: 804.4327077 | AK4: 803.2985275 | AL4: 801.9598548 | AM4: 800.4306706 | AN4: 798.7240829 | AO4: =AO8*3.664*1000/AO3 -> 796.8523825 | AP4: 794.8270952 | AQ4: 792.6590301 | AR4: 790.3583256 | AS4: 787.9344918 | AT4: 785.3964505 | AU4: 782.7525726 | AV4: 780.0107126 | AW4: 777.1782415 | AX4: 774.262077 | AY4: 771.2687124 | AZ4: 768.2042425 | BA4: 765.0743893 | BB4: 761.8845245 | BC4: 758.6396918 | BD4: 755.3446269 | BE4: 752.0037768 | BF4: 748.621317 | BG4: 745.201169 | BH4: 741.7470153 | BI4: 738.2623138 | BJ4: 734.7503122 | BK4: 731.2140599 | BL4: 727.6564206 | BM4: 724.0800831 | BN4: 720.487572 | BO4: 716.8812576 | BP4: 713.2633649 | BQ4: 709.6359822 | BR4: 706.0010696 | BS4: 702.3604662 | BT4: 698.7158973 | BU4: =BU8*3.664*1000/BU3 -> 695.0689813 | BV4: 691.4212357 | BW4: 687.7740832 | BX4: 684.128857 | BY4: 680.4868065 | BZ4: 676.8491015 | CA4: 673.2168372 | CB4: 669.5910385 | CC4: 665.972664 | CD4: 662.3626096 | CE4: 658.7617127 | CF4: 655.1707547 | CG4: 651.5904649 | CH4: 648.0215232 | CI4: 644.4645628 | CJ4: 640.9201732 | CK4: 637.3889023 | CL4: 633.871259 | CM4: 630.3677152 | CN4: 626.8787083 | CO4: 623.4046427 | CP4: 619.9458918 | CQ4: 616.5028 | CR4: 613.0756839 | CS4: 609.6648344 | CT4: 606.2705176 | CU4: 602.8929765 | CV4: 599.5324325 | CW4: 596.1890861 | CX4: 592.8631186 | CY4: 589.5546927 | CZ4: 586.2639541 | DA4: =DA8*3.664*1000/DA3 -> 582.991032 | DB4: 579.7360402 | DC4: 576.4990783 | DD4: 573.2802318 | DE4: 570.0795735 | DF4: 566.8971642 | DG4: 563.7330531 | DH4: 560.5872785 | DI4: 557.4598689 | DJ4: 554.3508428 | DK4: 551.26021 | DL4: 548.1879719 | DM4: 545.1341215 | DN4: 542.0986448 | DO4: 539.0815205 | DP4: 536.0827208 | DQ4: 533.1022115 | DR4: 530.1399527 | DS4: 527.1958992 | DT4: 524.2700004 | DU4: 521.362201 | DV4: 518.4724412 | DW4: 515.6006571 | DX4: 512.7467807 | DY4: 509.9107404 | DZ4: 507.0924613 | EA4: 504.2918652 | EB4: 501.5088708 | EC4: 498.7433945 | ED4: 495.9953495 | EE4: 493.2646472 | EF4: 490.5511966 | EG4: =EG8*3.664*1000/EG3 -> 487.8549045 | EH4: 485.1756762 | EI4: 482.5134149 | EJ4: 479.8680226 | EK4: 477.2393997 | EL4: 474.6274452 | EM4: 472.032057 | EN4: 469.4531321 | EO4: 466.8905664 | EP4: 464.3442548 | EQ4: 461.8140917 | ER4: 459.2999707 | ES4: 456.8017849 | ET4: 454.3194268 | EU4: 451.8527886 | EV4: 449.401762 | EW4: 446.9662387 | EX4: 444.5461098 | EY4: 442.1412667 | EZ4: 439.7516003 | FA4: 437.3770017 | FB4: 435.0173621
B5: Year in which cumulative average CI matches NG with CCS: | D5: =IFERROR(IF('Calculation Single Use Results'!$N$21<FB4, "Not within 150 years",INDEX($I$211:$FB$211,1,MATCH('Calculation Single Use Results'!$N$21,'Sustained Program Calculations'!$I$4:$FB$4,-1))), "Already better in year 0") -> Not within 150 years | H5: Cumulative CO2 stored (kg CO2) | I5: =COLUMNS($I3:I3)*'Calculation Single Use Results'!$AM$36*3.664 -> 3114400 | J5: =COLUMNS($I3:J3)*'Calculation Single Use Results'!$AM$36*3.664 -> 6228800 | K5: =COLUMNS($I3:K3)*'Calculation Single Use Results'!$AM$36*3.664 -> 9343200 | L5: =COLUMNS($I3:L3)*'Calculation Single Use Results'!$AM$36*3.664 -> 12457600 | M5: =COLUMNS($I3:M3)*'Calculation Single Use Results'!$AM$36*3.664 -> 15572000 | N5: =COLUMNS($I3:N3)*'Calculation Single Use Results'!$AM$36*3.664 -> 18686400 | O5: =COLUMNS($I3:O3)*'Calculation Single Use Results'!$AM$36*3.664 -> 21800800 | P5: =COLUMNS($I3:P3)*'Calculation Single Use Results'!$AM$36*3.664 -> 24915200 | Q5: =COLUMNS($I3:Q3)*'Calculation Single Use Results'!$AM$36*3.664 -> 28029600 | R5: =COLUMNS($I3:R3)*'Calculation Single Use Results'!$AM$36*3.664 -> 31144000 | S5: =COLUMNS($I3:S3)*'Calculation Single Use Results'!$AM$36*3.664 -> 34258400 | T5: =COLUMNS($I3:T3)*'Calculation Single Use Results'!$AM$36*3.664 -> 37372800 | U5: =COLUMNS($I3:U3)*'Calculation Single Use Results'!$AM$36*3.664 -> 40487200 | V5: =COLUMNS($I3:V3)*'Calculation Single Use Results'!$AM$36*3.664 -> 43601600 | W5: =COLUMNS($I3:W3)*'Calculation Single Use Results'!$AM$36*3.664 -> 46716000 | X5: =COLUMNS($I3:X3)*'Calculation Single Use Results'!$AM$36*3.664 -> 49830400 | Y5: =COLUMNS($I3:Y3)*'Calculation Single Use Results'!$AM$36*3.664 -> 52944800 | Z5: =COLUMNS($I3:Z3)*'Calculation Single Use Results'!$AM$36*3.664 -> 56059200 | AA5: =COLUMNS($I3:AA3)*'Calculation Single Use Results'!$AM$36*3.664 -> 59173600 | AB5: =COLUMNS($I3:AB3)*'Calculation Single Use Results'!$AM$36*3.664 -> 62288000 | AC5: =COLUMNS($I3:AC3)*'Calculation Single Use Results'!$AM$36*3.664 -> 65402400 | AD5: =COLUMNS($I3:AD3)*'Calculation Single Use Results'!$AM$36*3.664 -> 68516800 | AE5: =COLUMNS($I3:AE3)*'Calculation Single Use Results'!$AM$36*3.664 -> 71631200 | AF5: =COLUMNS($I3:AF3)*'Calculation Single Use Results'!$AM$36*3.664 -> 74745600 | AG5: =COLUMNS($I3:AG3)*'Calculation Single Use Results'!$AM$36*3.664 -> 77860000 | AH5: =COLUMNS($I3:AH3)*'Calculation Single Use Results'!$AM$36*3.664 -> 80974400 | AI5: =COLUMNS($I3:AI3)*'Calculation Single Use Results'!$AM$36*3.664 -> 84088800 | AJ5: =COLUMNS($I3:AJ3)*'Calculation Single Use Results'!$AM$36*3.664 -> 87203200 | AK5: =COLUMNS($I3:AK3)*'Calculation Single Use Results'!$AM$36*3.664 -> 90317600 | AL5: =COLUMNS($I3:AL3)*'Calculation Single Use Results'!$AM$36*3.664 -> 93432000 | AM5: =COLUMNS($I3:AM3)*'Calculation Single Use Results'!$AM$36*3.664 -> 96546400 | AN5: =COLUMNS($I3:AN3)*'Calculation Single Use Results'!$AM$36*3.664 -> 99660800 | AO5: =COLUMNS($I3:AO3)*'Calculation Single Use Results'!$AM$36*3.664 -> 102775200 | AP5: =COLUMNS($I3:AP3)*'Calculation Single Use Results'!$AM$36*3.664 -> 105889600 | AQ5: =COLUMNS($I3:AQ3)*'Calculation Single Use Results'!$AM$36*3.664 -> 109004000 | AR5: =COLUMNS($I3:AR3)*'Calculation Single Use Results'!$AM$36*3.664 -> 112118400 | AS5: =COLUMNS($I3:AS3)*'Calculation Single Use Results'!$AM$36*3.664 -> 115232800 | AT5: =COLUMNS($I3:AT3)*'Calculation Single Use Results'!$AM$36*3.664 -> 118347200 | AU5: =COLUMNS($I3:AU3)*'Calculation Single Use Results'!$AM$36*3.664 -> 121461600 | AV5: =COLUMNS($I3:AV3)*'Calculation Single Use Results'!$AM$36*3.664 -> 124576000 | AW5: =COLUMNS($I3:AW3)*'Calculation Single Use Results'!$AM$36*3.664 -> 127690400 | AX5: =COLUMNS($I3:AX3)*'Calculation Single Use Results'!$AM$36*3.664 -> 130804800 | AY5: =COLUMNS($I3:AY3)*'Calculation Single Use Results'!$AM$36*3.664 -> 133919200 | AZ5: =COLUMNS($I3:AZ3)*'Calculation Single Use Results'!$AM$36*3.664 -> 137033600 | BA5: =COLUMNS($I3:BA3)*'Calculation Single Use Results'!$AM$36*3.664 -> 140148000 | BB5: =COLUMNS($I3:BB3)*'Calculation Single Use Results'!$AM$36*3.664 -> 143262400 | BC5: =COLUMNS($I3:BC3)*'Calculation Single Use Results'!$AM$36*3.664 -> 146376800 | BD5: =COLUMNS($I3:BD3)*'Calculation Single Use Results'!$AM$36*3.664 -> 149491200 | BE5: =COLUMNS($I3:BE3)*'Calculation Single Use Results'!$AM$36*3.664 -> 152605600 | BF5: =COLUMNS($I3:BF3)*'Calculation Single Use Results'!$AM$36*3.664 -> 155720000 | BG5: =COLUMNS($I3:BG3)*'Calculation Single Use Results'!$AM$36*3.664 -> 158834400 | BH5: =COLUMNS($I3:BH3)*'Calculation Single Use Results'!$AM$36*3.664 -> 161948800 | BI5: =COLUMNS($I3:BI3)*'Calculation Single Use Results'!$AM$36*3.664 -> 165063200 | BJ5: =COLUMNS($I3:BJ3)*'Calculation Single Use Results'!$AM$36*3.664 -> 168177600 | BK5: =COLUMNS($I3:BK3)*'Calculation Single Use Results'!$AM$36*3.664 -> 171292000 | BL5: =COLUMNS($I3:BL3)*'Calculation Single Use Results'!$AM$36*3.664 -> 174406400 | BM5: =COLUMNS($I3:BM3)*'Calculation Single Use Results'!$AM$36*3.664 -> 177520800 | BN5: =COLUMNS($I3:BN3)*'Calculation Single Use Results'!$AM$36*3.664 -> 180635200 | BO5: =COLUMNS($I3:BO3)*'Calculation Single Use Results'!$AM$36*3.664 -> 183749600 | BP5: =COLUMNS($I3:BP3)*'Calculation Single Use Results'!$AM$36*3.664 -> 186864000 | BQ5: =COLUMNS($I3:BQ3)*'Calculation Single Use Results'!$AM$36*3.664 -> 189978400 | BR5: =COLUMNS($I3:BR3)*'Calculation Single Use Results'!$AM$36*3.664 -> 193092800 | BS5: =COLUMNS($I3:BS3)*'Calculation Single Use Results'!$AM$36*3.664 -> 196207200 | BT5: =COLUMNS($I3:BT3)*'Calculation Single Use Results'!$AM$36*3.664 -> 199321600 | BU5: =COLUMNS($I3:BU3)*'Calculation Single Use Results'!$AM$36*3.664 -> 202436000 | BV5: =COLUMNS($I3:BV3)*'Calculation Single Use Results'!$AM$36*3.664 -> 205550400 | BW5: =COLUMNS($I3:BW3)*'Calculation Single Use Results'!$AM$36*3.664 -> 208664800 | BX5: =COLUMNS($I3:BX3)*'Calculation Single Use Results'!$AM$36*3.664 -> 211779200 | BY5: =COLUMNS($I3:BY3)*'Calculation Single Use Results'!$AM$36*3.664 -> 214893600 | BZ5: =COLUMNS($I3:BZ3)*'Calculation Single Use Results'!$AM$36*3.664 -> 218008000 | CA5: =COLUMNS($I3:CA3)*'Calculation Single Use Results'!$AM$36*3.664 -> 221122400 | CB5: =COLUMNS($I3:CB3)*'Calculation Single Use Results'!$AM$36*3.664 -> 224236800 | CC5: =COLUMNS($I3:CC3)*'Calculation Single Use Results'!$AM$36*3.664 -> 227351200 | CD5: =COLUMNS($I3:CD3)*'Calculation Single Use Results'!$AM$36*3.664 -> 230465600 | CE5: =COLUMNS($I3:CE3)*'Calculation Single Use Results'!$AM$36*3.664 -> 233580000 | CF5: =COLUMNS($I3:CF3)*'Calculation Single Use Results'!$AM$36*3.664 -> 236694400 | CG5: =COLUMNS($I3:CG3)*'Calculation Single Use Results'!$AM$36*3.664 -> 239808800 | CH5: =COLUMNS($I3:CH3)*'Calculation Single Use Results'!$AM$36*3.664 -> 242923200 | CI5: =COLUMNS($I3:CI3)*'Calculation Single Use Results'!$AM$36*3.664 -> 246037600 | CJ5: =COLUMNS($I3:CJ3)*'Calculation Single Use Results'!$AM$36*3.664 -> 249152000 | CK5: =COLUMNS($I3:CK3)*'Calculation Single Use Results'!$AM$36*3.664 -> 252266400 | CL5: =COLUMNS($I3:CL3)*'Calculation Single Use Results'!$AM$36*3.664 -> 255380800 | CM5: =COLUMNS($I3:CM3)*'Calculation Single Use Results'!$AM$36*3.664 -> 258495200 | CN5: =COLUMNS($I3:CN3)*'Calculation Single Use Results'!$AM$36*3.664 -> 261609600 | CO5: =COLUMNS($I3:CO3)*'Calculation Single Use Results'!$AM$36*3.664 -> 264724000 | CP5: =COLUMNS($I3:CP3)*'Calculation Single Use Results'!$AM$36*3.664 -> 267838400 | CQ5: =COLUMNS($I3:CQ3)*'Calculation Single Use Results'!$AM$36*3.664 -> 270952800 | CR5: =COLUMNS($I3:CR3)*'Calculation Single Use Results'!$AM$36*3.664 -> 274067200 | CS5: =COLUMNS($I3:CS3)*'Calculation Single Use Results'!$AM$36*3.664 -> 277181600 | CT5: =COLUMNS($I3:CT3)*'Calculation Single Use Results'!$AM$36*3.664 -> 280296000 | CU5: =COLUMNS($I3:CU3)*'Calculation Single Use Results'!$AM$36*3.664 -> 283410400 | CV5: =COLUMNS($I3:CV3)*'Calculation Single Use Results'!$AM$36*3.664 -> 286524800 | CW5: =COLUMNS($I3:CW3)*'Calculation Single Use Results'!$AM$36*3.664 -> 289639200 | CX5: =COLUMNS($I3:CX3)*'Calculation Single Use Results'!$AM$36*3.664 -> 292753600 | CY5: =COLUMNS($I3:CY3)*'Calculation Single Use Results'!$AM$36*3.664 -> 295868000 | CZ5: =COLUMNS($I3:CZ3)*'Calculation Single Use Results'!$AM$36*3.664 -> 298982400 | DA5: =COLUMNS($I3:DA3)*'Calculation Single Use Results'!$AM$36*3.664 -> 302096800 | DB5: =COLUMNS($I3:DB3)*'Calculation Single Use Results'!$AM$36*3.664 -> 305211200 | DC5: =COLUMNS($I3:DC3)*'Calculation Single Use Results'!$AM$36*3.664 -> 308325600 | DD5: =COLUMNS($I3:DD3)*'Calculation Single Use Results'!$AM$36*3.664 -> 311440000 | DE5: =COLUMNS($I3:DE3)*'Calculation Single Use Results'!$AM$36*3.664 -> 314554400 | DF5: =COLUMNS($I3:DF3)*'Calculation Single Use Results'!$AM$36*3.664 -> 317668800 | DG5: =COLUMNS($I3:DG3)*'Calculation Single Use Results'!$AM$36*3.664 -> 320783200 | DH5: =COLUMNS($I3:DH3)*'Calculation Single Use Results'!$AM$36*3.664 -> 323897600 | DI5: =COLUMNS($I3:DI3)*'Calculation Single Use Results'!$AM$36*3.664 -> 327012000 | DJ5: =COLUMNS($I3:DJ3)*'Calculation Single Use Results'!$AM$36*3.664 -> 330126400 | DK5: =COLUMNS($I3:DK3)*'Calculation Single Use Results'!$AM$36*3.664 -> 333240800 | DL5: =COLUMNS($I3:DL3)*'Calculation Single Use Results'!$AM$36*3.664 -> 336355200 | DM5: =COLUMNS($I3:DM3)*'Calculation Single Use Results'!$AM$36*3.664 -> 339469600 | DN5: =COLUMNS($I3:DN3)*'Calculation Single Use Results'!$AM$36*3.664 -> 342584000 | DO5: =COLUMNS($I3:DO3)*'Calculation Single Use Results'!$AM$36*3.664 -> 345698400 | DP5: =COLUMNS($I3:DP3)*'Calculation Single Use Results'!$AM$36*3.664 -> 348812800 | DQ5: =COLUMNS($I3:DQ3)*'Calculation Single Use Results'!$AM$36*3.664 -> 351927200 | DR5: =COLUMNS($I3:DR3)*'Calculation Single Use Results'!$AM$36*3.664 -> 355041600 | DS5: =COLUMNS($I3:DS3)*'Calculation Single Use Results'!$AM$36*3.664 -> 358156000 | DT5: =COLUMNS($I3:DT3)*'Calculation Single Use Results'!$AM$36*3.664 -> 361270400 | DU5: =COLUMNS($I3:DU3)*'Calculation Single Use Results'!$AM$36*3.664 -> 364384800 | DV5: =COLUMNS($I3:DV3)*'Calculation Single Use Results'!$AM$36*3.664 -> 367499200 | DW5: =COLUMNS($I3:DW3)*'Calculation Single Use Results'!$AM$36*3.664 -> 370613600 | DX5: =COLUMNS($I3:DX3)*'Calculation Single Use Results'!$AM$36*3.664 -> 373728000 | DY5: =COLUMNS($I3:DY3)*'Calculation Single Use Results'!$AM$36*3.664 -> 376842400 | DZ5: =COLUMNS($I3:DZ3)*'Calculation Single Use Results'!$AM$36*3.664 -> 379956800 | EA5: =COLUMNS($I3:EA3)*'Calculation Single Use Results'!$AM$36*3.664 -> 383071200 | EB5: =COLUMNS($I3:EB3)*'Calculation Single Use Results'!$AM$36*3.664 -> 386185600 | EC5: =COLUMNS($I3:EC3)*'Calculation Single Use Results'!$AM$36*3.664 -> 389300000 | ED5: =COLUMNS($I3:ED3)*'Calculation Single Use Results'!$AM$36*3.664 -> 392414400 | EE5: =COLUMNS($I3:EE3)*'Calculation Single Use Results'!$AM$36*3.664 -> 395528800 | EF5: =COLUMNS($I3:EF3)*'Calculation Single Use Results'!$AM$36*3.664 -> 398643200 | EG5: =COLUMNS($I3:EG3)*'Calculation Single Use Results'!$AM$36*3.664 -> 401757600 | EH5: =COLUMNS($I3:EH3)*'Calculation Single Use Results'!$AM$36*3.664 -> 404872000 | EI5: =COLUMNS($I3:EI3)*'Calculation Single Use Results'!$AM$36*3.664 -> 407986400 | EJ5: =COLUMNS($I3:EJ3)*'Calculation Single Use Results'!$AM$36*3.664 -> 411100800 | EK5: =COLUMNS($I3:EK3)*'Calculation Single Use Results'!$AM$36*3.664 -> 414215200 | EL5: =COLUMNS($I3:EL3)*'Calculation Single Use Results'!$AM$36*3.664 -> 417329600 | EM5: =COLUMNS($I3:EM3)*'Calculation Single Use Results'!$AM$36*3.664 -> 420444000 | EN5: =COLUMNS($I3:EN3)*'Calculation Single Use Results'!$AM$36*3.664 -> 423558400 | EO5: =COLUMNS($I3:EO3)*'Calculation Single Use Results'!$AM$36*3.664 -> 426672800 | EP5: =COLUMNS($I3:EP3)*'Calculation Single Use Results'!$AM$36*3.664 -> 429787200 | EQ5: =COLUMNS($I3:EQ3)*'Calculation Single Use Results'!$AM$36*3.664 -> 432901600 | ER5: =COLUMNS($I3:ER3)*'Calculation Single Use Results'!$AM$36*3.664 -> 436016000 | ES5: =COLUMNS($I3:ES3)*'Calculation Single Use Results'!$AM$36*3.664 -> 439130400 | ET5: =COLUMNS($I3:ET3)*'Calculation Single Use Results'!$AM$36*3.664 -> 442244800 | EU5: =COLUMNS($I3:EU3)*'Calculation Single Use Results'!$AM$36*3.664 -> 445359200 | EV5: =COLUMNS($I3:EV3)*'Calculation Single Use Results'!$AM$36*3.664 -> 448473600 | EW5: =COLUMNS($I3:EW3)*'Calculation Single Use Results'!$AM$36*3.664 -> 451588000 | EX5: =COLUMNS($I3:EX3)*'Calculation Single Use Results'!$AM$36*3.664 -> 454702400 | EY5: =COLUMNS($I3:EY3)*'Calculation Single Use Results'!$AM$36*3.664 -> 457816800 | EZ5: =COLUMNS($I3:EZ3)*'Calculation Single Use Results'!$AM$36*3.664 -> 460931200 | FA5: =COLUMNS($I3:FA3)*'Calculation Single Use Results'!$AM$36*3.664 -> 464045600 | FB5: =COLUMNS($I3:FB3)*'Calculation Single Use Results'!$AM$36*3.664 -> 467160000
B6: Year in which cumulative average CI reaches zero: | D6: =IF($FB$4>0,"Not within 150 years", INDEX($I$211:$FB$211,1,MATCH(0,'Sustained Program Calculations'!$I$4:$FB$4,-1))) -> Not within 150 years | H6: Achieved negative emission (if any) as fraction of captured carbon | I6: =IF(I8<0,-I8*CO2_to_C_ratio/I5,"No negative emission") -> No negative emission | J6: No negative emission | K6: No negative emission | L6: No negative emission | M6: No negative emission | N6: No negative emission | O6: No negative emission | P6: No negative emission | Q6: No negative emission | R6: No negative emission | S6: No negative emission | T6: No negative emission | U6: No negative emission | V6: No negative emission | W6: No negative emission | X6: No negative emission | Y6: No negative emission | Z6: No negative emission | AA6: No negative emission | AB6: No negative emission | AC6: No negative emission | AD6: No negative emission | AE6: No negative emission | AF6: No negative emission | AG6: No negative emission | AH6: No negative emission | AI6: No negative emission | AJ6: No negative emission | AK6: No negative emission | AL6: No negative emission | AM6: No negative emission | AN6: No negative emission | AO6: =IF(AO8<0,-AO8*CO2_to_C_ratio/AO5,"No negative emission") -> No negative emission | AP6: No negative emission | AQ6: No negative emission | AR6: No negative emission | AS6: No negative emission | AT6: No negative emission | AU6: No negative emission | AV6: No negative emission | AW6: No negative emission | AX6: No negative emission | AY6: No negative emission | AZ6: No negative emission | BA6: No negative emission | BB6: No negative emission | BC6: No negative emission | BD6: No negative emission | BE6: No negative emission | BF6: No negative emission | BG6: No negative emission | BH6: No negative emission | BI6: No negative emission | BJ6: No negative emission | BK6: No negative emission | BL6: No negative emission | BM6: No negative emission | BN6: No negative emission | BO6: No negative emission | BP6: No negative emission | BQ6: No negative emission | BR6: No negative emission | BS6: No negative emission | BT6: No negative emission | BU6: =IF(BU8<0,-BU8*CO2_to_C_ratio/BU5,"No negative emission") -> No negative emission | BV6: No negative emission | BW6: No negative emission | BX6: No negative emission | BY6: No negative emission | BZ6: No negative emission | CA6: No negative emission | CB6: No negative emission | CC6: No negative emission | CD6: No negative emission | CE6: No negative emission | CF6: No negative emission | CG6: No negative emission | CH6: No negative emission | CI6: No negative emission | CJ6: No negative emission | CK6: No negative emission | CL6: No negative emission | CM6: No negative emission | CN6: No negative emission | CO6: No negative emission | CP6: No negative emission | CQ6: No negative emission | CR6: No negative emission | CS6: No negative emission | CT6: No negative emission | CU6: No negative emission | CV6: No negative emission | CW6: No negative emission | CX6: No negative emission | CY6: No negative emission | CZ6: No negative emission | DA6: =IF(DA8<0,-DA8*CO2_to_C_ratio/DA5,"No negative emission") -> No negative emission | DB6: No negative emission | DC6: No negative emission | DD6: No negative emission | DE6: No negative emission | DF6: No negative emission | DG6: No negative emission | DH6: No negative emission | DI6: No negative emission | DJ6: No negative emission | DK6: No negative emission | DL6: No negative emission | DM6: No negative emission | DN6: No negative emission | DO6: No negative emission | DP6: No negative emission | DQ6: No negative emission | DR6: No negative emission | DS6: No negative emission | DT6: No negative emission | DU6: No negative emission | DV6: No negative emission | DW6: No negative emission | DX6: No negative emission | DY6: No negative emission | DZ6: No negative emission | EA6: No negative emission | EB6: No negative emission | EC6: No negative emission | ED6: No negative emission | EE6: No negative emission | EF6: No negative emission | EG6: =IF(EG8<0,-EG8*CO2_to_C_ratio/EG5,"No negative emission") -> No negative emission | EH6: No negative emission | EI6: No negative emission | EJ6: No negative emission | EK6: No negative emission | EL6: No negative emission | EM6: No negative emission | EN6: No negative emission | EO6: No negative emission | EP6: No negative emission | EQ6: No negative emission | ER6: No negative emission | ES6: No negative emission | ET6: No negative emission | EU6: No negative emission | EV6: No negative emission | EW6: No negative emission | EX6: No negative emission | EY6: No negative emission | EZ6: No negative emission | FA6: No negative emission | FB6: No negative emission
H7: Annual emission: | I7: =SUM(I10:I109) -> 521715.1489 | J7: =SUM(J10:J109) -> 544440.9017 | K7: 564785.1215 | L7: 582677.956 | M7: 598222.9111 | N7: 611571.5857 | O7: 622888.1531 | P7: 632336.0325 | Q7: 640072.2556 | R7: 646245.0423 | S7: 650992.8754 | T7: 654444.3254 | U7: 656718.2648 | V7: 657924.2838 | W7: 658163.207 | X7: 657527.6508 | Y7: 656102.591 | Z7: 653965.9194 | AA7: 651188.9796 | AB7: 647837.0749 | AC7: 643969.9463 | AD7: 639642.2183 | AE7: 634903.8146 | AF7: 629800.3422 | AG7: 624373.4477 | AH7: 618661.1443 | AI7: 612698.1152 | AJ7: 606515.9905 | AK7: 600143.6036 | AL7: 593607.2252 | AM7: 586930.7795 | AN7: 580136.0412 | AO7: 573242.8172 | AP7: 566269.1126 | AQ7: 559231.2832 | AR7: 552144.1751 | AS7: 545021.2527 | AT7: 537874.7158 | AU7: 530715.6071 | AV7: 523553.9106 | AW7: 516398.6418 | AX7: 509257.93 | AY7: 502139.0943 | AZ7: 495048.7127 | BA7: 487992.6853 | BB7: 480976.2931 | BC7: 474004.2505 | BD7: 467080.7547 | BE7: 460209.53 | BF7: 453393.8692 | BG7: 446636.6705 | BH7: 439940.4725 | BI7: 433307.4852 | BJ7: 426739.6192 | BK7: 420238.5123 | BL7: 413805.5531 | BM7: 407441.9038 | BN7: 401148.5203 | BO7: 394926.1712 | BP7: 388775.4541 | BQ7: =SUM(BQ10:BQ109) -> 382696.8124 | BR7: 376690.5485 | BS7: 370756.8378 | BT7: 364895.7403 | BU7: 359107.2121 | BV7: 353391.1148 | BW7: 347747.2255 | BX7: 342175.2449 | BY7: 336674.805 | BZ7: 331245.4767 | CA7: 325886.7756 | CB7: 320598.1688 | CC7: 315379.0797 | CD7: 310228.8931 | CE7: 305146.9602 | CF7: 300132.6023 | CG7: 295185.1149 | CH7: 290303.7709 | CI7: 285487.8243 | CJ7: 280736.5125 | CK7: 276049.0595 | CL7: 271424.6778 | CM7: 266862.571 | CN7: 262361.9357 | CO7: 257921.9634 | CP7: 253541.8418 | CQ7: 249220.7567 | CR7: 244957.8934 | CS7: 240752.4375 | CT7: 236603.5763 | CU7: 232510.5 | CV7: 228472.4023 | CW7: 224488.4812 | CX7: 220557.94 | CY7: 216679.9878 | CZ7: 212853.84 | DA7: 209078.7189 | DB7: 205353.8543 | DC7: =SUM(DC10:DC109) -> 201678.4837 | DD7: 198051.8527 | DE7: -327241.9335 | DF7: -353499.0671 | DG7: -377328.1395 | DH7: -398660.0175 | DI7: -417598.9168 | DJ7: -434297.1369 | DK7: -448919.5416 | DL7: -461630.2316 | DM7: -472586.9101 | DN7: -481938.4588 | DO7: -489824.0126 | DP7: -496372.7842 | DQ7: -501704.2788 | DR7: -505928.7095 | DS7: -509147.5139 | DT7: -511453.912 | DU7: -512933.4736 | DV7: -513664.6749 | DW7: -513719.4345 | DX7: -513163.6214 | DY7: -512057.5328 | DZ7: -510456.3404 | EA7: -508410.506 | EB7: -505966.1659 | EC7: -503165.4866 | ED7: -500046.993 | EE7: -496645.871 | EF7: -492994.245 | EG7: -489121.4342 | EH7: -485054.187 | EI7: -480816.8968 | EJ7: -476431.7997 | EK7: -471919.1558 | EL7: -467297.4158 | EM7: -462583.3734 | EN7: -457792.3049 | EO7: -452938.0974 | EP7: -448033.3663 | EQ7: -443089.5625 | ER7: -438117.0713 | ES7: -433125.3021 | ET7: -428122.7718 | EU7: -423117.1799 | EV7: =SUM(EV10:EV109) -> -418115.4785 | EW7: -413123.9351 | EX7: -408148.1918 | EY7: -403193.3178 | EZ7: -398263.859 | FA7: -393363.8823 | FB7: -388497.017
C8: Choose linear decay (amortised by total decay time PERIOD), exponential decay (by RATE), or Monod function. Only one form of parameters should be filled in per emission/sink. | H8: Net carbon position (kg C): | I8: =SUM($I$10:I$159) -> 521715.1489 | J8: =SUM($I$10:J$159) -> 1066156.051 | K8: =SUM($I$10:K$159) -> 1630941.172 | L8: =SUM($I$10:L$159) -> 2213619.128 | M8: =SUM($I$10:M$159) -> 2811842.039 | N8: =SUM($I$10:N$159) -> 3423413.625 | O8: =SUM($I$10:O$159) -> 4046301.778 | P8: =SUM($I$10:P$159) -> 4678637.811 | Q8: =SUM($I$10:Q$159) -> 5318710.066 | R8: =SUM($I$10:R$159) -> 5964955.108 | S8: =SUM($I$10:S$159) -> 6615947.984 | T8: =SUM($I$10:T$159) -> 7270392.309 | U8: =SUM($I$10:U$159) -> 7927110.574 | V8: =SUM($I$10:V$159) -> 8585034.858 | W8: =SUM($I$10:W$159) -> 9243198.065 | X8: =SUM($I$10:X$159) -> 9900725.716 | Y8: =SUM($I$10:Y$159) -> 10556828.31 | Z8: =SUM($I$10:Z$159) -> 11210794.23 | AA8: =SUM($I$10:AA$159) -> 11861983.21 | AB8: =SUM($I$10:AB$159) -> 12509820.28 | AC8: =SUM($I$10:AC$159) -> 13153790.23 | AD8: =SUM($I$10:AD$159) -> 13793432.45 | AE8: =SUM($I$10:AE$159) -> 14428336.26 | AF8: =SUM($I$10:AF$159) -> 15058136.6 | AG8: =SUM($I$10:AG$159) -> 15682510.05 | AH8: =SUM($I$10:AH$159) -> 16301171.19 | AI8: =SUM($I$10:AI$159) -> 16913869.31 | AJ8: =SUM($I$10:AJ$159) -> 17520385.3 | AK8: =SUM($I$10:AK$159) -> 18120528.9 | AL8: =SUM($I$10:AL$159) -> 18714136.13 | AM8: =SUM($I$10:AM$159) -> 19301066.91 | AN8: =SUM($I$10:AN$159) -> 19881202.95 | AO8: =SUM($I$10:AO$159) -> 20454445.77 | AP8: =SUM($I$10:AP$159) -> 21020714.88 | AQ8: =SUM($I$10:AQ$159) -> 21579946.16 | AR8: =SUM($I$10:AR$159) -> 22132090.34 | AS8: =SUM($I$10:AS$159) -> 22677111.59 | AT8: =SUM($I$10:AT$159) -> 23214986.31 | AU8: =SUM($I$10:AU$159) -> 23745701.91 | AV8: =SUM($I$10:AV$159) -> 24269255.82 | AW8: =SUM($I$10:AW$159) -> 24785654.47 | AX8: =SUM($I$10:AX$159) -> 25294912.4 | AY8: =SUM($I$10:AY$159) -> 25797051.49 | AZ8: =SUM($I$10:AZ$159) -> 26292100.2 | BA8: =SUM($I$10:BA$159) -> 26780092.89 | BB8: =SUM($I$10:BB$159) -> 27261069.18 | BC8: =SUM($I$10:BC$159) -> 27735073.43 | BD8: =SUM($I$10:BD$159) -> 28202154.19 | BE8: =SUM($I$10:BE$159) -> 28662363.72 | BF8: =SUM($I$10:BF$159) -> 29115757.59 | BG8: =SUM($I$10:BG$159) -> 29562394.26 | BH8: =SUM($I$10:BH$159) -> 30002334.73 | BI8: =SUM($I$10:BI$159) -> 30435642.21 | BJ8: =SUM($I$10:BJ$159) -> 30862381.83 | BK8: =SUM($I$10:BK$159) -> 31282620.34 | BL8: =SUM($I$10:BL$159) -> 31696425.9 | BM8: =SUM($I$10:BM$159) -> 32103867.8 | BN8: =SUM($I$10:BN$159) -> 32505016.32 | BO8: =SUM($I$10:BO$159) -> 32899942.49 | BP8: =SUM($I$10:BP$159) -> 33288717.95 | BQ8: =SUM($I$10:BQ$159) -> 33671414.76 | BR8: =SUM($I$10:BR$159) -> 34048105.31 | BS8: =SUM($I$10:BS$159) -> 34418862.15 | BT8: =SUM($I$10:BT$159) -> 34783757.89 | BU8: =SUM($I$10:BU$159) -> 35142865.1 | BV8: =SUM($I$10:BV$159) -> 35496256.21 | BW8: =SUM($I$10:BW$159) -> 35844003.44 | BX8: =SUM($I$10:BX$159) -> 36186178.68 | BY8: =SUM($I$10:BY$159) -> 36522853.49 | BZ8: =SUM($I$10:BZ$159) -> 36854098.97 | CA8: =SUM($I$10:CA$159) -> 37179985.74 | CB8: =SUM($I$10:CB$159) -> 37500583.91 | CC8: =SUM($I$10:CC$159) -> 37815962.99 | CD8: =SUM($I$10:CD$159) -> 38126191.88 | CE8: =SUM($I$10:CE$159) -> 38431338.84 | CF8: =SUM($I$10:CF$159) -> 38731471.44 | CG8: =SUM($I$10:CG$159) -> 39026656.56 | CH8: =SUM($I$10:CH$159) -> 39316960.33 | CI8: =SUM($I$10:CI$159) -> 39602448.15 | CJ8: =SUM($I$10:CJ$159) -> 39883184.67 | CK8: =SUM($I$10:CK$159) -> 40159233.73 | CL8: =SUM($I$10:CL$159) -> 40430658.4 | CM8: =SUM($I$10:CM$159) -> 40697520.98 | CN8: =SUM($I$10:CN$159) -> 40959882.91 | CO8: =SUM($I$10:CO$159) -> 41217804.87 | CP8: =SUM($I$10:CP$159) -> 41471346.72 | CQ8: =SUM($I$10:CQ$159) -> 41720567.47 | CR8: =SUM($I$10:CR$159) -> 41965525.37 | CS8: =SUM($I$10:CS$159) -> 42206277.8 | CT8: =SUM($I$10:CT$159) -> 42442881.38 | CU8: =SUM($I$10:CU$159) -> 42675391.88 | CV8: =SUM($I$10:CV$159) -> 42903864.28 | CW8: =SUM($I$10:CW$159) -> 43128352.76 | CX8: =SUM($I$10:CX$159) -> 43348910.7 | CY8: =SUM($I$10:CY$159) -> 43565590.69 | CZ8: =SUM($I$10:CZ$159) -> 43778444.53 | DA8: =SUM($I$10:DA$159) -> 43987523.25 | DB8: =SUM($I$10:DB$159) -> 44192877.1 | DC8: =SUM($I$10:DC$159) -> 44394555.59 | DD8: =SUM($I$10:DD$159) -> 44592607.44 | DE8: =SUM($I$10:DE$159) -> 44787080.66 | DF8: =SUM($I$10:DF$159) -> 44978022.49 | DG8: =SUM($I$10:DG$159) -> 45165479.47 | DH8: =SUM($I$10:DH$159) -> 45349497.41 | DI8: =SUM($I$10:DI$159) -> 45530121.41 | DJ8: =SUM($I$10:DJ$159) -> 45707395.86 | DK8: =SUM($I$10:DK$159) -> 45881364.47 | DL8: =SUM($I$10:DL$159) -> 46052070.27 | DM8: =SUM($I$10:DM$159) -> 46219555.61 | DN8: =SUM($I$10:DN$159) -> 46383862.2 | DO8: =SUM($I$10:DO$159) -> 46545031.06 | DP8: =SUM($I$10:DP$159) -> 46703102.6 | DQ8: =SUM($I$10:DQ$159) -> 46858116.59 | DR8: =SUM($I$10:DR$159) -> 47010112.16 | DS8: =SUM($I$10:DS$159) -> 47159127.85 | DT8: =SUM($I$10:DT$159) -> 47305201.59 | DU8: =SUM($I$10:DU$159) -> 47448370.71 | DV8: =SUM($I$10:DV$159) -> 47588671.95 | DW8: =SUM($I$10:DW$159) -> 47726141.5 | DX8: =SUM($I$10:DX$159) -> 47860814.95 | DY8: =SUM($I$10:DY$159) -> 47992727.37 | DZ8: =SUM($I$10:DZ$159) -> 48121913.24 | EA8: =SUM($I$10:EA$159) -> 48248406.55 | EB8: =SUM($I$10:EB$159) -> 48372240.73 | EC8: =SUM($I$10:EC$159) -> 48493448.69 | ED8: =SUM($I$10:ED$159) -> 48612062.84 | EE8: =SUM($I$10:EE$159) -> 48728115.09 | EF8: =SUM($I$10:EF$159) -> 48841636.83 | EG8: =SUM($I$10:EG$159) -> 48952659 | EH8: =SUM($I$10:EH$159) -> 49061212.04 | EI8: =SUM($I$10:EI$159) -> 49167325.92 | EJ8: =SUM($I$10:EJ$159) -> 49271030.16 | EK8: =SUM($I$10:EK$159) -> 49372353.82 | EL8: =SUM($I$10:EL$159) -> 49471325.52 | EM8: =SUM($I$10:EM$159) -> 49567973.43 | EN8: =SUM($I$10:EN$159) -> 49662325.3 | EO8: =SUM($I$10:EO$159) -> 49754408.46 | EP8: =SUM($I$10:EP$159) -> 49844249.81 | EQ8: =SUM($I$10:EQ$159) -> 49931875.85 | ER8: =SUM($I$10:ER$159) -> 50017312.69 | ES8: =SUM($I$10:ES$159) -> 50100586.03 | ET8: =SUM($I$10:ET$159) -> 50181721.19 | EU8: =SUM($I$10:EU$159) -> 50260743.1 | EV8: =SUM($I$10:EV$159) -> 50337676.34 | EW8: =SUM($I$10:EW$159) -> 50412545.09 | EX8: =SUM($I$10:EX$159) -> 50485373.19 | EY8: =SUM($I$10:EY$159) -> 50556184.12 | EZ8: =SUM($I$10:EZ$159) -> 50625001.02 | FA8: =SUM($I$10:FA$159) -> 50691846.66 | FB8: =SUM($I$10:FB$159) -> 50756743.52
A9: Source/sink | B9: Emission/sink (tC) | C9: Time period | D9: Decay rate | E9: Monod parameter (Age_50%) | F9: Monod parameter (T_0) | H9: First harvest position only | I9: =SUM($I10:I10) -> 521715.1489 | J9: =SUM($I10:J10) -> 544440.9017 | K9: =SUM($I10:K10) -> 564785.1215 | L9: =SUM($I10:L10) -> 582677.956 | M9: =SUM($I10:M10) -> 598222.9111 | N9: =SUM($I10:N10) -> 611571.5857 | O9: =SUM($I10:O10) -> 622888.1531 | P9: =SUM($I10:P10) -> 632336.0325 | Q9: =SUM($I10:Q10) -> 640072.2556 | R9: =SUM($I10:R10) -> 646245.0423 | S9: =SUM($I10:S10) -> 650992.8754 | T9: =SUM($I10:T10) -> 654444.3254 | U9: =SUM($I10:U10) -> 656718.2648 | V9: =SUM($I10:V10) -> 657924.2838 | W9: =SUM($I10:W10) -> 658163.207 | X9: =SUM($I10:X10) -> 657527.6508 | Y9: =SUM($I10:Y10) -> 656102.591 | Z9: =SUM($I10:Z10) -> 653965.9194 | AA9: =SUM($I10:AA10) -> 651188.9796 | AB9: =SUM($I10:AB10) -> 647837.0749 | AC9: =SUM($I10:AC10) -> 643969.9463 | AD9: =SUM($I10:AD10) -> 639642.2183 | AE9: =SUM($I10:AE10) -> 634903.8146 | AF9: =SUM($I10:AF10) -> 629800.3422 | AG9: =SUM($I10:AG10) -> 624373.4477 | AH9: =SUM($I10:AH10) -> 618661.1443 | AI9: =SUM($I10:AI10) -> 612698.1152 | AJ9: =SUM($I10:AJ10) -> 606515.9905 | AK9: =SUM($I10:AK10) -> 600143.6036 | AL9: =SUM($I10:AL10) -> 593607.2252 | AM9: =SUM($I10:AM10) -> 586930.7795 | AN9: =SUM($I10:AN10) -> 580136.0412 | AO9: =SUM($I10:AO10) -> 573242.8172 | AP9: =SUM($I10:AP10) -> 566269.1126 | AQ9: =SUM($I10:AQ10) -> 559231.2832 | AR9: =SUM($I10:AR10) -> 552144.1751 | AS9: =SUM($I10:AS10) -> 545021.2527 | AT9: =SUM($I10:AT10) -> 537874.7158 | AU9: =SUM($I10:AU10) -> 530715.6071 | AV9: =SUM($I10:AV10) -> 523553.9106 | AW9: =SUM($I10:AW10) -> 516398.6418 | AX9: =SUM($I10:AX10) -> 509257.93 | AY9: =SUM($I10:AY10) -> 502139.0943 | AZ9: =SUM($I10:AZ10) -> 495048.7127 | BA9: =SUM($I10:BA10) -> 487992.6853 | BB9: =SUM($I10:BB10) -> 480976.2931 | BC9: =SUM($I10:BC10) -> 474004.2505 | BD9: =SUM($I10:BD10) -> 467080.7547 | BE9: =SUM($I10:BE10) -> 460209.53 | BF9: =SUM($I10:BF10) -> 453393.8692 | BG9: =SUM($I10:BG10) -> 446636.6705 | BH9: =SUM($I10:BH10) -> 439940.4725 | BI9: =SUM($I10:BI10) -> 433307.4852 | BJ9: =SUM($I10:BJ10) -> 426739.6192 | BK9: =SUM($I10:BK10) -> 420238.5123 | BL9: =SUM($I10:BL10) -> 413805.5531 | BM9: =SUM($I10:BM10) -> 407441.9038 | BN9: =SUM($I10:BN10) -> 401148.5203 | BO9: =SUM($I10:BO10) -> 394926.1712 | BP9: =SUM($I10:BP10) -> 388775.4541 | BQ9: =SUM($I10:BQ10) -> 382696.8124 | BR9: =SUM($I10:BR10) -> 376690.5485 | BS9: =SUM($I10:BS10) -> 370756.8378 | BT9: =SUM($I10:BT10) -> 364895.7403 | BU9: =SUM($I10:BU10) -> 359107.2121 | BV9: =SUM($I10:BV10) -> 353391.1148 | BW9: =SUM($I10:BW10) -> 347747.2255 | BX9: =SUM($I10:BX10) -> 342175.2449 | BY9: =SUM($I10:BY10) -> 336674.805 | BZ9: =SUM($I10:BZ10) -> 331245.4767 | CA9: =SUM($I10:CA10) -> 325886.7756 | CB9: =SUM($I10:CB10) -> 320598.1688 | CC9: =SUM($I10:CC10) -> 315379.0797 | CD9: =SUM($I10:CD10) -> 310228.8931 | CE9: =SUM($I10:CE10) -> 305146.9602 | CF9: =SUM($I10:CF10) -> 300132.6023 | CG9: =SUM($I10:CG10) -> 295185.1149 | CH9: =SUM($I10:CH10) -> 290303.7709 | CI9: =SUM($I10:CI10) -> 285487.8243 | CJ9: =SUM($I10:CJ10) -> 280736.5125 | CK9: =SUM($I10:CK10) -> 276049.0595 | CL9: =SUM($I10:CL10) -> 271424.6778 | CM9: =SUM($I10:CM10) -> 266862.571 | CN9: =SUM($I10:CN10) -> 262361.9357 | CO9: =SUM($I10:CO10) -> 257921.9634 | CP9: =SUM($I10:CP10) -> 253541.8418 | CQ9: =SUM($I10:CQ10) -> 249220.7567 | CR9: =SUM($I10:CR10) -> 244957.8934 | CS9: =SUM($I10:CS10) -> 240752.4375 | CT9: =SUM($I10:CT10) -> 236603.5763 | CU9: =SUM($I10:CU10) -> 232510.5 | CV9: =SUM($I10:CV10) -> 228472.4023 | CW9: =SUM($I10:CW10) -> 224488.4812 | CX9: =SUM($I10:CX10) -> 220557.94 | CY9: =SUM($I10:CY10) -> 216679.9878 | CZ9: =SUM($I10:CZ10) -> 212853.84 | DA9: =SUM($I10:DA10) -> 209078.7189 | DB9: =SUM($I10:DB10) -> 205353.8543 | DC9: =SUM($I10:DC10) -> 201678.4837 | DD9: =SUM($I10:DD10) -> 198051.8527 | DE9: =SUM($I10:DE10) -> 194473.2154 | DF9: =SUM($I10:DF10) -> 190941.8346 | DG9: =SUM($I10:DG10) -> 187456.982 | DH9: =SUM($I10:DH10) -> 184017.9385 | DI9: =SUM($I10:DI10) -> 180623.9943 | DJ9: =SUM($I10:DJ10) -> 177274.4489 | DK9: =SUM($I10:DK10) -> 173968.6115 | DL9: =SUM($I10:DL10) -> 170705.8009 | DM9: =SUM($I10:DM10) -> 167485.3455 | DN9: =SUM($I10:DN10) -> 164306.5835 | DO9: =SUM($I10:DO10) -> 161168.8628 | DP9: =SUM($I10:DP10) -> 158071.5412 | DQ9: =SUM($I10:DQ10) -> 155013.986 | DR9: =SUM($I10:DR10) -> 151995.5743 | DS9: =SUM($I10:DS10) -> 149015.6931 | DT9: =SUM($I10:DT10) -> 146073.7388 | DU9: =SUM($I10:DU10) -> 143169.1174 | DV9: =SUM($I10:DV10) -> 140301.2445 | DW9: =SUM($I10:DW10) -> 137469.5451 | DX9: =SUM($I10:DX10) -> 134673.4535 | DY9: =SUM($I10:DY10) -> 131912.4135 | DZ9: =SUM($I10:DZ10) -> 129185.8779 | EA9: =SUM($I10:EA10) -> 126493.3085 | EB9: =SUM($I10:EB10) -> 123834.1763 | EC9: =SUM($I10:EC10) -> 121207.9611 | ED9: =SUM($I10:ED10) -> 118614.1513 | EE9: =SUM($I10:EE10) -> 116052.2442 | EF9: =SUM($I10:EF10) -> 113521.7455 | EG9: =SUM($I10:EG10) -> 111022.1693 | EH9: =SUM($I10:EH10) -> 108553.0382 | EI9: =SUM($I10:EI10) -> 106113.8827 | EJ9: =SUM($I10:EJ10) -> 103704.2416 | EK9: =SUM($I10:EK10) -> 101323.6614 | EL9: =SUM($I10:EL10) -> 98971.69682 | EM9: =SUM($I10:EM10) -> 96647.90984 | EN9: =SUM($I10:EN10) -> 94351.87026 | EO9: =SUM($I10:EO10) -> 92083.15529 | EP9: =SUM($I10:EP10) -> 89841.34946 | EQ9: =SUM($I10:EQ10) -> 87626.04452 | ER9: =SUM($I10:ER10) -> 85436.83932 | ES9: =SUM($I10:ES10) -> 83273.33966 | ET9: =SUM($I10:ET10) -> 81135.15823 | EU9: =SUM($I10:EU10) -> 79021.91441 | EV9: =SUM($I10:EV10) -> 76933.23423 | EW9: =SUM($I10:EW10) -> 74868.75023 | EX9: =SUM($I10:EX10) -> 72828.10132 | EY9: =SUM($I10:EY10) -> 70810.93269 | EZ9: =SUM($I10:EZ10) -> 68816.89569 | FA9: =SUM($I10:FA10) -> 66845.64774 | FB9: =SUM($I10:FB10) -> 64896.85219 | FC9: =SUM(I9:FB9) -> 50756743.52
